Workbook

Sheet 説明文
A3: 指導・支援の効果検証ツール ver2.3
A5: このExcelは行っている指導・支援がどのような効果をもたらしているかを確認するためのツールです。
B9: 基本的には月単位でのデータになっております。必要に応じてExcelファイルをコピーしたり、シートのコピー（関数を調整できる場合）を行ったりしてください。
A11: 目次（各ページに飛びます）
A12: 【記録】 | B12: 基本的にはここに記録を打ち込み、指導・支援の手続きをの効果を確認してください。(まずはここから)
A13: 【曜日と週の記録】 | B13: 週ごとや曜日ごとの傾向を見たい場合は確認してください。(【記録】と連動しています)
A14: 【平均と傾向】 | B14: グラフの見た目では変化があるかわからなかったり、指導・支援の手続きの傾向どうなるか気になる方は確認してください。（グラフを見慣れている方向け。【記録】と連動しています）
A15: 【記録を見比べる】 | B15: １つの目標に対して、２つの記録を取り、その関係性が見たい方はこちらを活用してください。 （目標に対しての「違う行動を同じ時間」「同じ行動を違う時間」「違う行動を違う時間」で見比べたい場合）
A16: 【記録（割合）】 | B16: １つの目標に対して、2つの記録から割合（%）を算出し、それを基に指導・支援の手続きの効果を確認したい方向け （例えば正答率など、〇〇率と表せるもの）
A17: 【時間帯の記録】 | B17: ここは、何か記録を生活全体（学校生活全体）をとってみることで、どのような傾向にあるのかを見るためにあります。このシートで傾向が見えてきたら仮説を立てて、【記録】【2つの記録を見比べる】のシートにて指導・支援の効果を確認していきましょう。その後も記録することで、指導・支援後の傾向も追えます。
A18: 【（学校）時間帯の記録】
A19: 【基準を変える】 | B19: 何かしらの目標に対して、スモールステップで報酬や称賛の基準を変えていき、その効果を確認したい方向け。 （本人がモチベーションにできたり、喜んだりするものが分かり、スモールステップでゴールを目指したい方向け）
A20: 【スモールステップ】 | B20: 目標をスモールステップに分解し、できているかを細かい段階で確認したい方向け （例えば、「着替え」を「Tシャツを脱ぐ」⇒「体育着を着る」⇒「ズボンを脱ぐ」…というように一連の流れを細かく確認）
A21: ※各ページ、セル上にある▲を触れるとその項目にどのようなことを打てばよいか、 どのように考えたら良いかというものを簡単に書いております。
B22: ©2025 村浦新之助（上越教育大学）
A23: 問い合わせ email | B23: muraura@juen.ac.jp
A24: 引用 | B24: 村浦新之助, & 奥住秀之. (2025). 単一事例研究法を基盤とした教育実践サポートツールの開発と評価. 日本教育工学会論文誌, 49(2), 385-392.
B25: 「指導・支援の効果検証ツール」使用上の注意
B26: ①著者の都合によりファイルの共有が切れる可能性があります。
B27: ②改善点や要望等があればご連絡を頂けますと幸いです。
B28: ③本ツールは意図的に専門用語の使用を控えています。
B29: ④ご一緒に何か実践をさせていただける場合もご連絡を頂けると嬉しいです。
B30: ⑤すぐにグラフ化することを目的としていることから、関数による処理を行っています。日付のセルを空欄にするとグラフの表示がおかしくなることがあります。日付さえ入っていれば大丈夫ですので、未来の日付等を入れていただければと思います。
B31: ⑥マクロを有効にできない場合は、Excelファイルを一度保存します。その後、保存したファイルを右クリックし、プロパティを開きます。「全般」タブの最下部にあるセキュリティの項目で、「許可する」にチェックを入れ、「OK」を押してからファイルを開き直します。
B32: 「指導・支援の効果測定ツール」についての詳細は、単一事例研究法（シングルケースデザイン）について詳しく説明されている各書籍等をご確認ください。（例えばR.G.ミルテンバーガー/園山他 翻訳「行動変容法入門」やD.H.バーロー、M.ハーセン/高木・佐久間 監訳「一事例の実験デザイン―ケーススタディの基本と応用」、石井拓（2015）シングルケースデザインの概要等）
B34: ver2.3の変更点：時間帯の記録の入力セルに、入力された値によってセルに色がつくように条件を追加。マクロの有効の仕方を使用上の注意に追加。
B35: ver2.2.1の変更点：一部フォントや表記を変更
B36: ver2.2の変更点:関数を一部修正、日付未入力のセルを非表示に変更。
B37: ver2.1の変更点:時間帯の記録に合計日数と日ごとの割合を算出する箇所を追加。
B38: ver2.0の変更点：各グラフに手続き名が記載されるように変更、課題分析(スモールステップ)のセルを格子に変更、時間帯の記録を日付ベースに変更、各ページに入力内容をクリアするボタンを設置(マクロ追加)

Sheet 記録
A1: 目標とすること【 見本：自分からコミュニケーションをとる 】 | G1: 手続き① | H1: 【見本：生活目標に設定】
G2: 手続き② | H2: 【見本：好きな教材の配置】
G3: 手続き③ | H3: 【見本：コミュニケーションへの称賛】
A4: 記録する行動【 見本：1日の流れの中で要求があった回数 】 | H4: グラフの読み取り方 | V4: 計算エリア（データを飛ばしてグラフにするので触らないでね）
A5: 日付 | B5: 曜日 | C5: 記録 | D5: 記録内容 | E5: 特記事項 | P5: 【曜日と週の記録】に移動 | U5: 曜日 | V5: 日付 | W5: BL | X5: =H1 -> 【見本：生活目標に設定】 | Y5: =H2 -> 【見本：好きな教材の配置】 | Z5: =H3 -> 【見本：コミュニケーションへの称賛】
A6: 2021-10-01 | B6: =TEXT(A6,"aaaa") -> 金曜日 | C6: 1 | D6: BL | U6: =(B6) -> 金曜日 | V6: =IF(テーブル1[[#This Row],[日付]]<>"",テーブル1[[#This Row],[日付]],"") -> 2021-10-01 | W6: =IF(D6="BL",テーブル1[[#This Row],[記録]],NA()) -> 1 | X6: =IF(D6="①",テーブル1[[#This Row],[記録]],NA() ) ->  | Y6: =IF(D6="②",テーブル1[[#This Row],[記録]],NA() ) ->  | Z6: =IF(D6="③",テーブル1[[#This Row],[記録]],NA() ) -> 
A7: 2021-10-02 | B7: =TEXT(A7,"aaaa") -> 土曜日 | C7: 2 | D7: BL | P7: 【平均と傾向】に移動 | U7: 土曜日 | V7: =IF(テーブル1[[#This Row],[日付]]<>"",テーブル1[[#This Row],[日付]],"") -> 2021-10-02 | W7: =IF(D7="BL",テーブル1[[#This Row],[記録]],NA()) -> 2 | X7: =IF(D7="①",テーブル1[[#This Row],[記録]],NA() ) ->  | Y7: =IF(D7="②",テーブル1[[#This Row],[記録]],NA() ) ->  | Z7: =IF(D7="③",テーブル1[[#This Row],[記録]],NA() ) -> 
A8: 2021-10-03 | B8: 日曜日 | C8: 1 | D8: BL | U8: 日曜日 | V8: =IF(テーブル1[[#This Row],[日付]]<>"",テーブル1[[#This Row],[日付]],"") -> 2021-10-03 | W8: =IF(D8="BL",テーブル1[[#This Row],[記録]],NA()) -> 1 | X8: =IF(D8="①",テーブル1[[#This Row],[記録]],NA() ) ->  | Y8: =IF(D8="②",テーブル1[[#This Row],[記録]],NA() ) ->  | Z8: =IF(D8="③",テーブル1[[#This Row],[記録]],NA() ) -> 
A9: 2021-10-04 | B9: 月曜日 | C9: 2 | D9: BL | P9: 【時間帯の記録】に移動 | U9: 月曜日 | V9: =IF(テーブル1[[#This Row],[日付]]<>"",テーブル1[[#This Row],[日付]],"") -> 2021-10-04 | W9: =IF(D9="BL",テーブル1[[#This Row],[記録]],NA()) -> 2 | X9: =IF(D9="①",テーブル1[[#This Row],[記録]],NA() ) ->  | Y9: =IF(D9="②",テーブル1[[#This Row],[記録]],NA() ) ->  | Z9: =IF(D9="③",テーブル1[[#This Row],[記録]],NA() ) -> 
A10: 2021-10-05 | B10: 火曜日 | C10: 3 | D10: BL | U10: 火曜日 | V10: =IF(テーブル1[[#This Row],[日付]]<>"",テーブル1[[#This Row],[日付]],"") -> 2021-10-05 | W10: =IF(D10="BL",テーブル1[[#This Row],[記録]],NA()) -> 3 | X10: =IF(D10="①",テーブル1[[#This Row],[記録]],NA() ) ->  | Y10: =IF(D10="②",テーブル1[[#This Row],[記録]],NA() ) ->  | Z10: =IF(D10="③",テーブル1[[#This Row],[記録]],NA() ) -> 
A11: 2021-10-06 | B11: 水曜日 | C11: 1 | D11: BL | P11: 【（学校）時間割の記録】に移動 | U11: 水曜日 | V11: =IF(テーブル1[[#This Row],[日付]]<>"",テーブル1[[#This Row],[日付]],"") -> 2021-10-06 | W11: =IF(D11="BL",テーブル1[[#This Row],[記録]],NA()) -> 1 | X11: =IF(D11="①",テーブル1[[#This Row],[記録]],NA() ) ->  | Y11: =IF(D11="②",テーブル1[[#This Row],[記録]],NA() ) ->  | Z11: =IF(D11="③",テーブル1[[#This Row],[記録]],NA() ) -> 
A12: 2021-10-07 | B12: 木曜日 | C12: 1 | D12: BL | U12: 木曜日 | V12: =IF(テーブル1[[#This Row],[日付]]<>"",テーブル1[[#This Row],[日付]],"") -> 2021-10-07 | W12: =IF(D12="BL",テーブル1[[#This Row],[記録]],NA()) -> 1 | X12: =IF(D12="①",テーブル1[[#This Row],[記録]],NA() ) ->  | Y12: =IF(D12="②",テーブル1[[#This Row],[記録]],NA() ) ->  | Z12: =IF(D12="③",テーブル1[[#This Row],[記録]],NA() ) -> 
A13: 2021-10-08 | B13: 金曜日 | C13: 4 | D13: ① | U13: 金曜日 | V13: =IF(テーブル1[[#This Row],[日付]]<>"",テーブル1[[#This Row],[日付]],"") -> 2021-10-08 | W13: =IF(D13="BL",テーブル1[[#This Row],[記録]],NA()) ->  | X13: =IF(D13="①",テーブル1[[#This Row],[記録]],NA() ) -> 4 | Y13: =IF(D13="②",テーブル1[[#This Row],[記録]],NA() ) ->  | Z13: =IF(D13="③",テーブル1[[#This Row],[記録]],NA() ) -> 
A14: 2021-10-09 | B14: 土曜日 | C14: 3 | D14: ① | U14: 土曜日 | V14: =IF(テーブル1[[#This Row],[日付]]<>"",テーブル1[[#This Row],[日付]],"") -> 2021-10-09 | W14: =IF(D14="BL",テーブル1[[#This Row],[記録]],NA()) ->  | X14: =IF(D14="①",テーブル1[[#This Row],[記録]],NA() ) -> 3 | Y14: =IF(D14="②",テーブル1[[#This Row],[記録]],NA() ) ->  | Z14: =IF(D14="③",テーブル1[[#This Row],[記録]],NA() ) -> 
A15: 2021-10-10 | B15: 日曜日 | C15: 2 | D15: ① | U15: 日曜日 | V15: =IF(テーブル1[[#This Row],[日付]]<>"",テーブル1[[#This Row],[日付]],"") -> 2021-10-10 | W15: =IF(D15="BL",テーブル1[[#This Row],[記録]],NA()) ->  | X15: =IF(D15="①",テーブル1[[#This Row],[記録]],NA() ) -> 2 | Y15: =IF(D15="②",テーブル1[[#This Row],[記録]],NA() ) ->  | Z15: =IF(D15="③",テーブル1[[#This Row],[記録]],NA() ) -> 
A16: 2021-10-11 | B16: 月曜日 | C16: 2 | D16: ① | U16: 月曜日 | V16: =IF(テーブル1[[#This Row],[日付]]<>"",テーブル1[[#This Row],[日付]],"") -> 2021-10-11 | W16: =IF(D16="BL",テーブル1[[#This Row],[記録]],NA()) ->  | X16: =IF(D16="①",テーブル1[[#This Row],[記録]],NA() ) -> 2 | Y16: =IF(D16="②",テーブル1[[#This Row],[記録]],NA() ) ->  | Z16: =IF(D16="③",テーブル1[[#This Row],[記録]],NA() ) -> 
A17: 2021-10-12 | B17: 火曜日 | C17: 3 | D17: ① | U17: 火曜日 | V17: =IF(テーブル1[[#This Row],[日付]]<>"",テーブル1[[#This Row],[日付]],"") -> 2021-10-12 | W17: =IF(D17="BL",テーブル1[[#This Row],[記録]],NA()) ->  | X17: =IF(D17="①",テーブル1[[#This Row],[記録]],NA() ) -> 3 | Y17: =IF(D17="②",テーブル1[[#This Row],[記録]],NA() ) ->  | Z17: =IF(D17="③",テーブル1[[#This Row],[記録]],NA() ) -> 
A18: 2021-10-13 | B18: 水曜日 | C18: 4 | D18: ① | U18: 水曜日 | V18: =IF(テーブル1[[#This Row],[日付]]<>"",テーブル1[[#This Row],[日付]],"") -> 2021-10-13 | W18: =IF(D18="BL",テーブル1[[#This Row],[記録]],NA()) ->  | X18: =IF(D18="①",テーブル1[[#This Row],[記録]],NA() ) -> 4 | Y18: =IF(D18="②",テーブル1[[#This Row],[記録]],NA() ) ->  | Z18: =IF(D18="③",テーブル1[[#This Row],[記録]],NA() ) -> 
A19: 2021-10-14 | B19: 木曜日 | C19: 5 | D19: ① | U19: 木曜日 | V19: =IF(テーブル1[[#This Row],[日付]]<>"",テーブル1[[#This Row],[日付]],"") -> 2021-10-14 | W19: =IF(D19="BL",テーブル1[[#This Row],[記録]],NA()) ->  | X19: =IF(D19="①",テーブル1[[#This Row],[記録]],NA() ) -> 5 | Y19: =IF(D19="②",テーブル1[[#This Row],[記録]],NA() ) ->  | Z19: =IF(D19="③",テーブル1[[#This Row],[記録]],NA() ) -> 
A20: 2021-10-15 | B20: 金曜日 | C20: 2 | D20: ① | U20: 金曜日 | V20: =IF(テーブル1[[#This Row],[日付]]<>"",テーブル1[[#This Row],[日付]],"") -> 2021-10-15 | W20: =IF(D20="BL",テーブル1[[#This Row],[記録]],NA()) ->  | X20: =IF(D20="①",テーブル1[[#This Row],[記録]],NA() ) -> 2 | Y20: =IF(D20="②",テーブル1[[#This Row],[記録]],NA() ) ->  | Z20: =IF(D20="③",テーブル1[[#This Row],[記録]],NA() ) -> 
A21: 2021-10-16 | B21: 土曜日 | C21: 7 | D21: ② | U21: 土曜日 | V21: =IF(テーブル1[[#This Row],[日付]]<>"",テーブル1[[#This Row],[日付]],"") -> 2021-10-16 | W21: =IF(D21="BL",テーブル1[[#This Row],[記録]],NA()) ->  | X21: =IF(D21="①",テーブル1[[#This Row],[記録]],NA() ) ->  | Y21: =IF(D21="②",テーブル1[[#This Row],[記録]],NA() ) -> 7 | Z21: =IF(D21="③",テーブル1[[#This Row],[記録]],NA() ) -> 
A22: 2021-10-17 | B22: 日曜日 | C22: 6 | D22: ② | U22: 日曜日 | V22: =IF(テーブル1[[#This Row],[日付]]<>"",テーブル1[[#This Row],[日付]],"") -> 2021-10-17 | W22: =IF(D22="BL",テーブル1[[#This Row],[記録]],NA()) ->  | X22: =IF(D22="①",テーブル1[[#This Row],[記録]],NA() ) ->  | Y22: =IF(D22="②",テーブル1[[#This Row],[記録]],NA() ) -> 6 | Z22: =IF(D22="③",テーブル1[[#This Row],[記録]],NA() ) -> 
A23: 2021-10-18 | B23: 月曜日 | C23: 5 | D23: ② | U23: 月曜日 | V23: =IF(テーブル1[[#This Row],[日付]]<>"",テーブル1[[#This Row],[日付]],"") -> 2021-10-18 | W23: =IF(D23="BL",テーブル1[[#This Row],[記録]],NA()) ->  | X23: =IF(D23="①",テーブル1[[#This Row],[記録]],NA() ) ->  | Y23: =IF(D23="②",テーブル1[[#This Row],[記録]],NA() ) -> 5 | Z23: =IF(D23="③",テーブル1[[#This Row],[記録]],NA() ) -> 
A24: 2021-10-19 | B24: 火曜日 | C24: 6 | D24: ② | U24: 火曜日 | V24: =IF(テーブル1[[#This Row],[日付]]<>"",テーブル1[[#This Row],[日付]],"") -> 2021-10-19 | W24: =IF(D24="BL",テーブル1[[#This Row],[記録]],NA()) ->  | X24: =IF(D24="①",テーブル1[[#This Row],[記録]],NA() ) ->  | Y24: =IF(D24="②",テーブル1[[#This Row],[記録]],NA() ) -> 6 | Z24: =IF(D24="③",テーブル1[[#This Row],[記録]],NA() ) -> 
A25: 2021-10-20 | B25: 水曜日 | C25: 7 | D25: ② | U25: 水曜日 | V25: =IF(テーブル1[[#This Row],[日付]]<>"",テーブル1[[#This Row],[日付]],"") -> 2021-10-20 | W25: =IF(D25="BL",テーブル1[[#This Row],[記録]],NA()) ->  | X25: =IF(D25="①",テーブル1[[#This Row],[記録]],NA() ) ->  | Y25: =IF(D25="②",テーブル1[[#This Row],[記録]],NA() ) -> 7 | Z25: =IF(D25="③",テーブル1[[#This Row],[記録]],NA() ) -> 
A26: 2021-10-21 | B26: 木曜日 | C26: 6 | D26: ② | U26: 木曜日 | V26: =IF(テーブル1[[#This Row],[日付]]<>"",テーブル1[[#This Row],[日付]],"") -> 2021-10-21 | W26: =IF(D26="BL",テーブル1[[#This Row],[記録]],NA()) ->  | X26: =IF(D26="①",テーブル1[[#This Row],[記録]],NA() ) ->  | Y26: =IF(D26="②",テーブル1[[#This Row],[記録]],NA() ) -> 6 | Z26: =IF(D26="③",テーブル1[[#This Row],[記録]],NA() ) -> 
A27: 2021-10-22 | B27: 金曜日 | C27: 7 | D27: ② | U27: 金曜日 | V27: =IF(テーブル1[[#This Row],[日付]]<>"",テーブル1[[#This Row],[日付]],"") -> 2021-10-22 | W27: =IF(D27="BL",テーブル1[[#This Row],[記録]],NA()) ->  | X27: =IF(D27="①",テーブル1[[#This Row],[記録]],NA() ) ->  | Y27: =IF(D27="②",テーブル1[[#This Row],[記録]],NA() ) -> 7 | Z27: =IF(D27="③",テーブル1[[#This Row],[記録]],NA() ) -> 
A28: 2021-10-23 | B28: 土曜日 | C28: 7 | D28: ② | U28: 土曜日 | V28: =IF(テーブル1[[#This Row],[日付]]<>"",テーブル1[[#This Row],[日付]],"") -> 2021-10-23 | W28: =IF(D28="BL",テーブル1[[#This Row],[記録]],NA()) ->  | X28: =IF(D28="①",テーブル1[[#This Row],[記録]],NA() ) ->  | Y28: =IF(D28="②",テーブル1[[#This Row],[記録]],NA() ) -> 7 | Z28: =IF(D28="③",テーブル1[[#This Row],[記録]],NA() ) -> 
A29: 2021-10-24 | B29: 日曜日 | C29: 11 | D29: ③ | U29: 日曜日 | V29: =IF(テーブル1[[#This Row],[日付]]<>"",テーブル1[[#This Row],[日付]],"") -> 2021-10-24 | W29: =IF(D29="BL",テーブル1[[#This Row],[記録]],NA()) ->  | X29: =IF(D29="①",テーブル1[[#This Row],[記録]],NA() ) ->  | Y29: =IF(D29="②",テーブル1[[#This Row],[記録]],NA() ) ->  | Z29: =IF(D29="③",テーブル1[[#This Row],[記録]],NA() ) -> 11
A30: 2021-10-25 | B30: =TEXT(A30,"aaaa") -> 月曜日 | C30: 8 | D30: ③ | U30: 月曜日 | V30: =IF(テーブル1[[#This Row],[日付]]<>"",テーブル1[[#This Row],[日付]],"") -> 2021-10-25 | W30: =IF(D30="BL",テーブル1[[#This Row],[記録]],NA()) ->  | X30: =IF(D30="①",テーブル1[[#This Row],[記録]],NA() ) ->  | Y30: =IF(D30="②",テーブル1[[#This Row],[記録]],NA() ) ->  | Z30: =IF(D30="③",テーブル1[[#This Row],[記録]],NA() ) -> 8
A31: 2021-10-26 | B31: 火曜日 | C31: 12 | D31: ③ | U31: 火曜日 | V31: =IF(テーブル1[[#This Row],[日付]]<>"",テーブル1[[#This Row],[日付]],"") -> 2021-10-26 | W31: =IF(D31="BL",テーブル1[[#This Row],[記録]],NA()) ->  | X31: =IF(D31="①",テーブル1[[#This Row],[記録]],NA() ) ->  | Y31: =IF(D31="②",テーブル1[[#This Row],[記録]],NA() ) ->  | Z31: =IF(D31="③",テーブル1[[#This Row],[記録]],NA() ) -> 12
A32: 2021-10-27 | B32: 水曜日 | C32: 13 | D32: ③ | U32: 水曜日 | V32: =IF(テーブル1[[#This Row],[日付]]<>"",テーブル1[[#This Row],[日付]],"") -> 2021-10-27 | W32: =IF(D32="BL",テーブル1[[#This Row],[記録]],NA()) ->  | X32: =IF(D32="①",テーブル1[[#This Row],[記録]],NA() ) ->  | Y32: =IF(D32="②",テーブル1[[#This Row],[記録]],NA() ) ->  | Z32: =IF(D32="③",テーブル1[[#This Row],[記録]],NA() ) -> 13
A33: 2021-10-28 | B33: 木曜日 | C33: 11 | D33: ③ | U33: 木曜日 | V33: =IF(テーブル1[[#This Row],[日付]]<>"",テーブル1[[#This Row],[日付]],"") -> 2021-10-28 | W33: =IF(D33="BL",テーブル1[[#This Row],[記録]],NA()) ->  | X33: =IF(D33="①",テーブル1[[#This Row],[記録]],NA() ) ->  | Y33: =IF(D33="②",テーブル1[[#This Row],[記録]],NA() ) ->  | Z33: =IF(D33="③",テーブル1[[#This Row],[記録]],NA() ) -> 11
A34: 2021-10-29 | B34: 金曜日 | C34: 12 | D34: ③ | U34: 金曜日 | V34: =IF(テーブル1[[#This Row],[日付]]<>"",テーブル1[[#This Row],[日付]],"") -> 2021-10-29 | W34: =IF(D34="BL",テーブル1[[#This Row],[記録]],NA()) ->  | X34: =IF(D34="①",テーブル1[[#This Row],[記録]],NA() ) ->  | Y34: =IF(D34="②",テーブル1[[#This Row],[記録]],NA() ) ->  | Z34: =IF(D34="③",テーブル1[[#This Row],[記録]],NA() ) -> 12
A35: 2021-10-30 | B35: 土曜日 | C35: 13 | D35: ③ | U35: 土曜日 | V35: =IF(テーブル1[[#This Row],[日付]]<>"",テーブル1[[#This Row],[日付]],"") -> 2021-10-30 | W35: =IF(D35="BL",テーブル1[[#This Row],[記録]],NA()) ->  | X35: =IF(D35="①",テーブル1[[#This Row],[記録]],NA() ) ->  | Y35: =IF(D35="②",テーブル1[[#This Row],[記録]],NA() ) ->  | Z35: =IF(D35="③",テーブル1[[#This Row],[記録]],NA() ) -> 13
A36: 2021-10-31 | B36: 日曜日 | C36: 14 | D36: ③ | U36: 日曜日 | V36: =IF(テーブル1[[#This Row],[日付]]<>"",テーブル1[[#This Row],[日付]],"") -> 2021-10-31 | W36: =IF(D36="BL",テーブル1[[#This Row],[記録]],NA()) ->  | X36: =IF(D36="①",テーブル1[[#This Row],[記録]],NA() ) ->  | Y36: =IF(D36="②",テーブル1[[#This Row],[記録]],NA() ) ->  | Z36: =IF(D36="③",テーブル1[[#This Row],[記録]],NA() ) -> 14

Sheet 曜日と週の記録
A1: グラフの読み方はここから | K1: 【記録】に移動
B2: 月曜日 | C2: 火曜日 | D2: 水曜日 | E2: 木曜日 | F2: 金曜日 | G2: 土曜日 | H2: 日曜日 | I2: 週合計 | J2: 週平均 | K2: 平日合計 | L2: 平日平均
A3: 1週目 | B3: =IF(記録!B6="月曜日",記録!C6,"") ->  | C3: =IF(記録!B6="火曜日",記録!C6,"") ->  | D3: =IF(記録!B6="水曜日",記録!C6,"") ->  | E3: =IF(記録!B6="木曜日",記録!C6,"") ->  | F3: =IF(記録!B6="金曜日",記録!C6,"") -> 1 | G3: =IF(記録!B6="土曜日",記録!C6,"") ->  | H3: =IF(記録!B6="日曜日",記録!C6,"") ->  | I3: =SUM(B3:H9) -> 11 | J3: =I3/7 -> 1.571428571 | K3: =SUM(B3:F9) -> 8 | L3: =K3/5 -> 1.6
B4: =IF(記録!B7="月曜日",記録!C7,"") ->  | C4: =IF(記録!B7="火曜日",記録!C7,"") ->  | D4: =IF(記録!B7="水曜日",記録!C7,"") ->  | E4: =IF(記録!B7="木曜日",記録!C7,"") ->  | F4: =IF(記録!B7="金曜日",記録!C7,"") ->  | G4: =IF(記録!B7="土曜日",記録!C7,"") -> 2 | H4: =IF(記録!B7="日曜日",記録!C7,"") -> 
B5: =IF(記録!B8="月曜日",記録!C8,"") ->  | C5: =IF(記録!B8="火曜日",記録!C8,"") ->  | D5: =IF(記録!B8="水曜日",記録!C8,"") ->  | E5: =IF(記録!B8="木曜日",記録!C8,"") ->  | F5: =IF(記録!B8="金曜日",記録!C8,"") ->  | G5: =IF(記録!B8="土曜日",記録!C8,"") ->  | H5: =IF(記録!B8="日曜日",記録!C8,"") -> 1
B6: =IF(記録!B9="月曜日",記録!C9,"") -> 2 | C6: =IF(記録!B9="火曜日",記録!C9,"") ->  | D6: =IF(記録!B9="水曜日",記録!C9,"") ->  | E6: =IF(記録!B9="木曜日",記録!C9,"") ->  | F6: =IF(記録!B9="金曜日",記録!C9,"") ->  | G6: =IF(記録!B9="土曜日",記録!C9,"") ->  | H6: =IF(記録!B9="日曜日",記録!C9,"") -> 
B7: =IF(記録!B10="月曜日",記録!C10,"") ->  | C7: =IF(記録!B10="火曜日",記録!C10,"") -> 3 | D7: =IF(記録!B10="水曜日",記録!C10,"") ->  | E7: =IF(記録!B10="木曜日",記録!C10,"") ->  | F7: =IF(記録!B10="金曜日",記録!C10,"") ->  | G7: =IF(記録!B10="土曜日",記録!C10,"") ->  | H7: =IF(記録!B10="日曜日",記録!C10,"") -> 
B8: =IF(記録!B11="月曜日",記録!C11,"") ->  | C8: =IF(記録!B11="火曜日",記録!C11,"") ->  | D8: =IF(記録!B11="水曜日",記録!C11,"") -> 1
B9: =IF(記録!B12="月曜日",記録!C12,"") ->  | C9: =IF(記録!B12="火曜日",記録!C12,"") ->  | D9: =IF(記録!B12="水曜日",記録!C12,"") ->  | E9: =IF(記録!B12="木曜日",記録!C12,"") -> 1 | F9: =IF(記録!B12="金曜日",記録!C12,"") ->  | G9: =IF(記録!B12="土曜日",記録!C12,"") ->  | H9: =IF(記録!B12="日曜日",記録!C12,"") -> 
A10: 2週目 | B10: =IF(記録!B13="月曜日",記録!C13,"") ->  | C10: =IF(記録!B13="火曜日",記録!C13,"") ->  | D10: =IF(記録!B13="水曜日",記録!C13,"") ->  | E10: =IF(記録!B13="木曜日",記録!C13,"") ->  | F10: =IF(記録!B13="金曜日",記録!C13,"") -> 4 | G10: =IF(記録!B13="土曜日",記録!C13,"") ->  | H10: =IF(記録!B13="日曜日",記録!C13,"") ->  | I10: =SUM(B10:H16) -> 23 | J10: =I10/7 -> 3.285714286 | K10: =SUM(B10:F16) -> 18 | L10: =K10/5 -> 3.6
B11: =IF(記録!B14="月曜日",記録!C14,"") ->  | C11: =IF(記録!B14="火曜日",記録!C14,"") ->  | D11: =IF(記録!B14="水曜日",記録!C14,"") ->  | E11: =IF(記録!B14="木曜日",記録!C14,"") ->  | F11: =IF(記録!B14="金曜日",記録!C14,"") ->  | G11: =IF(記録!B14="土曜日",記録!C14,"") -> 3 | H11: =IF(記録!B14="日曜日",記録!C14,"") -> 
B12: =IF(記録!B15="月曜日",記録!C15,"") ->  | C12: =IF(記録!B15="火曜日",記録!C15,"") ->  | D12: =IF(記録!B15="水曜日",記録!C15,"") ->  | E12: =IF(記録!B15="木曜日",記録!C15,"") ->  | F12: =IF(記録!B15="金曜日",記録!C15,"") ->  | G12: =IF(記録!B15="土曜日",記録!C15,"") ->  | H12: =IF(記録!B15="日曜日",記録!C15,"") -> 2
B13: =IF(記録!B16="月曜日",記録!C16,"") -> 2 | C13: =IF(記録!B16="火曜日",記録!C16,"") ->  | D13: =IF(記録!B16="水曜日",記録!C16,"") ->  | E13: =IF(記録!B16="木曜日",記録!C16,"") ->  | F13: =IF(記録!B16="金曜日",記録!C16,"") ->  | G13: =IF(記録!B16="土曜日",記録!C16,"") ->  | H13: =IF(記録!B16="日曜日",記録!C16,"") -> 
B14: =IF(記録!B17="月曜日",記録!C17,"") ->  | C14: =IF(記録!B17="火曜日",記録!C17,"") -> 3 | D14: =IF(記録!B17="水曜日",記録!C17,"") ->  | E14: =IF(記録!B17="木曜日",記録!C17,"") ->  | F14: =IF(記録!B17="金曜日",記録!C17,"") ->  | G14: =IF(記録!B17="土曜日",記録!C17,"") ->  | H14: =IF(記録!B17="日曜日",記録!C17,"") -> 
B15: =IF(記録!B18="月曜日",記録!C18,"") ->  | C15: =IF(記録!B18="火曜日",記録!C18,"") ->  | D15: =IF(記録!B18="水曜日",記録!C18,"") -> 4 | E15: =IF(記録!B18="木曜日",記録!C18,"") ->  | F15: =IF(記録!B18="金曜日",記録!C18,"") ->  | G15: =IF(記録!B18="土曜日",記録!C18,"") ->  | H15: =IF(記録!B18="日曜日",記録!C18,"") -> 
B16: =IF(記録!B19="月曜日",記録!C19,"") ->  | C16: =IF(記録!B19="火曜日",記録!C19,"") ->  | D16: =IF(記録!B19="水曜日",記録!C19,"") ->  | E16: =IF(記録!B19="木曜日",記録!C19,"") -> 5 | F16: =IF(記録!B19="金曜日",記録!C19,"") ->  | G16: =IF(記録!B19="土曜日",記録!C19,"") ->  | H16: =IF(記録!B19="日曜日",記録!C19,"") -> 
A17: 3週目 | B17: =IF(記録!B20="月曜日",記録!C20,"") ->  | C17: =IF(記録!B20="火曜日",記録!C20,"") ->  | D17: =IF(記録!B20="水曜日",記録!C20,"") ->  | E17: =IF(記録!B20="木曜日",記録!C20,"") ->  | F17: =IF(記録!B20="金曜日",記録!C20,"") -> 2 | G17: =IF(記録!B20="土曜日",記録!C20,"") ->  | H17: =IF(記録!B20="日曜日",記録!C20,"") ->  | I17: =SUM(B17:H23) -> 39 | J17: =I17/7 -> 5.571428571 | K17: =SUM(B17:F23) -> 26 | L17: =K17/5 -> 5.2
B18: =IF(記録!B21="月曜日",記録!C21,"") ->  | C18: =IF(記録!B21="火曜日",記録!C21,"") ->  | D18: =IF(記録!B21="水曜日",記録!C21,"") ->  | E18: =IF(記録!B21="木曜日",記録!C21,"") ->  | F18: =IF(記録!B21="金曜日",記録!C21,"") ->  | G18: =IF(記録!B21="土曜日",記録!C21,"") -> 7 | H18: =IF(記録!B21="日曜日",記録!C21,"") -> 
B19: =IF(記録!B22="月曜日",記録!C22,"") ->  | C19: =IF(記録!B22="火曜日",記録!C22,"") ->  | D19: =IF(記録!B22="水曜日",記録!C22,"") ->  | E19: =IF(記録!B22="木曜日",記録!C22,"") ->  | F19: =IF(記録!B22="金曜日",記録!C22,"") ->  | G19: =IF(記録!B22="土曜日",記録!C22,"") ->  | H19: =IF(記録!B22="日曜日",記録!C22,"") -> 6
B20: =IF(記録!B23="月曜日",記録!C23,"") -> 5 | C20: =IF(記録!B23="火曜日",記録!C23,"") ->  | D20: =IF(記録!B23="水曜日",記録!C23,"") ->  | E20: =IF(記録!B23="木曜日",記録!C23,"") ->  | F20: =IF(記録!B23="金曜日",記録!C23,"") ->  | G20: =IF(記録!B23="土曜日",記録!C23,"") ->  | H20: =IF(記録!B23="日曜日",記録!C23,"") -> 
B21: =IF(記録!B24="月曜日",記録!C24,"") ->  | C21: =IF(記録!B24="火曜日",記録!C24,"") -> 6 | D21: =IF(記録!B24="水曜日",記録!C24,"") ->  | E21: =IF(記録!B24="木曜日",記録!C24,"") ->  | F21: =IF(記録!B24="金曜日",記録!C24,"") ->  | G21: =IF(記録!B24="土曜日",記録!C24,"") ->  | H21: =IF(記録!B24="日曜日",記録!C24,"") -> 
B22: =IF(記録!B25="月曜日",記録!C25,"") ->  | C22: =IF(記録!B25="火曜日",記録!C25,"") ->  | D22: =IF(記録!B25="水曜日",記録!C25,"") -> 7 | E22: =IF(記録!B25="木曜日",記録!C25,"") ->  | F22: =IF(記録!B25="金曜日",記録!C25,"") ->  | G22: =IF(記録!B25="土曜日",記録!C25,"") ->  | H22: =IF(記録!B25="日曜日",記録!C25,"") -> 
B23: =IF(記録!B26="月曜日",記録!C26,"") ->  | C23: =IF(記録!B26="火曜日",記録!C26,"") ->  | D23: =IF(記録!B26="水曜日",記録!C26,"") ->  | E23: =IF(記録!B26="木曜日",記録!C26,"") -> 6 | F23: =IF(記録!B26="金曜日",記録!C26,"") ->  | G23: =IF(記録!B26="土曜日",記録!C26,"") ->  | H23: =IF(記録!B26="日曜日",記録!C26,"") -> 
A24: 4週目 | B24: =IF(記録!B27="月曜日",記録!C27,"") ->  | C24: =IF(記録!B27="火曜日",記録!C27,"") ->  | D24: =IF(記録!B27="水曜日",記録!C27,"") ->  | E24: =IF(記録!B27="木曜日",記録!C27,"") ->  | F24: =IF(記録!B27="金曜日",記録!C27,"") -> 7 | G24: =IF(記録!B27="土曜日",記録!C27,"") ->  | H24: =IF(記録!B27="日曜日",記録!C27,"") ->  | I24: =SUM(B24:H30) -> 69 | J24: =I24/7 -> 9.857142857 | K24: =SUM(B24:F30) -> 51 | L24: =K24/5 -> 10.2
B25: =IF(記録!B28="月曜日",記録!C28,"") ->  | C25: =IF(記録!B28="火曜日",記録!C28,"") ->  | D25: =IF(記録!B28="水曜日",記録!C28,"") ->  | E25: =IF(記録!B28="木曜日",記録!C28,"") ->  | F25: =IF(記録!B28="金曜日",記録!C28,"") ->  | G25: =IF(記録!B28="土曜日",記録!C28,"") -> 7 | H25: =IF(記録!B28="日曜日",記録!C28,"") -> 
B26: =IF(記録!B29="月曜日",記録!C29,"") ->  | C26: =IF(記録!B29="火曜日",記録!C29,"") ->  | D26: =IF(記録!B29="水曜日",記録!C29,"") ->  | E26: =IF(記録!B29="木曜日",記録!C29,"") ->  | F26: =IF(記録!B29="金曜日",記録!C29,"") ->  | G26: =IF(記録!B29="土曜日",記録!C29,"") ->  | H26: =IF(記録!B29="日曜日",記録!C29,"") -> 11
B27: =IF(記録!B30="月曜日",記録!C30,"") -> 8 | C27: =IF(記録!B30="火曜日",記録!C30,"") ->  | D27: =IF(記録!B30="水曜日",記録!C30,"") ->  | E27: =IF(記録!B30="木曜日",記録!C30,"") ->  | F27: =IF(記録!B30="金曜日",記録!C30,"") ->  | G27: =IF(記録!B30="土曜日",記録!C30,"") ->  | H27: =IF(記録!B30="日曜日",記録!C30,"") -> 
B28: =IF(記録!B31="月曜日",記録!C31,"") ->  | C28: =IF(記録!B31="火曜日",記録!C31,"") -> 12 | D28: =IF(記録!B31="水曜日",記録!C31,"") ->  | E28: =IF(記録!B31="木曜日",記録!C31,"") ->  | F28: =IF(記録!B31="金曜日",記録!C31,"") ->  | G28: =IF(記録!B31="土曜日",記録!C31,"") ->  | H28: =IF(記録!B31="日曜日",記録!C31,"") -> 
B29: =IF(記録!B32="月曜日",記録!C32,"") ->  | C29: =IF(記録!B32="火曜日",記録!C32,"") ->  | D29: =IF(記録!B32="水曜日",記録!C32,"") -> 13 | E29: =IF(記録!B32="木曜日",記録!C32,"") ->  | F29: =IF(記録!B32="金曜日",記録!C32,"") ->  | G29: =IF(記録!B32="土曜日",記録!C32,"") ->  | H29: =IF(記録!B32="日曜日",記録!C32,"") -> 
B30: =IF(記録!B33="月曜日",記録!C33,"") ->  | C30: =IF(記録!B33="火曜日",記録!C33,"") ->  | D30: =IF(記録!B33="水曜日",記録!C33,"") ->  | E30: =IF(記録!B33="木曜日",記録!C33,"") -> 11 | F30: =IF(記録!B33="金曜日",記録!C33,"") ->  | G30: =IF(記録!B33="土曜日",記録!C33,"") ->  | H30: =IF(記録!B33="日曜日",記録!C33,"") -> 
A31: 5週目 | B31: =IF(記録!B34="月曜日",記録!C34,"") ->  | C31: =IF(記録!B34="火曜日",記録!C34,"") ->  | D31: =IF(記録!B34="水曜日",記録!C34,"") ->  | E31: =IF(記録!B34="木曜日",記録!C34,"") ->  | F31: =IF(記録!B34="金曜日",記録!C34,"") -> 12 | G31: =IF(記録!B34="土曜日",記録!C34,"") ->  | H31: =IF(記録!B34="日曜日",記録!C34,"") ->  | I31: =SUM(B31:H33) -> 39 | J31: =I31/3 -> 13 | K31: =SUM(B31:H33) -> 39 | L31: =K31/3 -> 13
B32: =IF(記録!B35="月曜日",記録!C35,"") ->  | C32: =IF(記録!B35="火曜日",記録!C35,"") ->  | D32: =IF(記録!B35="水曜日",記録!C35,"") ->  | E32: =IF(記録!B35="木曜日",記録!C35,"") ->  | F32: =IF(記録!B35="金曜日",記録!C35,"") ->  | G32: =IF(記録!B35="土曜日",記録!C35,"") -> 13 | H32: =IF(記録!B35="日曜日",記録!C35,"") -> 
B33: =IF(記録!B36="月曜日",記録!C36,"") ->  | C33: =IF(記録!B36="火曜日",記録!C36,"") ->  | D33: =IF(記録!B36="水曜日",記録!C36,"") ->  | E33: =IF(記録!B36="木曜日",記録!C36,"") ->  | F33: =IF(記録!B36="金曜日",記録!C36,"") ->  | G33: =IF(記録!B36="土曜日",記録!C36,"") ->  | H33: =IF(記録!B36="日曜日",記録!C36,"") -> 14
A34: 曜日合計 | B34: =SUM(B3:B33) -> 17 | C34: 24 | D34: 25 | E34: 23 | F34: 26 | G34: 32 | H34: 34
B36: =IF(記録!B39="月曜日",記録!C39,"") ->  | C36: =IF(記録!B39="火曜日",記録!C39,"") ->  | D36: =IF(記録!B39="水曜日",記録!C39,"") ->  | E36: =IF(記録!B39="木曜日",記録!C39,"") ->  | F36: =IF(記録!B39="金曜日",記録!C39,"") ->  | G36: =IF(記録!B39="土曜日",記録!C39,"") ->  | H36: =IF(記録!B39="日曜日",記録!C39,"") -> 
C37: =IF(記録!B40="火曜日",記録!C40,"") ->  | E37: =IF(記録!B40="木曜日",記録!C40,"") ->  | F37: =IF(記録!B40="金曜日",記録!C40,"") ->  | G37: =IF(記録!B40="土曜日",記録!C40,"") ->  | H37: =IF(記録!B40="日曜日",記録!C40,"") -> 
C38: =IF(記録!B41="火曜日",記録!C41,"") ->  | H38: =IF(記録!B41="日曜日",記録!C41,"") -> 
H39: =IF(記録!B42="日曜日",記録!C42,"") -> 

Sheet 平均と傾向
A1: グラフの読み方はこちら | D1: 【記録】に移動
A2: 日付 | B2: BL | C2: BL平均 | D2: ① | E2: ①平均 | F2: ② | G2: ②平均 | H2: ③ | I2: ③平均
A3: =(記録!A6) -> 2021-10-01 | B3: =記録!W6 -> 1 | C3: =AVERAGEIF($B$3:$B$33,">0") -> 1.571428571 | D3: =記録!X6 ->  | E3: =AVERAGEIF($D$3:$D$33,">0") -> 3.125 | F3: =記録!Y6 ->  | G3: =AVERAGEIF($F$3:$F$33,">0") -> 6.375 | H3: =記録!Z6 ->  | I3: =AVERAGEIF($H$3:$H$33,">0") -> 11.75
A4: =(記録!A7) -> 2021-10-02 | B4: =記録!W7 -> 2 | C4: =AVERAGEIF($B$3:$B$33,">0") -> 1.571428571 | D4: =記録!X7 ->  | E4: =AVERAGEIF($D$3:$D$33,">0") -> 3.125 | F4: =記録!Y7 ->  | G4: =AVERAGEIF($F$3:$F$33,">0") -> 6.375 | H4: =記録!Z7 ->  | I4: =AVERAGEIF($H$3:$H$33,">0") -> 11.75
A5: =(記録!A8) -> 2021-10-03 | B5: =記録!W8 -> 1 | C5: 1.571428571 | D5: =記録!X8 ->  | E5: 3.125 | F5: =記録!Y8 ->  | G5: 6.375 | H5: =記録!Z8 ->  | I5: 11.75
A6: =(記録!A9) -> 2021-10-04 | B6: =記録!W9 -> 2 | C6: 1.571428571 | D6: =記録!X9 ->  | E6: 3.125 | F6: =記録!Y9 ->  | G6: 6.375 | H6: =記録!Z9 ->  | I6: 11.75
A7: =(記録!A10) -> 2021-10-05 | B7: =記録!W10 -> 3 | C7: 1.571428571 | D7: =記録!X10 ->  | E7: 3.125 | F7: =記録!Y10 ->  | G7: 6.375 | H7: =記録!Z10 ->  | I7: 11.75
A8: =(記録!A11) -> 2021-10-06 | B8: =記録!W11 -> 1 | C8: 1.571428571 | D8: =記録!X11 ->  | E8: 3.125 | F8: =記録!Y11 ->  | G8: 6.375 | H8: =記録!Z11 ->  | I8: 11.75
A9: =(記録!A12) -> 2021-10-07 | B9: =記録!W12 -> 1 | C9: 1.571428571 | D9: =記録!X12 ->  | E9: 3.125 | F9: =記録!Y12 ->  | G9: 6.375 | H9: =記録!Z12 ->  | I9: 11.75
A10: =(記録!A13) -> 2021-10-08 | B10: =記録!W13 ->  | C10: 1.571428571 | D10: =記録!X13 -> 4 | E10: 3.125 | F10: =記録!Y13 ->  | G10: 6.375 | H10: =記録!Z13 ->  | I10: 11.75
A11: =(記録!A14) -> 2021-10-09 | B11: =記録!W14 ->  | C11: 1.571428571 | D11: =記録!X14 -> 3 | E11: 3.125 | F11: =記録!Y14 ->  | G11: 6.375 | H11: =記録!Z14 ->  | I11: 11.75
A12: =(記録!A15) -> 2021-10-10 | B12: =記録!W15 ->  | C12: 1.571428571 | D12: =記録!X15 -> 2 | E12: 3.125 | F12: =記録!Y15 ->  | G12: 6.375 | H12: =記録!Z15 ->  | I12: 11.75
A13: =(記録!A16) -> 2021-10-11 | B13: =記録!W16 ->  | C13: 1.571428571 | D13: =記録!X16 -> 2 | E13: 3.125 | F13: =記録!Y16 ->  | G13: 6.375 | H13: =記録!Z16 ->  | I13: 11.75
A14: =(記録!A17) -> 2021-10-12 | B14: =記録!W17 ->  | C14: 1.571428571 | D14: =記録!X17 -> 3 | E14: 3.125 | F14: =記録!Y17 ->  | G14: 6.375 | H14: =記録!Z17 ->  | I14: 11.75
A15: =(記録!A18) -> 2021-10-13 | B15: =記録!W18 ->  | C15: 1.571428571 | D15: =記録!X18 -> 4 | E15: 3.125 | F15: =記録!Y18 ->  | G15: 6.375 | H15: =記録!Z18 ->  | I15: 11.75
A16: =(記録!A19) -> 2021-10-14 | B16: =記録!W19 ->  | C16: 1.571428571 | D16: =記録!X19 -> 5 | E16: 3.125 | F16: =記録!Y19 ->  | G16: 6.375 | H16: =記録!Z19 ->  | I16: 11.75
A17: =(記録!A20) -> 2021-10-15 | B17: =記録!W20 ->  | C17: 1.571428571 | D17: =記録!X20 -> 2 | E17: 3.125 | F17: =記録!Y20 ->  | G17: 6.375 | H17: =記録!Z20 ->  | I17: 11.75
A18: =(記録!A21) -> 2021-10-16 | B18: =記録!W21 ->  | C18: 1.571428571 | D18: =記録!X21 ->  | E18: 3.125 | F18: =記録!Y21 -> 7 | G18: 6.375 | H18: =記録!Z21 ->  | I18: 11.75
A19: =(記録!A22) -> 2021-10-17 | B19: =記録!W22 ->  | C19: 1.571428571 | D19: =記録!X22 ->  | E19: 3.125 | F19: =記録!Y22 -> 6 | G19: 6.375 | H19: =記録!Z22 ->  | I19: 11.75
A20: =(記録!A23) -> 2021-10-18 | B20: =記録!W23 ->  | C20: 1.571428571 | D20: =記録!X23 ->  | E20: 3.125 | F20: =記録!Y23 -> 5 | G20: 6.375 | H20: =記録!Z23 ->  | I20: 11.75
A21: =(記録!A24) -> 2021-10-19 | B21: =記録!W24 ->  | C21: 1.571428571 | D21: =記録!X24 ->  | E21: 3.125 | F21: =記録!Y24 -> 6 | G21: 6.375 | H21: =記録!Z24 ->  | I21: 11.75
A22: =(記録!A25) -> 2021-10-20 | B22: =記録!W25 ->  | C22: 1.571428571 | D22: =記録!X25 ->  | E22: 3.125 | F22: =記録!Y25 -> 7 | G22: 6.375 | H22: =記録!Z25 ->  | I22: 11.75
A23: =(記録!A26) -> 2021-10-21 | B23: =記録!W26 ->  | C23: 1.571428571 | D23: =記録!X26 ->  | E23: 3.125 | F23: =記録!Y26 -> 6 | G23: 6.375 | H23: =記録!Z26 ->  | I23: 11.75
A24: =(記録!A27) -> 2021-10-22 | B24: =記録!W27 ->  | C24: 1.571428571 | D24: =記録!X27 ->  | E24: 3.125 | F24: =記録!Y27 -> 7 | G24: 6.375 | H24: =記録!Z27 ->  | I24: 11.75
A25: =(記録!A28) -> 2021-10-23 | B25: =記録!W28 ->  | C25: 1.571428571 | D25: =記録!X28 ->  | E25: 3.125 | F25: =記録!Y28 -> 7 | G25: 6.375 | H25: =記録!Z28 ->  | I25: 11.75
A26: =(記録!A29) -> 2021-10-24 | B26: =記録!W29 ->  | C26: 1.571428571 | D26: =記録!X29 ->  | E26: 3.125 | F26: =記録!Y29 ->  | G26: 6.375 | H26: =記録!Z29 -> 11 | I26: 11.75
A27: =(記録!A30) -> 2021-10-25 | B27: =記録!W30 ->  | C27: 1.571428571 | D27: =記録!X30 ->  | E27: 3.125 | F27: =記録!Y30 ->  | G27: 6.375 | H27: =記録!Z30 -> 8 | I27: 11.75
A28: =(記録!A31) -> 2021-10-26 | B28: =記録!W31 ->  | C28: 1.571428571 | D28: =記録!X31 ->  | E28: 3.125 | F28: =記録!Y31 ->  | G28: 6.375 | H28: =記録!Z31 -> 12 | I28: 11.75
A29: =(記録!A32) -> 2021-10-27 | B29: =記録!W32 ->  | C29: 1.571428571 | D29: =記録!X32 ->  | E29: 3.125 | F29: =記録!Y32 ->  | G29: 6.375 | H29: =記録!Z32 -> 13 | I29: 11.75
A30: =(記録!A33) -> 2021-10-28 | B30: =記録!W33 ->  | C30: 1.571428571 | D30: =記録!X33 ->  | E30: 3.125 | F30: =記録!Y33 ->  | G30: 6.375 | H30: =記録!Z33 -> 11 | I30: 11.75
A31: =(記録!A34) -> 2021-10-29 | B31: =記録!W34 ->  | C31: 1.571428571 | D31: =記録!X34 ->  | E31: 3.125 | F31: =記録!Y34 ->  | G31: 6.375 | H31: =記録!Z34 -> 12 | I31: 11.75
A32: =(記録!A35) -> 2021-10-30 | B32: =記録!W35 ->  | C32: 1.571428571 | D32: =記録!X35 ->  | E32: 3.125 | F32: =記録!Y35 ->  | G32: 6.375 | H32: =記録!Z35 -> 13 | I32: 11.75
A33: =(記録!A36) -> 2021-10-31 | B33: =記録!W36 ->  | C33: 1.571428571 | D33: =記録!X36 ->  | E33: 3.125 | F33: =記録!Y36 ->  | G33: 6.375 | H33: =記録!Z36 -> 14 | I33: 11.75

Sheet 記録を見比べる
A1: 目標とすること【 見本：教員に要求を伝える 】 | G1: 手続き① | H1: 【① 見本：唾はきに無反応 】 | P1: 【時間帯の記録】に移動
G2: 手続き② | H2: 【② 休み時間に好きな活動をたくさんする 】
G3: 手続き③ | H3: 【③ 絵カード交換式コミュニケーションシステムを導入する 】
A4: 記録する行動 | B4: 記録A | C4: 【見本：】 | G4: グラフの読み取り方 | P4: 【（学校）時間割の記録】に移動 | U4: 計算エリア（データを飛ばしてグラフにするので触らないでね）
B5: 記録B | C5: 【見本：】
A6: 日付 | B6: 曜日 | C6: 記録A | D6: 記録内容 | E6: 記録B | F6: 特記事項 | V6: 曜日 | W6: 日付 | X6: BL-A | Y6: BL-B | Z6: =H1&"A" -> 【① 見本：唾はきに無反応 】A | AA6: =H1&"B" -> 【① 見本：唾はきに無反応 】B | AB6: =H2&"A" -> 【② 休み時間に好きな活動をたくさんする 】A | AC6: =H2&"B" -> 【② 休み時間に好きな活動をたくさんする 】B | AD6: =H3&"A" -> 【③ 絵カード交換式コミュニケーションシステムを導入する 】A | AE6: =H3&"B" -> 【③ 絵カード交換式コミュニケーションシステムを導入する 】B
A7: 2021-10-01 | B7: =TEXT(A7,"aaaa") -> 金曜日 | C7: 1 | D7: BL | E7: 4 | V7: =(B7) -> 金曜日 | W7: =IF(テーブル14[[#This Row],[日付]]<>"",テーブル14[[#This Row],[日付]],"") -> 2021-10-01 | X7: =IF(D7="BL",テーブル14[[#This Row],[記録A]],NA()) -> 1 | Y7: =IF(D7="BL",テーブル14[[#This Row],[記録B]],NA()) -> 4 | Z7: =IF(D7="①",テーブル14[[#This Row],[記録A]],NA() ) ->  | AA7: =IF(D7="①",テーブル14[[#This Row],[記録B]],NA() ) ->  | AB7: =IF(D7="②",テーブル14[[#This Row],[記録A]],NA() ) ->  | AC7: =IF(D7="②",テーブル14[[#This Row],[記録B]],NA() ) ->  | AD7: =IF(D7="③",テーブル14[[#This Row],[記録A]],NA() ) ->  | AE7: =IF(D7="③",テーブル14[[#This Row],[記録B]],NA() ) -> 
A8: 2021-10-02 | B8: =TEXT(A8,"aaaa") -> 土曜日 | C8: 0 | D8: BL | E8: 2 | V8: 土曜日 | W8: =IF(テーブル14[[#This Row],[日付]]<>"",テーブル14[[#This Row],[日付]],"") -> 2021-10-02 | X8: =IF(D8="BL",テーブル14[[#This Row],[記録A]],NA()) -> 0 | Y8: =IF(D8="BL",テーブル14[[#This Row],[記録B]],NA()) -> 2 | Z8: =IF(D8="①",テーブル14[[#This Row],[記録A]],NA() ) ->  | AA8: =IF(D8="①",テーブル14[[#This Row],[記録B]],NA() ) ->  | AB8: =IF(D8="②",テーブル14[[#This Row],[記録A]],NA() ) ->  | AC8: =IF(D8="②",テーブル14[[#This Row],[記録B]],NA() ) ->  | AD8: =IF(D8="③",テーブル14[[#This Row],[記録A]],NA() ) ->  | AE8: =IF(D8="③",テーブル14[[#This Row],[記録B]],NA() ) -> 
A9: 2021-10-03 | B9: 日曜日 | C9: 1 | D9: BL | E9: 3 | V9: 日曜日 | W9: =IF(テーブル14[[#This Row],[日付]]<>"",テーブル14[[#This Row],[日付]],"") -> 2021-10-03 | X9: =IF(D9="BL",テーブル14[[#This Row],[記録A]],NA()) -> 1 | Y9: =IF(D9="BL",テーブル14[[#This Row],[記録B]],NA()) -> 3 | Z9: =IF(D9="①",テーブル14[[#This Row],[記録A]],NA() ) ->  | AA9: =IF(D9="①",テーブル14[[#This Row],[記録B]],NA() ) ->  | AB9: =IF(D9="②",テーブル14[[#This Row],[記録A]],NA() ) ->  | AC9: =IF(D9="②",テーブル14[[#This Row],[記録B]],NA() ) ->  | AD9: =IF(D9="③",テーブル14[[#This Row],[記録A]],NA() ) ->  | AE9: =IF(D9="③",テーブル14[[#This Row],[記録B]],NA() ) -> 
A10: 2021-10-04 | B10: 月曜日 | C10: 0 | D10: BL | E10: 3 | V10: 月曜日 | W10: =IF(テーブル14[[#This Row],[日付]]<>"",テーブル14[[#This Row],[日付]],"") -> 2021-10-04 | X10: =IF(D10="BL",テーブル14[[#This Row],[記録A]],NA()) -> 0 | Y10: =IF(D10="BL",テーブル14[[#This Row],[記録B]],NA()) -> 3 | Z10: =IF(D10="①",テーブル14[[#This Row],[記録A]],NA() ) ->  | AA10: =IF(D10="①",テーブル14[[#This Row],[記録B]],NA() ) ->  | AB10: =IF(D10="②",テーブル14[[#This Row],[記録A]],NA() ) ->  | AC10: =IF(D10="②",テーブル14[[#This Row],[記録B]],NA() ) ->  | AD10: =IF(D10="③",テーブル14[[#This Row],[記録A]],NA() ) ->  | AE10: =IF(D10="③",テーブル14[[#This Row],[記録B]],NA() ) -> 
A11: 2021-10-05 | B11: 火曜日 | C11: 0 | D11: BL | E11: 4 | V11: 火曜日 | W11: =IF(テーブル14[[#This Row],[日付]]<>"",テーブル14[[#This Row],[日付]],"") -> 2021-10-05 | X11: =IF(D11="BL",テーブル14[[#This Row],[記録A]],NA()) -> 0 | Y11: =IF(D11="BL",テーブル14[[#This Row],[記録B]],NA()) -> 4 | Z11: =IF(D11="①",テーブル14[[#This Row],[記録A]],NA() ) ->  | AA11: =IF(D11="①",テーブル14[[#This Row],[記録B]],NA() ) ->  | AB11: =IF(D11="②",テーブル14[[#This Row],[記録A]],NA() ) ->  | AC11: =IF(D11="②",テーブル14[[#This Row],[記録B]],NA() ) ->  | AD11: =IF(D11="③",テーブル14[[#This Row],[記録A]],NA() ) ->  | AE11: =IF(D11="③",テーブル14[[#This Row],[記録B]],NA() ) -> 
A12: 2021-10-06 | B12: 水曜日 | C12: 1 | D12: BL | E12: 3 | V12: 水曜日 | W12: =IF(テーブル14[[#This Row],[日付]]<>"",テーブル14[[#This Row],[日付]],"") -> 2021-10-06 | X12: =IF(D12="BL",テーブル14[[#This Row],[記録A]],NA()) -> 1 | Y12: =IF(D12="BL",テーブル14[[#This Row],[記録B]],NA()) -> 3 | Z12: =IF(D12="①",テーブル14[[#This Row],[記録A]],NA() ) ->  | AA12: =IF(D12="①",テーブル14[[#This Row],[記録B]],NA() ) ->  | AB12: =IF(D12="②",テーブル14[[#This Row],[記録A]],NA() ) ->  | AC12: =IF(D12="②",テーブル14[[#This Row],[記録B]],NA() ) ->  | AD12: =IF(D12="③",テーブル14[[#This Row],[記録A]],NA() ) ->  | AE12: =IF(D12="③",テーブル14[[#This Row],[記録B]],NA() ) -> 
A13: 2021-10-07 | B13: 木曜日 | C13: 1 | D13: BL | E13: 3 | V13: 木曜日 | W13: =IF(テーブル14[[#This Row],[日付]]<>"",テーブル14[[#This Row],[日付]],"") -> 2021-10-07 | X13: =IF(D13="BL",テーブル14[[#This Row],[記録A]],NA()) -> 1 | Y13: =IF(D13="BL",テーブル14[[#This Row],[記録B]],NA()) -> 3 | Z13: =IF(D13="①",テーブル14[[#This Row],[記録A]],NA() ) ->  | AA13: =IF(D13="①",テーブル14[[#This Row],[記録B]],NA() ) ->  | AB13: =IF(D13="②",テーブル14[[#This Row],[記録A]],NA() ) ->  | AC13: =IF(D13="②",テーブル14[[#This Row],[記録B]],NA() ) ->  | AD13: =IF(D13="③",テーブル14[[#This Row],[記録A]],NA() ) ->  | AE13: =IF(D13="③",テーブル14[[#This Row],[記録B]],NA() ) -> 
A14: 2021-10-08 | B14: 金曜日 | C14: 2 | D14: ① | E14: 8 | V14: 金曜日 | W14: =IF(テーブル14[[#This Row],[日付]]<>"",テーブル14[[#This Row],[日付]],"") -> 2021-10-08 | X14: =IF(D14="BL",テーブル14[[#This Row],[記録A]],NA()) ->  | Y14: =IF(D14="BL",テーブル14[[#This Row],[記録B]],NA()) ->  | Z14: =IF(D14="①",テーブル14[[#This Row],[記録A]],NA() ) -> 2 | AA14: =IF(D14="①",テーブル14[[#This Row],[記録B]],NA() ) -> 8 | AB14: =IF(D14="②",テーブル14[[#This Row],[記録A]],NA() ) ->  | AC14: =IF(D14="②",テーブル14[[#This Row],[記録B]],NA() ) ->  | AD14: =IF(D14="③",テーブル14[[#This Row],[記録A]],NA() ) ->  | AE14: =IF(D14="③",テーブル14[[#This Row],[記録B]],NA() ) -> 
A15: 2021-10-09 | B15: 土曜日 | C15: 2 | D15: ① | E15: 3 | V15: 土曜日 | W15: =IF(テーブル14[[#This Row],[日付]]<>"",テーブル14[[#This Row],[日付]],"") -> 2021-10-09 | X15: =IF(D15="BL",テーブル14[[#This Row],[記録A]],NA()) ->  | Y15: =IF(D15="BL",テーブル14[[#This Row],[記録B]],NA()) ->  | Z15: =IF(D15="①",テーブル14[[#This Row],[記録A]],NA() ) -> 2 | AA15: =IF(D15="①",テーブル14[[#This Row],[記録B]],NA() ) -> 3 | AB15: =IF(D15="②",テーブル14[[#This Row],[記録A]],NA() ) ->  | AC15: =IF(D15="②",テーブル14[[#This Row],[記録B]],NA() ) ->  | AD15: =IF(D15="③",テーブル14[[#This Row],[記録A]],NA() ) ->  | AE15: =IF(D15="③",テーブル14[[#This Row],[記録B]],NA() ) -> 
A16: 2021-10-10 | B16: 日曜日 | C16: 0 | D16: ① | E16: 3 | V16: 日曜日 | W16: =IF(テーブル14[[#This Row],[日付]]<>"",テーブル14[[#This Row],[日付]],"") -> 2021-10-10 | X16: =IF(D16="BL",テーブル14[[#This Row],[記録A]],NA()) ->  | Y16: =IF(D16="BL",テーブル14[[#This Row],[記録B]],NA()) ->  | Z16: =IF(D16="①",テーブル14[[#This Row],[記録A]],NA() ) -> 0 | AA16: =IF(D16="①",テーブル14[[#This Row],[記録B]],NA() ) -> 3 | AB16: =IF(D16="②",テーブル14[[#This Row],[記録A]],NA() ) ->  | AC16: =IF(D16="②",テーブル14[[#This Row],[記録B]],NA() ) ->  | AD16: =IF(D16="③",テーブル14[[#This Row],[記録A]],NA() ) ->  | AE16: =IF(D16="③",テーブル14[[#This Row],[記録B]],NA() ) -> 
A17: 2021-10-11 | B17: 月曜日 | C17: 1 | D17: ① | E17: 4 | V17: 月曜日 | W17: =IF(テーブル14[[#This Row],[日付]]<>"",テーブル14[[#This Row],[日付]],"") -> 2021-10-11 | X17: =IF(D17="BL",テーブル14[[#This Row],[記録A]],NA()) ->  | Y17: =IF(D17="BL",テーブル14[[#This Row],[記録B]],NA()) ->  | Z17: =IF(D17="①",テーブル14[[#This Row],[記録A]],NA() ) -> 1 | AA17: =IF(D17="①",テーブル14[[#This Row],[記録B]],NA() ) -> 4 | AB17: =IF(D17="②",テーブル14[[#This Row],[記録A]],NA() ) ->  | AC17: =IF(D17="②",テーブル14[[#This Row],[記録B]],NA() ) ->  | AD17: =IF(D17="③",テーブル14[[#This Row],[記録A]],NA() ) ->  | AE17: =IF(D17="③",テーブル14[[#This Row],[記録B]],NA() ) -> 
A18: 2021-10-12 | B18: 火曜日 | C18: 0 | D18: ① | E18: 5 | V18: 火曜日 | W18: =IF(テーブル14[[#This Row],[日付]]<>"",テーブル14[[#This Row],[日付]],"") -> 2021-10-12 | X18: =IF(D18="BL",テーブル14[[#This Row],[記録A]],NA()) ->  | Y18: =IF(D18="BL",テーブル14[[#This Row],[記録B]],NA()) ->  | Z18: =IF(D18="①",テーブル14[[#This Row],[記録A]],NA() ) -> 0 | AA18: =IF(D18="①",テーブル14[[#This Row],[記録B]],NA() ) -> 5 | AB18: =IF(D18="②",テーブル14[[#This Row],[記録A]],NA() ) ->  | AC18: =IF(D18="②",テーブル14[[#This Row],[記録B]],NA() ) ->  | AD18: =IF(D18="③",テーブル14[[#This Row],[記録A]],NA() ) ->  | AE18: =IF(D18="③",テーブル14[[#This Row],[記録B]],NA() ) -> 
A19: 2021-10-13 | B19: 水曜日 | C19: 2 | D19: ② | E19: 4 | V19: 水曜日 | W19: =IF(テーブル14[[#This Row],[日付]]<>"",テーブル14[[#This Row],[日付]],"") -> 2021-10-13 | X19: =IF(D19="BL",テーブル14[[#This Row],[記録A]],NA()) ->  | Y19: =IF(D19="BL",テーブル14[[#This Row],[記録B]],NA()) ->  | Z19: =IF(D19="①",テーブル14[[#This Row],[記録A]],NA() ) ->  | AA19: =IF(D19="①",テーブル14[[#This Row],[記録B]],NA() ) ->  | AB19: =IF(D19="②",テーブル14[[#This Row],[記録A]],NA() ) -> 2 | AC19: =IF(D19="②",テーブル14[[#This Row],[記録B]],NA() ) -> 4 | AD19: =IF(D19="③",テーブル14[[#This Row],[記録A]],NA() ) ->  | AE19: =IF(D19="③",テーブル14[[#This Row],[記録B]],NA() ) -> 
A20: 2021-10-14 | B20: 木曜日 | C20: 2 | D20: ② | E20: 1 | V20: 木曜日 | W20: =IF(テーブル14[[#This Row],[日付]]<>"",テーブル14[[#This Row],[日付]],"") -> 2021-10-14 | X20: =IF(D20="BL",テーブル14[[#This Row],[記録A]],NA()) ->  | Y20: =IF(D20="BL",テーブル14[[#This Row],[記録B]],NA()) ->  | Z20: =IF(D20="①",テーブル14[[#This Row],[記録A]],NA() ) ->  | AA20: =IF(D20="①",テーブル14[[#This Row],[記録B]],NA() ) ->  | AB20: =IF(D20="②",テーブル14[[#This Row],[記録A]],NA() ) -> 2 | AC20: =IF(D20="②",テーブル14[[#This Row],[記録B]],NA() ) -> 1 | AD20: =IF(D20="③",テーブル14[[#This Row],[記録A]],NA() ) ->  | AE20: =IF(D20="③",テーブル14[[#This Row],[記録B]],NA() ) -> 
A21: 2021-10-15 | B21: 金曜日 | C21: 1 | D21: ② | E21: 3 | V21: 金曜日 | W21: =IF(テーブル14[[#This Row],[日付]]<>"",テーブル14[[#This Row],[日付]],"") -> 2021-10-15 | X21: =IF(D21="BL",テーブル14[[#This Row],[記録A]],NA()) ->  | Y21: =IF(D21="BL",テーブル14[[#This Row],[記録B]],NA()) ->  | Z21: =IF(D21="①",テーブル14[[#This Row],[記録A]],NA() ) ->  | AA21: =IF(D21="①",テーブル14[[#This Row],[記録B]],NA() ) ->  | AB21: =IF(D21="②",テーブル14[[#This Row],[記録A]],NA() ) -> 1 | AC21: =IF(D21="②",テーブル14[[#This Row],[記録B]],NA() ) -> 3 | AD21: =IF(D21="③",テーブル14[[#This Row],[記録A]],NA() ) ->  | AE21: =IF(D21="③",テーブル14[[#This Row],[記録B]],NA() ) -> 
A22: 2021-10-16 | B22: 土曜日 | C22: 1 | D22: ② | E22: 3 | V22: 土曜日 | W22: =IF(テーブル14[[#This Row],[日付]]<>"",テーブル14[[#This Row],[日付]],"") -> 2021-10-16 | X22: =IF(D22="BL",テーブル14[[#This Row],[記録A]],NA()) ->  | Y22: =IF(D22="BL",テーブル14[[#This Row],[記録B]],NA()) ->  | Z22: =IF(D22="①",テーブル14[[#This Row],[記録A]],NA() ) ->  | AA22: =IF(D22="①",テーブル14[[#This Row],[記録B]],NA() ) ->  | AB22: =IF(D22="②",テーブル14[[#This Row],[記録A]],NA() ) -> 1 | AC22: =IF(D22="②",テーブル14[[#This Row],[記録B]],NA() ) -> 3 | AD22: =IF(D22="③",テーブル14[[#This Row],[記録A]],NA() ) ->  | AE22: =IF(D22="③",テーブル14[[#This Row],[記録B]],NA() ) -> 
A23: 2021-10-17 | B23: 日曜日 | C23: 2 | D23: ② | E23: 2 | V23: 日曜日 | W23: =IF(テーブル14[[#This Row],[日付]]<>"",テーブル14[[#This Row],[日付]],"") -> 2021-10-17 | X23: =IF(D23="BL",テーブル14[[#This Row],[記録A]],NA()) ->  | Y23: =IF(D23="BL",テーブル14[[#This Row],[記録B]],NA()) ->  | Z23: =IF(D23="①",テーブル14[[#This Row],[記録A]],NA() ) ->  | AA23: =IF(D23="①",テーブル14[[#This Row],[記録B]],NA() ) ->  | AB23: =IF(D23="②",テーブル14[[#This Row],[記録A]],NA() ) -> 2 | AC23: =IF(D23="②",テーブル14[[#This Row],[記録B]],NA() ) -> 2 | AD23: =IF(D23="③",テーブル14[[#This Row],[記録A]],NA() ) ->  | AE23: =IF(D23="③",テーブル14[[#This Row],[記録B]],NA() ) -> 
A24: 2021-10-18 | B24: 月曜日 | C24: 1 | D24: ② | E24: 1 | V24: 月曜日 | W24: =IF(テーブル14[[#This Row],[日付]]<>"",テーブル14[[#This Row],[日付]],"") -> 2021-10-18 | X24: =IF(D24="BL",テーブル14[[#This Row],[記録A]],NA()) ->  | Y24: =IF(D24="BL",テーブル14[[#This Row],[記録B]],NA()) ->  | Z24: =IF(D24="①",テーブル14[[#This Row],[記録A]],NA() ) ->  | AA24: =IF(D24="①",テーブル14[[#This Row],[記録B]],NA() ) ->  | AB24: =IF(D24="②",テーブル14[[#This Row],[記録A]],NA() ) -> 1 | AC24: =IF(D24="②",テーブル14[[#This Row],[記録B]],NA() ) -> 1 | AD24: =IF(D24="③",テーブル14[[#This Row],[記録A]],NA() ) ->  | AE24: =IF(D24="③",テーブル14[[#This Row],[記録B]],NA() ) -> 
A25: 2021-10-19 | B25: 火曜日 | C25: 1 | D25: ② | E25: 2 | V25: 火曜日 | W25: =IF(テーブル14[[#This Row],[日付]]<>"",テーブル14[[#This Row],[日付]],"") -> 2021-10-19 | X25: =IF(D25="BL",テーブル14[[#This Row],[記録A]],NA()) ->  | Y25: =IF(D25="BL",テーブル14[[#This Row],[記録B]],NA()) ->  | Z25: =IF(D25="①",テーブル14[[#This Row],[記録A]],NA() ) ->  | AA25: =IF(D25="①",テーブル14[[#This Row],[記録B]],NA() ) ->  | AB25: =IF(D25="②",テーブル14[[#This Row],[記録A]],NA() ) -> 1 | AC25: =IF(D25="②",テーブル14[[#This Row],[記録B]],NA() ) -> 2 | AD25: =IF(D25="③",テーブル14[[#This Row],[記録A]],NA() ) ->  | AE25: =IF(D25="③",テーブル14[[#This Row],[記録B]],NA() ) -> 
A26: 2021-10-20 | B26: 水曜日 | C26: 2 | D26: ③ | E26: 3 | V26: 水曜日 | W26: =IF(テーブル14[[#This Row],[日付]]<>"",テーブル14[[#This Row],[日付]],"") -> 2021-10-20 | X26: =IF(D26="BL",テーブル14[[#This Row],[記録A]],NA()) ->  | Y26: =IF(D26="BL",テーブル14[[#This Row],[記録B]],NA()) ->  | Z26: =IF(D26="①",テーブル14[[#This Row],[記録A]],NA() ) ->  | AA26: =IF(D26="①",テーブル14[[#This Row],[記録B]],NA() ) ->  | AB26: =IF(D26="②",テーブル14[[#This Row],[記録A]],NA() ) ->  | AC26: =IF(D26="②",テーブル14[[#This Row],[記録B]],NA() ) ->  | AD26: =IF(D26="③",テーブル14[[#This Row],[記録A]],NA() ) -> 2 | AE26: =IF(D26="③",テーブル14[[#This Row],[記録B]],NA() ) -> 3
A27: 2021-10-21 | B27: 木曜日 | C27: 4 | D27: ③ | E27: 2 | V27: 木曜日 | W27: =IF(テーブル14[[#This Row],[日付]]<>"",テーブル14[[#This Row],[日付]],"") -> 2021-10-21 | X27: =IF(D27="BL",テーブル14[[#This Row],[記録A]],NA()) ->  | Y27: =IF(D27="BL",テーブル14[[#This Row],[記録B]],NA()) ->  | Z27: =IF(D27="①",テーブル14[[#This Row],[記録A]],NA() ) ->  | AA27: =IF(D27="①",テーブル14[[#This Row],[記録B]],NA() ) ->  | AB27: =IF(D27="②",テーブル14[[#This Row],[記録A]],NA() ) ->  | AC27: =IF(D27="②",テーブル14[[#This Row],[記録B]],NA() ) ->  | AD27: =IF(D27="③",テーブル14[[#This Row],[記録A]],NA() ) -> 4 | AE27: =IF(D27="③",テーブル14[[#This Row],[記録B]],NA() ) -> 2
A28: 2021-10-22 | B28: 金曜日 | C28: 5 | D28: ③ | E28: 3 | V28: 金曜日 | W28: =IF(テーブル14[[#This Row],[日付]]<>"",テーブル14[[#This Row],[日付]],"") -> 2021-10-22 | X28: =IF(D28="BL",テーブル14[[#This Row],[記録A]],NA()) ->  | Y28: =IF(D28="BL",テーブル14[[#This Row],[記録B]],NA()) ->  | Z28: =IF(D28="①",テーブル14[[#This Row],[記録A]],NA() ) ->  | AA28: =IF(D28="①",テーブル14[[#This Row],[記録B]],NA() ) ->  | AB28: =IF(D28="②",テーブル14[[#This Row],[記録A]],NA() ) ->  | AC28: =IF(D28="②",テーブル14[[#This Row],[記録B]],NA() ) ->  | AD28: =IF(D28="③",テーブル14[[#This Row],[記録A]],NA() ) -> 5 | AE28: =IF(D28="③",テーブル14[[#This Row],[記録B]],NA() ) -> 3
A29: 2021-10-23 | B29: 土曜日 | C29: 6 | D29: ③ | E29: 2 | V29: 土曜日 | W29: =IF(テーブル14[[#This Row],[日付]]<>"",テーブル14[[#This Row],[日付]],"") -> 2021-10-23 | X29: =IF(D29="BL",テーブル14[[#This Row],[記録A]],NA()) ->  | Y29: =IF(D29="BL",テーブル14[[#This Row],[記録B]],NA()) ->  | Z29: =IF(D29="①",テーブル14[[#This Row],[記録A]],NA() ) ->  | AA29: =IF(D29="①",テーブル14[[#This Row],[記録B]],NA() ) ->  | AB29: =IF(D29="②",テーブル14[[#This Row],[記録A]],NA() ) ->  | AC29: =IF(D29="②",テーブル14[[#This Row],[記録B]],NA() ) ->  | AD29: =IF(D29="③",テーブル14[[#This Row],[記録A]],NA() ) -> 6 | AE29: =IF(D29="③",テーブル14[[#This Row],[記録B]],NA() ) -> 2
A30: 2021-10-24 | B30: 日曜日 | C30: 7 | D30: ③ | E30: 1 | V30: 日曜日 | W30: =IF(テーブル14[[#This Row],[日付]]<>"",テーブル14[[#This Row],[日付]],"") -> 2021-10-24 | X30: =IF(D30="BL",テーブル14[[#This Row],[記録A]],NA()) ->  | Y30: =IF(D30="BL",テーブル14[[#This Row],[記録B]],NA()) ->  | Z30: =IF(D30="①",テーブル14[[#This Row],[記録A]],NA() ) ->  | AA30: =IF(D30="①",テーブル14[[#This Row],[記録B]],NA() ) ->  | AB30: =IF(D30="②",テーブル14[[#This Row],[記録A]],NA() ) ->  | AC30: =IF(D30="②",テーブル14[[#This Row],[記録B]],NA() ) ->  | AD30: =IF(D30="③",テーブル14[[#This Row],[記録A]],NA() ) -> 7 | AE30: =IF(D30="③",テーブル14[[#This Row],[記録B]],NA() ) -> 1
A31: 2021-10-25 | B31: =TEXT(A31,"aaaa") -> 月曜日 | C31: 7 | D31: ③ | E31: 3 | V31: 月曜日 | W31: =IF(テーブル14[[#This Row],[日付]]<>"",テーブル14[[#This Row],[日付]],"") -> 2021-10-25 | X31: =IF(D31="BL",テーブル14[[#This Row],[記録A]],NA()) ->  | Y31: =IF(D31="BL",テーブル14[[#This Row],[記録B]],NA()) ->  | Z31: =IF(D31="①",テーブル14[[#This Row],[記録A]],NA() ) ->  | AA31: =IF(D31="①",テーブル14[[#This Row],[記録B]],NA() ) ->  | AB31: =IF(D31="②",テーブル14[[#This Row],[記録A]],NA() ) ->  | AC31: =IF(D31="②",テーブル14[[#This Row],[記録B]],NA() ) ->  | AD31: =IF(D31="③",テーブル14[[#This Row],[記録A]],NA() ) -> 7 | AE31: =IF(D31="③",テーブル14[[#This Row],[記録B]],NA() ) -> 3
A32: 2021-10-26 | B32: 火曜日 | C32: 8 | D32: ③ | E32: 2 | V32: 火曜日 | W32: =IF(テーブル14[[#This Row],[日付]]<>"",テーブル14[[#This Row],[日付]],"") -> 2021-10-26 | X32: =IF(D32="BL",テーブル14[[#This Row],[記録A]],NA()) ->  | Y32: =IF(D32="BL",テーブル14[[#This Row],[記録B]],NA()) ->  | Z32: =IF(D32="①",テーブル14[[#This Row],[記録A]],NA() ) ->  | AA32: =IF(D32="①",テーブル14[[#This Row],[記録B]],NA() ) ->  | AB32: =IF(D32="②",テーブル14[[#This Row],[記録A]],NA() ) ->  | AC32: =IF(D32="②",テーブル14[[#This Row],[記録B]],NA() ) ->  | AD32: =IF(D32="③",テーブル14[[#This Row],[記録A]],NA() ) -> 8 | AE32: =IF(D32="③",テーブル14[[#This Row],[記録B]],NA() ) -> 2
A33: 2021-10-27 | B33: 水曜日 | C33: 6 | D33: ③ | E33: 1 | V33: 水曜日 | W33: =IF(テーブル14[[#This Row],[日付]]<>"",テーブル14[[#This Row],[日付]],"") -> 2021-10-27 | X33: =IF(D33="BL",テーブル14[[#This Row],[記録A]],NA()) ->  | Y33: =IF(D33="BL",テーブル14[[#This Row],[記録B]],NA()) ->  | Z33: =IF(D33="①",テーブル14[[#This Row],[記録A]],NA() ) ->  | AA33: =IF(D33="①",テーブル14[[#This Row],[記録B]],NA() ) ->  | AB33: =IF(D33="②",テーブル14[[#This Row],[記録A]],NA() ) ->  | AC33: =IF(D33="②",テーブル14[[#This Row],[記録B]],NA() ) ->  | AD33: =IF(D33="③",テーブル14[[#This Row],[記録A]],NA() ) -> 6 | AE33: =IF(D33="③",テーブル14[[#This Row],[記録B]],NA() ) -> 1
A34: 2021-10-28 | B34: 木曜日 | C34: 8 | D34: ③ | E34: 0 | V34: 木曜日 | W34: =IF(テーブル14[[#This Row],[日付]]<>"",テーブル14[[#This Row],[日付]],"") -> 2021-10-28 | X34: =IF(D34="BL",テーブル14[[#This Row],[記録A]],NA()) ->  | Y34: =IF(D34="BL",テーブル14[[#This Row],[記録B]],NA()) ->  | Z34: =IF(D34="①",テーブル14[[#This Row],[記録A]],NA() ) ->  | AA34: =IF(D34="①",テーブル14[[#This Row],[記録B]],NA() ) ->  | AB34: =IF(D34="②",テーブル14[[#This Row],[記録A]],NA() ) ->  | AC34: =IF(D34="②",テーブル14[[#This Row],[記録B]],NA() ) ->  | AD34: =IF(D34="③",テーブル14[[#This Row],[記録A]],NA() ) -> 8 | AE34: =IF(D34="③",テーブル14[[#This Row],[記録B]],NA() ) -> 0
A35: 2021-10-29 | B35: 金曜日 | C35: 9 | D35: ③ | E35: 0 | V35: 金曜日 | W35: =IF(テーブル14[[#This Row],[日付]]<>"",テーブル14[[#This Row],[日付]],"") -> 2021-10-29 | X35: =IF(D35="BL",テーブル14[[#This Row],[記録A]],NA()) ->  | Y35: =IF(D35="BL",テーブル14[[#This Row],[記録B]],NA()) ->  | Z35: =IF(D35="①",テーブル14[[#This Row],[記録A]],NA() ) ->  | AA35: =IF(D35="①",テーブル14[[#This Row],[記録B]],NA() ) ->  | AB35: =IF(D35="②",テーブル14[[#This Row],[記録A]],NA() ) ->  | AC35: =IF(D35="②",テーブル14[[#This Row],[記録B]],NA() ) ->  | AD35: =IF(D35="③",テーブル14[[#This Row],[記録A]],NA() ) -> 9 | AE35: =IF(D35="③",テーブル14[[#This Row],[記録B]],NA() ) -> 0
A36: 2021-10-30 | B36: 土曜日 | C36: 10 | D36: ③ | E36: 0 | V36: 土曜日 | W36: =IF(テーブル14[[#This Row],[日付]]<>"",テーブル14[[#This Row],[日付]],"") -> 2021-10-30 | X36: =IF(D36="BL",テーブル14[[#This Row],[記録A]],NA()) ->  | Y36: =IF(D36="BL",テーブル14[[#This Row],[記録B]],NA()) ->  | Z36: =IF(D36="①",テーブル14[[#This Row],[記録A]],NA() ) ->  | AA36: =IF(D36="①",テーブル14[[#This Row],[記録B]],NA() ) ->  | AB36: =IF(D36="②",テーブル14[[#This Row],[記録A]],NA() ) ->  | AC36: =IF(D36="②",テーブル14[[#This Row],[記録B]],NA() ) ->  | AD36: =IF(D36="③",テーブル14[[#This Row],[記録A]],NA() ) -> 10 | AE36: =IF(D36="③",テーブル14[[#This Row],[記録B]],NA() ) -> 0
A37: 2021-10-31 | B37: 日曜日 | C37: 12 | D37: ③ | E37: 0 | V37: 日曜日 | W37: =IF(テーブル14[[#This Row],[日付]]<>"",テーブル14[[#This Row],[日付]],"") -> 2021-10-31 | X37: =IF(D37="BL",テーブル14[[#This Row],[記録A]],NA()) ->  | Y37: =IF(D37="BL",テーブル14[[#This Row],[記録B]],NA()) ->  | Z37: =IF(D37="①",テーブル14[[#This Row],[記録A]],NA() ) ->  | AA37: =IF(D37="①",テーブル14[[#This Row],[記録B]],NA() ) ->  | AB37: =IF(D37="②",テーブル14[[#This Row],[記録A]],NA() ) ->  | AC37: =IF(D37="②",テーブル14[[#This Row],[記録B]],NA() ) ->  | AD37: =IF(D37="③",テーブル14[[#This Row],[記録A]],NA() ) -> 12 | AE37: =IF(D37="③",テーブル14[[#This Row],[記録B]],NA() ) -> 0

Sheet 記録 (割合)
A1: 目標とすること【 見本：授業に参加する 】 | G1: 手続き① | H1: 【① 授業の流れを視覚的に示す 】
G2: 手続き② | H2: 【② 活動内容に本人の興味関心に即したものを入れる 】
G3: 手続き③ | H3: 【③ トークンエコノミーの導入 】
A4: 記録する行動【（分子）見本：授業の参加時間】【（分母）見本：その授業全体の時間】 | H4: グラフの読み取り方 | V4: 計算エリア（データを飛ばしてグラフにするので触らないでね）
A5: 日付 | B5: 曜日 | C5: 記録 | D5: 記録内容 | E5: 特記事項 | F5: 記録（分子） | G5: 記録（分母） | U5: 曜日 | V5: 日付 | W5: BL | X5: =H1 -> 【① 授業の流れを視覚的に示す 】 | Y5: =H2 -> 【② 活動内容に本人の興味関心に即したものを入れる 】 | Z5: =H3 -> 【③ トークンエコノミーの導入 】
A6: 2021-10-01 | B6: =TEXT(A6,"aaaa") -> 金曜日 | C6: =F6/G6 -> 0.036 | D6: BL | F6: 1.8 | G6: 50 | U6: =(B6) -> 金曜日 | V6: =IF(テーブル120[[#This Row],[日付]]<>"",テーブル120[[#This Row],[日付]],"") -> 2021-10-01 | W6: =IF(D6="BL",テーブル120[[#This Row],[記録]],NA()) -> 0.036 | X6: =IF(D6="①",テーブル120[[#This Row],[記録]],NA() ) ->  | Y6: =IF(D6="②",テーブル120[[#This Row],[記録]],NA() ) ->  | Z6: =IF(D6="③",テーブル120[[#This Row],[記録]],NA() ) -> 
A7: 2021-10-02 | B7: =TEXT(A7,"aaaa") -> 土曜日 | C7: =F7/G7 -> 0.24 | D7: BL | F7: 12 | G7: 50 | U7: 土曜日 | V7: =IF(テーブル120[[#This Row],[日付]]<>"",テーブル120[[#This Row],[日付]],"") -> 2021-10-02 | W7: =IF(D7="BL",テーブル120[[#This Row],[記録]],NA()) -> 0.24 | X7: =IF(D7="①",テーブル120[[#This Row],[記録]],NA() ) ->  | Y7: =IF(D7="②",テーブル120[[#This Row],[記録]],NA() ) ->  | Z7: =IF(D7="③",テーブル120[[#This Row],[記録]],NA() ) -> 
A8: 2021-10-03 | B8: 日曜日 | C8: 0.3 | D8: ① | F8: 15 | G8: 50 | U8: 日曜日 | V8: =IF(テーブル120[[#This Row],[日付]]<>"",テーブル120[[#This Row],[日付]],"") -> 2021-10-03 | W8: =IF(D8="BL",テーブル120[[#This Row],[記録]],NA()) ->  | X8: =IF(D8="①",テーブル120[[#This Row],[記録]],NA() ) -> 0.3 | Y8: =IF(D8="②",テーブル120[[#This Row],[記録]],NA() ) ->  | Z8: =IF(D8="③",テーブル120[[#This Row],[記録]],NA() ) -> 
A9: 2021-10-04 | B9: 月曜日 | C9: 0.1 | D9: ① | F9: 5 | G9: 50 | P9: 【時間帯の記録】に移動 | U9: 月曜日 | V9: =IF(テーブル120[[#This Row],[日付]]<>"",テーブル120[[#This Row],[日付]],"") -> 2021-10-04 | W9: =IF(D9="BL",テーブル120[[#This Row],[記録]],NA()) ->  | X9: =IF(D9="①",テーブル120[[#This Row],[記録]],NA() ) -> 0.1 | Y9: =IF(D9="②",テーブル120[[#This Row],[記録]],NA() ) ->  | Z9: =IF(D9="③",テーブル120[[#This Row],[記録]],NA() ) -> 
A10: 2021-10-05 | B10: 火曜日 | C10: 0.2 | D10: ① | F10: 2 | G10: 10 | U10: 火曜日 | V10: =IF(テーブル120[[#This Row],[日付]]<>"",テーブル120[[#This Row],[日付]],"") -> 2021-10-05 | W10: =IF(D10="BL",テーブル120[[#This Row],[記録]],NA()) ->  | X10: =IF(D10="①",テーブル120[[#This Row],[記録]],NA() ) -> 0.2 | Y10: =IF(D10="②",テーブル120[[#This Row],[記録]],NA() ) ->  | Z10: =IF(D10="③",テーブル120[[#This Row],[記録]],NA() ) -> 
A11: 2021-10-06 | B11: 水曜日 | C11: 0.2 | D11: ① | F11: 2 | G11: 10 | P11: 【（学校）時間割の記録】に移動 | U11: 水曜日 | V11: =IF(テーブル120[[#This Row],[日付]]<>"",テーブル120[[#This Row],[日付]],"") -> 2021-10-06 | W11: =IF(D11="BL",テーブル120[[#This Row],[記録]],NA()) ->  | X11: =IF(D11="①",テーブル120[[#This Row],[記録]],NA() ) -> 0.2 | Y11: =IF(D11="②",テーブル120[[#This Row],[記録]],NA() ) ->  | Z11: =IF(D11="③",テーブル120[[#This Row],[記録]],NA() ) -> 
A12: 2021-10-07 | B12: 木曜日 | C12: 0.4 | D12: ① | F12: 4 | G12: 10 | U12: 木曜日 | V12: =IF(テーブル120[[#This Row],[日付]]<>"",テーブル120[[#This Row],[日付]],"") -> 2021-10-07 | W12: =IF(D12="BL",テーブル120[[#This Row],[記録]],NA()) ->  | X12: =IF(D12="①",テーブル120[[#This Row],[記録]],NA() ) -> 0.4 | Y12: =IF(D12="②",テーブル120[[#This Row],[記録]],NA() ) ->  | Z12: =IF(D12="③",テーブル120[[#This Row],[記録]],NA() ) -> 
A13: 2021-10-08 | B13: 金曜日 | C13: 0.3 | D13: ① | F13: 3 | G13: 10 | U13: 金曜日 | V13: =IF(テーブル120[[#This Row],[日付]]<>"",テーブル120[[#This Row],[日付]],"") -> 2021-10-08 | W13: =IF(D13="BL",テーブル120[[#This Row],[記録]],NA()) ->  | X13: =IF(D13="①",テーブル120[[#This Row],[記録]],NA() ) -> 0.3 | Y13: =IF(D13="②",テーブル120[[#This Row],[記録]],NA() ) ->  | Z13: =IF(D13="③",テーブル120[[#This Row],[記録]],NA() ) -> 
A14: 2021-10-09 | B14: 土曜日 | C14: 0.3 | D14: ② | F14: 3 | G14: 10 | U14: 土曜日 | V14: =IF(テーブル120[[#This Row],[日付]]<>"",テーブル120[[#This Row],[日付]],"") -> 2021-10-09 | W14: =IF(D14="BL",テーブル120[[#This Row],[記録]],NA()) ->  | X14: =IF(D14="①",テーブル120[[#This Row],[記録]],NA() ) ->  | Y14: =IF(D14="②",テーブル120[[#This Row],[記録]],NA() ) -> 0.3 | Z14: =IF(D14="③",テーブル120[[#This Row],[記録]],NA() ) -> 
A15: 2021-10-10 | B15: 日曜日 | C15: 0.4 | D15: ② | F15: 4 | G15: 10 | U15: 日曜日 | V15: =IF(テーブル120[[#This Row],[日付]]<>"",テーブル120[[#This Row],[日付]],"") -> 2021-10-10 | W15: =IF(D15="BL",テーブル120[[#This Row],[記録]],NA()) ->  | X15: =IF(D15="①",テーブル120[[#This Row],[記録]],NA() ) ->  | Y15: =IF(D15="②",テーブル120[[#This Row],[記録]],NA() ) -> 0.4 | Z15: =IF(D15="③",テーブル120[[#This Row],[記録]],NA() ) -> 
A16: 2021-10-11 | B16: 月曜日 | C16: 0.5 | D16: ② | F16: 5 | G16: 10 | U16: 月曜日 | V16: =IF(テーブル120[[#This Row],[日付]]<>"",テーブル120[[#This Row],[日付]],"") -> 2021-10-11 | W16: =IF(D16="BL",テーブル120[[#This Row],[記録]],NA()) ->  | X16: =IF(D16="①",テーブル120[[#This Row],[記録]],NA() ) ->  | Y16: =IF(D16="②",テーブル120[[#This Row],[記録]],NA() ) -> 0.5 | Z16: =IF(D16="③",テーブル120[[#This Row],[記録]],NA() ) -> 
A17: 2021-10-12 | B17: 火曜日 | C17: 0.3 | D17: ② | F17: 3 | G17: 10 | U17: 火曜日 | V17: =IF(テーブル120[[#This Row],[日付]]<>"",テーブル120[[#This Row],[日付]],"") -> 2021-10-12 | W17: =IF(D17="BL",テーブル120[[#This Row],[記録]],NA()) ->  | X17: =IF(D17="①",テーブル120[[#This Row],[記録]],NA() ) ->  | Y17: =IF(D17="②",テーブル120[[#This Row],[記録]],NA() ) -> 0.3 | Z17: =IF(D17="③",テーブル120[[#This Row],[記録]],NA() ) -> 
A18: 2021-10-13 | B18: 水曜日 | C18: 0.2 | D18: ② | F18: 2 | G18: 10 | U18: 水曜日 | V18: =IF(テーブル120[[#This Row],[日付]]<>"",テーブル120[[#This Row],[日付]],"") -> 2021-10-13 | W18: =IF(D18="BL",テーブル120[[#This Row],[記録]],NA()) ->  | X18: =IF(D18="①",テーブル120[[#This Row],[記録]],NA() ) ->  | Y18: =IF(D18="②",テーブル120[[#This Row],[記録]],NA() ) -> 0.2 | Z18: =IF(D18="③",テーブル120[[#This Row],[記録]],NA() ) -> 
A19: 2021-10-14 | B19: 木曜日 | C19: 0.25 | D19: ③ | F19: 5 | G19: 20 | U19: 木曜日 | V19: =IF(テーブル120[[#This Row],[日付]]<>"",テーブル120[[#This Row],[日付]],"") -> 2021-10-14 | W19: =IF(D19="BL",テーブル120[[#This Row],[記録]],NA()) ->  | X19: =IF(D19="①",テーブル120[[#This Row],[記録]],NA() ) ->  | Y19: =IF(D19="②",テーブル120[[#This Row],[記録]],NA() ) ->  | Z19: =IF(D19="③",テーブル120[[#This Row],[記録]],NA() ) -> 0.25
A20: 2021-10-15 | B20: 金曜日 | C20: 0.25 | D20: ③ | F20: 5 | G20: 20 | U20: 金曜日 | V20: =IF(テーブル120[[#This Row],[日付]]<>"",テーブル120[[#This Row],[日付]],"") -> 2021-10-15 | W20: =IF(D20="BL",テーブル120[[#This Row],[記録]],NA()) ->  | X20: =IF(D20="①",テーブル120[[#This Row],[記録]],NA() ) ->  | Y20: =IF(D20="②",テーブル120[[#This Row],[記録]],NA() ) ->  | Z20: =IF(D20="③",テーブル120[[#This Row],[記録]],NA() ) -> 0.25
A21: 2021-10-16 | B21: 土曜日 | C21: 0.15 | D21: ③ | F21: 3 | G21: 20 | U21: 土曜日 | V21: =IF(テーブル120[[#This Row],[日付]]<>"",テーブル120[[#This Row],[日付]],"") -> 2021-10-16 | W21: =IF(D21="BL",テーブル120[[#This Row],[記録]],NA()) ->  | X21: =IF(D21="①",テーブル120[[#This Row],[記録]],NA() ) ->  | Y21: =IF(D21="②",テーブル120[[#This Row],[記録]],NA() ) ->  | Z21: =IF(D21="③",テーブル120[[#This Row],[記録]],NA() ) -> 0.15
A22: 2021-10-17 | B22: 日曜日 | C22: 0.1 | D22: ③ | F22: 2 | G22: 20 | U22: 日曜日 | V22: =IF(テーブル120[[#This Row],[日付]]<>"",テーブル120[[#This Row],[日付]],"") -> 2021-10-17 | W22: =IF(D22="BL",テーブル120[[#This Row],[記録]],NA()) ->  | X22: =IF(D22="①",テーブル120[[#This Row],[記録]],NA() ) ->  | Y22: =IF(D22="②",テーブル120[[#This Row],[記録]],NA() ) ->  | Z22: =IF(D22="③",テーブル120[[#This Row],[記録]],NA() ) -> 0.1
A23: 2021-10-18 | B23: 月曜日 | C23: 0.35 | D23: ③ | F23: 7 | G23: 20 | U23: 月曜日 | V23: =IF(テーブル120[[#This Row],[日付]]<>"",テーブル120[[#This Row],[日付]],"") -> 2021-10-18 | W23: =IF(D23="BL",テーブル120[[#This Row],[記録]],NA()) ->  | X23: =IF(D23="①",テーブル120[[#This Row],[記録]],NA() ) ->  | Y23: =IF(D23="②",テーブル120[[#This Row],[記録]],NA() ) ->  | Z23: =IF(D23="③",テーブル120[[#This Row],[記録]],NA() ) -> 0.35
A24: 2021-10-19 | B24: 火曜日 | C24: 0.4 | D24: ③ | F24: 8 | G24: 20 | U24: 火曜日 | V24: =IF(テーブル120[[#This Row],[日付]]<>"",テーブル120[[#This Row],[日付]],"") -> 2021-10-19 | W24: =IF(D24="BL",テーブル120[[#This Row],[記録]],NA()) ->  | X24: =IF(D24="①",テーブル120[[#This Row],[記録]],NA() ) ->  | Y24: =IF(D24="②",テーブル120[[#This Row],[記録]],NA() ) ->  | Z24: =IF(D24="③",テーブル120[[#This Row],[記録]],NA() ) -> 0.4
A25: 2021-10-20 | B25: 水曜日 | C25: 0.4 | D25: ③ | F25: 8 | G25: 20 | U25: 水曜日 | V25: =IF(テーブル120[[#This Row],[日付]]<>"",テーブル120[[#This Row],[日付]],"") -> 2021-10-20 | W25: =IF(D25="BL",テーブル120[[#This Row],[記録]],NA()) ->  | X25: =IF(D25="①",テーブル120[[#This Row],[記録]],NA() ) ->  | Y25: =IF(D25="②",テーブル120[[#This Row],[記録]],NA() ) ->  | Z25: =IF(D25="③",テーブル120[[#This Row],[記録]],NA() ) -> 0.4
A26: 2021-10-21 | B26: 木曜日 | C26: 0.35 | D26: ③ | F26: 7 | G26: 20 | U26: 木曜日 | V26: =IF(テーブル120[[#This Row],[日付]]<>"",テーブル120[[#This Row],[日付]],"") -> 2021-10-21 | W26: =IF(D26="BL",テーブル120[[#This Row],[記録]],NA()) ->  | X26: =IF(D26="①",テーブル120[[#This Row],[記録]],NA() ) ->  | Y26: =IF(D26="②",テーブル120[[#This Row],[記録]],NA() ) ->  | Z26: =IF(D26="③",テーブル120[[#This Row],[記録]],NA() ) -> 0.35
A27: 2021-10-22 | B27: 金曜日 | C27: 0.5 | D27: ③ | F27: 10 | G27: 20 | U27: 金曜日 | V27: =IF(テーブル120[[#This Row],[日付]]<>"",テーブル120[[#This Row],[日付]],"") -> 2021-10-22 | W27: =IF(D27="BL",テーブル120[[#This Row],[記録]],NA()) ->  | X27: =IF(D27="①",テーブル120[[#This Row],[記録]],NA() ) ->  | Y27: =IF(D27="②",テーブル120[[#This Row],[記録]],NA() ) ->  | Z27: =IF(D27="③",テーブル120[[#This Row],[記録]],NA() ) -> 0.5
A28: 2021-10-23 | B28: 土曜日 | C28: 0.55 | D28: ③ | F28: 11 | G28: 20 | U28: 土曜日 | V28: =IF(テーブル120[[#This Row],[日付]]<>"",テーブル120[[#This Row],[日付]],"") -> 2021-10-23 | W28: =IF(D28="BL",テーブル120[[#This Row],[記録]],NA()) ->  | X28: =IF(D28="①",テーブル120[[#This Row],[記録]],NA() ) ->  | Y28: =IF(D28="②",テーブル120[[#This Row],[記録]],NA() ) ->  | Z28: =IF(D28="③",テーブル120[[#This Row],[記録]],NA() ) -> 0.55
A29: 2021-10-24 | B29: 日曜日 | C29: 0.6 | D29: ③ | F29: 12 | G29: 20 | U29: 日曜日 | V29: =IF(テーブル120[[#This Row],[日付]]<>"",テーブル120[[#This Row],[日付]],"") -> 2021-10-24 | W29: =IF(D29="BL",テーブル120[[#This Row],[記録]],NA()) ->  | X29: =IF(D29="①",テーブル120[[#This Row],[記録]],NA() ) ->  | Y29: =IF(D29="②",テーブル120[[#This Row],[記録]],NA() ) ->  | Z29: =IF(D29="③",テーブル120[[#This Row],[記録]],NA() ) -> 0.6
A30: 2021-10-25 | B30: =TEXT(A30,"aaaa") -> 月曜日 | C30: 0.7 | D30: ③ | F30: 14 | G30: 20 | U30: 月曜日 | V30: =IF(テーブル120[[#This Row],[日付]]<>"",テーブル120[[#This Row],[日付]],"") -> 2021-10-25 | W30: =IF(D30="BL",テーブル120[[#This Row],[記録]],NA()) ->  | X30: =IF(D30="①",テーブル120[[#This Row],[記録]],NA() ) ->  | Y30: =IF(D30="②",テーブル120[[#This Row],[記録]],NA() ) ->  | Z30: =IF(D30="③",テーブル120[[#This Row],[記録]],NA() ) -> 0.7
A31: 2021-10-26 | B31: 火曜日 | C31: 0.75 | D31: ③ | F31: 15 | G31: 20 | U31: 火曜日 | V31: =IF(テーブル120[[#This Row],[日付]]<>"",テーブル120[[#This Row],[日付]],"") -> 2021-10-26 | W31: =IF(D31="BL",テーブル120[[#This Row],[記録]],NA()) ->  | X31: =IF(D31="①",テーブル120[[#This Row],[記録]],NA() ) ->  | Y31: =IF(D31="②",テーブル120[[#This Row],[記録]],NA() ) ->  | Z31: =IF(D31="③",テーブル120[[#This Row],[記録]],NA() ) -> 0.75
A32: 2021-10-27 | B32: 水曜日 | C32: 0.8 | D32: ③ | F32: 16 | G32: 20 | U32: 水曜日 | V32: =IF(テーブル120[[#This Row],[日付]]<>"",テーブル120[[#This Row],[日付]],"") -> 2021-10-27 | W32: =IF(D32="BL",テーブル120[[#This Row],[記録]],NA()) ->  | X32: =IF(D32="①",テーブル120[[#This Row],[記録]],NA() ) ->  | Y32: =IF(D32="②",テーブル120[[#This Row],[記録]],NA() ) ->  | Z32: =IF(D32="③",テーブル120[[#This Row],[記録]],NA() ) -> 0.8
A33: 2021-10-28 | B33: 木曜日 | C33: 0.9 | D33: ③ | F33: 18 | G33: 20 | U33: 木曜日 | V33: =IF(テーブル120[[#This Row],[日付]]<>"",テーブル120[[#This Row],[日付]],"") -> 2021-10-28 | W33: =IF(D33="BL",テーブル120[[#This Row],[記録]],NA()) ->  | X33: =IF(D33="①",テーブル120[[#This Row],[記録]],NA() ) ->  | Y33: =IF(D33="②",テーブル120[[#This Row],[記録]],NA() ) ->  | Z33: =IF(D33="③",テーブル120[[#This Row],[記録]],NA() ) -> 0.9
A34: 2021-10-29 | B34: 金曜日 | C34: 0.95 | D34: ③ | F34: 19 | G34: 20 | U34: 金曜日 | V34: =IF(テーブル120[[#This Row],[日付]]<>"",テーブル120[[#This Row],[日付]],"") -> 2021-10-29 | W34: =IF(D34="BL",テーブル120[[#This Row],[記録]],NA()) ->  | X34: =IF(D34="①",テーブル120[[#This Row],[記録]],NA() ) ->  | Y34: =IF(D34="②",テーブル120[[#This Row],[記録]],NA() ) ->  | Z34: =IF(D34="③",テーブル120[[#This Row],[記録]],NA() ) -> 0.95
A35: 2021-10-30 | B35: 土曜日 | C35: 0.85 | D35: ③ | F35: 17 | G35: 20 | U35: 土曜日 | V35: =IF(テーブル120[[#This Row],[日付]]<>"",テーブル120[[#This Row],[日付]],"") -> 2021-10-30 | W35: =IF(D35="BL",テーブル120[[#This Row],[記録]],NA()) ->  | X35: =IF(D35="①",テーブル120[[#This Row],[記録]],NA() ) ->  | Y35: =IF(D35="②",テーブル120[[#This Row],[記録]],NA() ) ->  | Z35: =IF(D35="③",テーブル120[[#This Row],[記録]],NA() ) -> 0.85
A36: 2021-10-31 | B36: 日曜日 | C36: 1 | D36: ③ | F36: 20 | G36: 20 | U36: 日曜日 | V36: =IF(テーブル120[[#This Row],[日付]]<>"",テーブル120[[#This Row],[日付]],"") -> 2021-10-31 | W36: =IF(D36="BL",テーブル120[[#This Row],[記録]],NA()) ->  | X36: =IF(D36="①",テーブル120[[#This Row],[記録]],NA() ) ->  | Y36: =IF(D36="②",テーブル120[[#This Row],[記録]],NA() ) ->  | Z36: =IF(D36="③",テーブル120[[#This Row],[記録]],NA() ) -> 1

Sheet 時間帯の記録
A1: このページの使い方 | G1: 【記録】に移動 | J1: 【記録を見比べる】に移動
A2: 記録する行動【自傷行動の回数】 | H2: 記録から考えられる仮説【 】
A3: 集計する年月 | C3: 年(20XX) | D3: 2026
C4: 月 | D4: 6
B6: =DATE(D3,D4,1) -> 2026-06-01 | C6: =B6+1 -> 2026-06-02 | D6: =C6+1 -> 2026-06-03 | E6: 2026-06-04 | F6: 2026-06-05 | G6: 2026-06-06 | H6: 2026-06-07 | I6: 2026-06-08 | J6: 2026-06-09 | K6: 2026-06-10 | L6: 2026-06-11 | M6: 2026-06-12 | N6: 2026-06-13 | O6: 2026-06-14 | P6: 2026-06-15 | Q6: 2026-06-16 | R6: 2026-06-17 | S6: 2026-06-18 | T6: 2026-06-19 | U6: 2026-06-20 | V6: 2026-06-21 | W6: 2026-06-22 | X6: 2026-06-23 | Y6: 2026-06-24 | Z6: 2026-06-25 | AA6: 2026-06-26 | AB6: 2026-06-27 | AC6: 2026-06-28 | AD6: 2026-06-29 | AE6: 2026-06-30 | AF6: 2026-07-01
A7: 時間 | B7: =TEXT(B6,"aaaa") -> 月曜日 | C7: =TEXT(C6,"aaaa") -> 火曜日 | D7: =TEXT(D6,"aaaa") -> 水曜日 | E7: 木曜日 | F7: 金曜日 | G7: 土曜日 | H7: 日曜日 | I7: 月曜日 | J7: =TEXT(J6,"aaaa") -> 火曜日 | K7: =TEXT(K6,"aaaa") -> 水曜日 | L7: =TEXT(L6,"aaaa") -> 木曜日 | M7: =TEXT(M6,"aaaa") -> 金曜日 | N7: =TEXT(N6,"aaaa") -> 土曜日 | O7: =TEXT(O6,"aaaa") -> 日曜日 | P7: =TEXT(P6,"aaaa") -> 月曜日 | Q7: =TEXT(Q6,"aaaa") -> 火曜日 | R7: =TEXT(R6,"aaaa") -> 水曜日 | S7: =TEXT(S6,"aaaa") -> 木曜日 | T7: =TEXT(T6,"aaaa") -> 金曜日 | U7: =TEXT(U6,"aaaa") -> 土曜日 | V7: =TEXT(V6,"aaaa") -> 日曜日 | W7: =TEXT(W6,"aaaa") -> 月曜日 | X7: =TEXT(X6,"aaaa") -> 火曜日 | Y7: =TEXT(Y6,"aaaa") -> 水曜日 | Z7: =TEXT(Z6,"aaaa") -> 木曜日 | AA7: =TEXT(AA6,"aaaa") -> 金曜日 | AB7: =TEXT(AB6,"aaaa") -> 土曜日 | AC7: =TEXT(AC6,"aaaa") -> 日曜日 | AD7: =TEXT(AD6,"aaaa") -> 月曜日 | AE7: =TEXT(AE6,"aaaa") -> 火曜日 | AF7: =TEXT(AF6,"aaaa") -> 水曜日
A8: 計 | B8: =SUM(B9:B32) -> 0 | C8: 0 | D8: 4 | E8: 3 | F8: 5 | G8: 2 | H8: 3 | I8: 0 | J8: 0 | K8: 4 | L8: 2 | M8: 6 | N8: 0 | O8: 5 | P8: 1 | Q8: 1 | R8: 3 | S8: 2 | T8: 1 | U8: 10 | V8: 1 | W8: 0 | X8: 0 | Y8: 5 | Z8: 2 | AA8: 4 | AB8: 1 | AC8: 6 | AD8: 1 | AE8: 1 | AF8: 0
A9: 00:00:00
A10: 01:00:00
A11: 02:00:00
A12: 03:00:00
A13: 04:00:00
A14: 05:00:00 | D14: 2 | F14: 1 | U14: 1 | Z14: 1 | AC14: 1
A15: 06:00:00 | E15: 1 | G15: 1 | M15: 1 | AA15: 1 | AE15: 1
A16: 07:00:00 | H16: 1 | M16: 1 | V16: 1 | AC16: 1
A17: 08:00:00 | AB17: 1
A18: 09:00:00 | R18: 1
A19: 10:00:00 | D19: 2 | F19: 2 | K19: 3 | M19: 1 | R19: 2 | T19: 1 | Y19: 4 | AA19: 2
A20: 11:00:00
A21: 12:00:00 | H21: 2 | L21: 1 | P21: 1 | AD21: 1
A22: 13:00:00 | E22: 1 | G22: 1 | L22: 1 | U22: 2 | AC22: 2
A23: 14:00:00 | Q23: 1 | U23: 4
A24: 15:00:00 | E24: 1 | O24: 1 | U24: 2 | Y24: 1 | AC24: 2
A25: 16:00:00 | M25: 3 | S25: 1 | U25: 1
A26: 17:00:00 | F26: 1 | Z26: 1 | AA26: 1
A27: 18:00:00 | O27: 4 | S27: 1
A28: 19:00:00 | F28: 1 | K28: 1
A29: 20:00:00
A30: 21:00:00
A31: 22:00:00
A32: 23:00:00
A50: 時間帯 | B50: =B7 -> 月曜日 | C50: =C7 -> 火曜日 | D50: 水曜日 | E50: 木曜日 | F50: 金曜日 | G50: 土曜日 | H50: 日曜日 | J50: 合計 | K50: %(回/日)
A51: 00:00:00 | B51: =SUM(B9,I9,P9,W9,AD9) -> 0 | C51: =SUM(C9,J9,Q9,X9,AE9) -> 0 | D51: 0 | E51: 0 | F51: 0 | G51: 0 | H51: 0 | J51: =SUM(B51:H74) -> 73 | K51: =J51/DAY(EOMONTH(1,D4-1)) -> 2.433333333
A52: 01:00:00 | B52: =SUM(B10,I10,P10,W10,AD10) -> 0 | C52: =SUM(C10,J10,Q10,X10,AE10) -> 0 | D52: =SUM(D10,K10,R10,Y10,AF10) -> 0 | E52: =SUM(E10,L10,S10,Z10,AG10) -> 0 | F52: =SUM(F10,M10,T10,AA10,AH10) -> 0 | G52: =SUM(G10,N10,U10,AB10,AI10) -> 0 | H52: =SUM(H10,O10,V10,AC10,AJ10) -> 0
A53: 02:00:00 | B53: 0 | C53: 0 | D53: 0 | E53: 0 | F53: 0 | G53: 0 | H53: =SUM(H11,O11,V11,AC11,AJ11) -> 0
A54: 03:00:00 | B54: 0 | C54: 0 | D54: 0 | E54: 0 | F54: 0 | G54: 0 | H54: 0
A55: 04:00:00 | B55: 0 | C55: 0 | D55: 0 | E55: 0 | F55: 0 | G55: 0 | H55: 0
A56: 05:00:00 | B56: 0 | C56: =SUM(C14,J14,Q14,X14,AE14) -> 0 | D56: 2 | E56: 1 | F56: 1 | G56: 1 | H56: 1
A57: 06:00:00 | B57: 0 | C57: 1 | D57: 0 | E57: 1 | F57: 2 | G57: 1 | H57: 0
A58: 07:00:00 | B58: 0 | C58: 0 | D58: 0 | E58: 0 | F58: 1 | G58: 0 | H58: 3
A59: 08:00:00 | B59: 0 | C59: 0 | D59: 0 | E59: 0 | F59: 0 | G59: 1 | H59: 0
A60: 09:00:00 | B60: 0 | C60: 0 | D60: 1 | E60: 0 | F60: 0 | G60: 0 | H60: 0
A61: 10:00:00 | B61: 0 | C61: 0 | D61: 11 | E61: 0 | F61: 6 | G61: 0 | H61: 0
A62: 11:00:00 | B62: 0 | C62: 0 | D62: 0 | E62: 0 | F62: 0 | G62: 0 | H62: 0
A63: 12:00:00 | B63: 2 | C63: =SUM(C21,J21,Q21,X21,AE21) -> 0 | D63: 0 | E63: 1 | F63: 0 | G63: 0 | H63: 2
A64: 13:00:00 | B64: 0 | C64: 0 | D64: 0 | E64: 2 | F64: 0 | G64: 3 | H64: 2
A65: 14:00:00 | B65: 0 | C65: 1 | D65: 0 | E65: 0 | F65: 0 | G65: 4 | H65: 0
A66: 15:00:00 | B66: 0 | C66: 0 | D66: 1 | E66: 1 | F66: 0 | G66: 2 | H66: 3
A67: 16:00:00 | B67: 0 | C67: 0 | D67: 0 | E67: 1 | F67: 3 | G67: 1 | H67: 0
A68: 17:00:00 | B68: 0 | C68: 0 | D68: 0 | E68: 1 | F68: 2 | G68: 0 | H68: 0
A69: 18:00:00 | B69: 0 | C69: 0 | D69: 0 | E69: 1 | F69: 0 | G69: 0 | H69: 4
A70: 19:00:00 | B70: 0 | C70: 0 | D70: 1 | E70: 0 | F70: 1 | G70: 0 | H70: 0
A71: 20:00:00 | B71: 0 | C71: 0 | D71: 0 | E71: 0 | F71: 0 | G71: 0 | H71: 0
A72: 21:00:00 | B72: 0 | C72: 0 | D72: 0 | E72: 0 | F72: 0 | G72: 0 | H72: 0
A73: 22:00:00 | B73: 0 | C73: 0 | D73: 0 | E73: 0 | F73: 0 | G73: 0 | H73: 0
A74: 23:00:00 | B74: 0 | C74: 0 | D74: 0 | E74: 0 | F74: 0 | G74: 0 | H74: 0

Sheet 時間帯の記録 (学校)
A1: このページの使い方 | G1: 【記録】に移動 | J1: 【記録を見比べる】に移動
A2: 記録する行動【パニックの回数】 | H2: 記録から考えられる仮説【 昼食前に多いことから、空腹時に昼食までの見通しが持てていない可能性 】
A3: 集計する年月 | C3: 年(20XX) | D3: 2023
C4: 月 | D4: 1
B6: =DATE(D3,D4,1) -> 2023-01-01 | C6: =B6+1 -> 2023-01-02 | D6: =C6+1 -> 2023-01-03 | E6: 2023-01-04 | F6: 2023-01-05 | G6: 2023-01-06 | H6: 2023-01-07 | I6: 2023-01-08 | J6: 2023-01-09 | K6: 2023-01-10 | L6: 2023-01-11 | M6: 2023-01-12 | N6: 2023-01-13 | O6: 2023-01-14 | P6: 2023-01-15 | Q6: 2023-01-16 | R6: 2023-01-17 | S6: 2023-01-18 | T6: 2023-01-19 | U6: 2023-01-20 | V6: 2023-01-21 | W6: 2023-01-22 | X6: 2023-01-23 | Y6: 2023-01-24 | Z6: 2023-01-25 | AA6: 2023-01-26 | AB6: 2023-01-27 | AC6: 2023-01-28 | AD6: 2023-01-29 | AE6: 2023-01-30 | AF6: 2023-01-31
A7: 時間 | B7: =TEXT(B6,"aaaa") -> 日曜日 | C7: =TEXT(C6,"aaaa") -> 月曜日 | D7: =TEXT(D6,"aaaa") -> 火曜日 | E7: 水曜日 | F7: 木曜日 | G7: 金曜日 | H7: 土曜日 | I7: 日曜日 | J7: 月曜日 | K7: 火曜日 | L7: 水曜日 | M7: 木曜日 | N7: 金曜日 | O7: 土曜日 | P7: 日曜日 | Q7: 月曜日 | R7: 火曜日 | S7: 水曜日 | T7: 木曜日 | U7: 金曜日 | V7: 土曜日 | W7: 日曜日 | X7: 月曜日 | Y7: 火曜日 | Z7: 水曜日 | AA7: 木曜日 | AB7: 金曜日 | AC7: 土曜日 | AD7: 日曜日 | AE7: 月曜日 | AF7: 火曜日
A8: 計 | B8: =SUM(B9:B16) -> 0 | C8: 1 | D8: 2 | E8: 1 | F8: 2 | G8: 5 | H8: 0 | I8: 0 | J8: 0 | K8: 0 | L8: 1 | M8: 1 | N8: 1 | O8: 0 | P8: 0 | Q8: 0 | R8: 0 | S8: 0 | T8: 0 | U8: 0 | V8: 0 | W8: 0 | X8: 0 | Y8: 0 | Z8: 0 | AA8: 0 | AB8: 0 | AC8: 0 | AD8: 0 | AE8: 0 | AF8: 0
A9: 08:00:00
A10: 09:00:00
A11: 10:00:00 | E11: 1
A12: 11:00:00 | D12: 2 | L12: 1
A13: 12:00:00 | C13: 1 | G13: 5 | M13: 1
A14: 13:00:00 | F14: 2 | N14: 1
A15: 14:00:00
A16: 15:00:00
A34: 時間帯 | B34: =B7 -> 日曜日 | C34: 月曜日 | D34: 火曜日 | E34: 水曜日 | F34: 木曜日 | G34: 金曜日 | H34: 土曜日 | J34: 合計 | K34: %(回/日)
A35: 08:00:00 | B35: =SUM(B9,I9,P9,W9,AD9) -> 0 | C35: 0 | D35: 0 | E35: 0 | F35: 0 | G35: 0 | H35: 0 | J35: =SUM(B35:H42) -> 14 | K35: =J35/(DAY(EOMONTH(1,$D$4-1))-(COUNTIF($B$7:$AF$7,"日曜日")+COUNTIF($B$7:$AF$7,"土曜日"))) -> 0.6363636364
A36: 09:00:00 | B36: 0 | C36: 0 | D36: 0 | E36: 0 | F36: 0 | G36: 0 | H36: 0 | K36: ※日数は土日を除いた日数
A37: 10:00:00 | B37: 0 | C37: 0 | D37: 0 | E37: 1 | F37: 0 | G37: 0 | H37: 0
A38: 11:00:00 | B38: 0 | C38: 0 | D38: 2 | E38: 1 | F38: 0 | G38: 0 | H38: 0
A39: 12:00:00 | B39: 0 | C39: 1 | D39: 0 | E39: 0 | F39: 1 | G39: 5 | H39: 0
A40: 13:00:00 | B40: 0 | C40: 0 | D40: 0 | E40: 0 | F40: 2 | G40: 1 | H40: 0
A41: 14:00:00 | B41: 0 | C41: 0 | D41: 0 | E41: 0 | F41: 0 | G41: 0 | H41: 0
A42: 15:00:00 | B42: 0 | C42: 0 | D42: 0 | E42: 0 | F42: 0 | G42: 0 | H42: 0

Sheet 基準を変える
A1: このページの使い方 | H1: おこなうフィードバック【 褒める＆くすぐり 】
I2: 基準 ① | J2: 基準② | K2: 基準③ | L2: 基準④
A3: 目標とすること【連続してさせるペグ差しの数10以上にする】 | H3: 基準値 | I3: 2 | J3: 5 | K3: 7 | L3: 9
A4: 記録する行動【ペグ差しの個数】 3連続基準値達成で次の基準に移行 | I4: グラフの読み取り方 | W4: 計算エリア（データを飛ばしてグラフにするので触らないでね）
A5: 日付 | B5: 曜日 | C5: 記録 | D5: 基準 | E5: 基準値 | F5: 特記事項 | V5: 曜日 | W5: 日付 | X5: 基準① | Y5: 基準値① | Z5: 基準② | AA5: 基準値② | AB5: 基準③ | AC5: 基準値③ | AD5: 基準④ | AE5: 基準値④
A6: 2021-10-01 | B6: =TEXT(A6,"aaaa") -> 金曜日 | C6: 1 | D6: 基準① | E6: =IF(テーブル122[[#This Row],[基準]]="基準①",テーブル23[基準 ①],IF(テーブル122[[#This Row],[基準]]="基準②",テーブル23[基準②],IF(テーブル122[[#This Row],[基準]]="基準③",テーブル23[基準③],テーブル23[基準④]))) -> 2 | V6: =(B6) -> 金曜日 | W6: =IF(テーブル122[[#This Row],[日付]]<>"",テーブル122[[#This Row],[日付]],"") -> 2021-10-01 | X6: =IF(D6="基準①",テーブル122[[#This Row],[記録]],NA()) -> 1 | Y6: =IF(D6="基準①",テーブル122[[#This Row],[基準値]],NA()) -> 2 | Z6: =IF(D6="基準②",テーブル122[[#This Row],[記録]],NA() ) ->  | AA6: =IF(D6="基準②",テーブル122[[#This Row],[基準値]],NA()) ->  | AB6: =IF(D6="基準③",テーブル122[[#This Row],[記録]],NA() ) ->  | AC6: =IF(D6="基準③",テーブル122[[#This Row],[基準値]],NA()) ->  | AD6: =IF(D6="基準④",テーブル122[[#This Row],[記録]],NA() ) ->  | AE6: =IF(D6="基準④",テーブル122[[#This Row],[基準値]],NA()) -> 
A7: 2021-10-02 | B7: =TEXT(A7,"aaaa") -> 土曜日 | C7: 3 | D7: 基準① | E7: =IF(テーブル122[[#This Row],[基準]]="基準①",テーブル23[基準 ①],IF(テーブル122[[#This Row],[基準]]="基準②",テーブル23[基準②],IF(テーブル122[[#This Row],[基準]]="基準③",テーブル23[基準③],テーブル23[基準④]))) -> 2 | V7: 土曜日 | W7: =IF(テーブル122[[#This Row],[日付]]<>"",テーブル122[[#This Row],[日付]],"") -> 2021-10-02 | X7: =IF(D7="基準①",テーブル122[[#This Row],[記録]],NA()) -> 3 | Y7: =IF(D7="基準①",テーブル122[[#This Row],[基準値]],NA()) -> 2 | Z7: =IF(D7="基準②",テーブル122[[#This Row],[記録]],NA() ) ->  | AA7: =IF(D7="基準②",テーブル122[[#This Row],[基準値]],NA()) ->  | AB7: =IF(D7="基準③",テーブル122[[#This Row],[記録]],NA() ) ->  | AC7: =IF(D7="基準③",テーブル122[[#This Row],[基準値]],NA()) ->  | AD7: =IF(D7="基準④",テーブル122[[#This Row],[記録]],NA() ) ->  | AE7: =IF(D7="基準④",テーブル122[[#This Row],[基準値]],NA()) -> 
A8: 2021-10-03 | B8: 日曜日 | C8: 2 | D8: 基準① | E8: =IF(テーブル122[[#This Row],[基準]]="基準①",テーブル23[基準 ①],IF(テーブル122[[#This Row],[基準]]="基準②",テーブル23[基準②],IF(テーブル122[[#This Row],[基準]]="基準③",テーブル23[基準③],テーブル23[基準④]))) -> 2 | V8: 日曜日 | W8: =IF(テーブル122[[#This Row],[日付]]<>"",テーブル122[[#This Row],[日付]],"") -> 2021-10-03 | X8: =IF(D8="基準①",テーブル122[[#This Row],[記録]],NA()) -> 2 | Y8: =IF(D8="基準①",テーブル122[[#This Row],[基準値]],NA()) -> 2 | Z8: =IF(D8="基準②",テーブル122[[#This Row],[記録]],NA() ) ->  | AA8: =IF(D8="基準②",テーブル122[[#This Row],[基準値]],NA()) ->  | AB8: =IF(D8="基準③",テーブル122[[#This Row],[記録]],NA() ) ->  | AC8: =IF(D8="基準③",テーブル122[[#This Row],[基準値]],NA()) ->  | AD8: =IF(D8="基準④",テーブル122[[#This Row],[記録]],NA() ) ->  | AE8: =IF(D8="基準④",テーブル122[[#This Row],[基準値]],NA()) -> 
A9: 2021-10-04 | B9: 月曜日 | C9: 2 | D9: 基準① | E9: =IF(テーブル122[[#This Row],[基準]]="基準①",テーブル23[基準 ①],IF(テーブル122[[#This Row],[基準]]="基準②",テーブル23[基準②],IF(テーブル122[[#This Row],[基準]]="基準③",テーブル23[基準③],テーブル23[基準④]))) -> 2 | V9: 月曜日 | W9: =IF(テーブル122[[#This Row],[日付]]<>"",テーブル122[[#This Row],[日付]],"") -> 2021-10-04 | X9: =IF(D9="基準①",テーブル122[[#This Row],[記録]],NA()) -> 2 | Y9: =IF(D9="基準①",テーブル122[[#This Row],[基準値]],NA()) -> 2 | Z9: =IF(D9="基準②",テーブル122[[#This Row],[記録]],NA() ) ->  | AA9: =IF(D9="基準②",テーブル122[[#This Row],[基準値]],NA()) ->  | AB9: =IF(D9="基準③",テーブル122[[#This Row],[記録]],NA() ) ->  | AC9: =IF(D9="基準③",テーブル122[[#This Row],[基準値]],NA()) ->  | AD9: =IF(D9="基準④",テーブル122[[#This Row],[記録]],NA() ) ->  | AE9: =IF(D9="基準④",テーブル122[[#This Row],[基準値]],NA()) -> 
A10: 2021-10-05 | B10: 火曜日 | C10: 3 | D10: 基準② | E10: =IF(テーブル122[[#This Row],[基準]]="基準①",テーブル23[基準 ①],IF(テーブル122[[#This Row],[基準]]="基準②",テーブル23[基準②],IF(テーブル122[[#This Row],[基準]]="基準③",テーブル23[基準③],テーブル23[基準④]))) -> 5 | V10: 火曜日 | W10: =IF(テーブル122[[#This Row],[日付]]<>"",テーブル122[[#This Row],[日付]],"") -> 2021-10-05 | X10: =IF(D10="基準①",テーブル122[[#This Row],[記録]],NA()) ->  | Y10: =IF(D10="基準①",テーブル122[[#This Row],[基準値]],NA()) ->  | Z10: =IF(D10="基準②",テーブル122[[#This Row],[記録]],NA() ) -> 3 | AA10: =IF(D10="基準②",テーブル122[[#This Row],[基準値]],NA()) -> 5 | AB10: =IF(D10="基準③",テーブル122[[#This Row],[記録]],NA() ) ->  | AC10: =IF(D10="基準③",テーブル122[[#This Row],[基準値]],NA()) ->  | AD10: =IF(D10="基準④",テーブル122[[#This Row],[記録]],NA() ) ->  | AE10: =IF(D10="基準④",テーブル122[[#This Row],[基準値]],NA()) -> 
A11: 2021-10-06 | B11: 水曜日 | C11: 3 | D11: 基準② | E11: =IF(テーブル122[[#This Row],[基準]]="基準①",テーブル23[基準 ①],IF(テーブル122[[#This Row],[基準]]="基準②",テーブル23[基準②],IF(テーブル122[[#This Row],[基準]]="基準③",テーブル23[基準③],テーブル23[基準④]))) -> 5 | V11: 水曜日 | W11: =IF(テーブル122[[#This Row],[日付]]<>"",テーブル122[[#This Row],[日付]],"") -> 2021-10-06 | X11: =IF(D11="基準①",テーブル122[[#This Row],[記録]],NA()) ->  | Y11: =IF(D11="基準①",テーブル122[[#This Row],[基準値]],NA()) ->  | Z11: =IF(D11="基準②",テーブル122[[#This Row],[記録]],NA() ) -> 3 | AA11: =IF(D11="基準②",テーブル122[[#This Row],[基準値]],NA()) -> 5 | AB11: =IF(D11="基準③",テーブル122[[#This Row],[記録]],NA() ) ->  | AC11: =IF(D11="基準③",テーブル122[[#This Row],[基準値]],NA()) ->  | AD11: =IF(D11="基準④",テーブル122[[#This Row],[記録]],NA() ) ->  | AE11: =IF(D11="基準④",テーブル122[[#This Row],[基準値]],NA()) -> 
A12: 2021-10-07 | B12: 木曜日 | C12: 3 | D12: 基準② | E12: =IF(テーブル122[[#This Row],[基準]]="基準①",テーブル23[基準 ①],IF(テーブル122[[#This Row],[基準]]="基準②",テーブル23[基準②],IF(テーブル122[[#This Row],[基準]]="基準③",テーブル23[基準③],テーブル23[基準④]))) -> 5 | V12: 木曜日 | W12: =IF(テーブル122[[#This Row],[日付]]<>"",テーブル122[[#This Row],[日付]],"") -> 2021-10-07 | X12: =IF(D12="基準①",テーブル122[[#This Row],[記録]],NA()) ->  | Y12: =IF(D12="基準①",テーブル122[[#This Row],[基準値]],NA()) ->  | Z12: =IF(D12="基準②",テーブル122[[#This Row],[記録]],NA() ) -> 3 | AA12: =IF(D12="基準②",テーブル122[[#This Row],[基準値]],NA()) -> 5 | AB12: =IF(D12="基準③",テーブル122[[#This Row],[記録]],NA() ) ->  | AC12: =IF(D12="基準③",テーブル122[[#This Row],[基準値]],NA()) ->  | AD12: =IF(D12="基準④",テーブル122[[#This Row],[記録]],NA() ) ->  | AE12: =IF(D12="基準④",テーブル122[[#This Row],[基準値]],NA()) -> 
A13: 2021-10-08 | B13: 金曜日 | C13: 4 | D13: 基準② | E13: =IF(テーブル122[[#This Row],[基準]]="基準①",テーブル23[基準 ①],IF(テーブル122[[#This Row],[基準]]="基準②",テーブル23[基準②],IF(テーブル122[[#This Row],[基準]]="基準③",テーブル23[基準③],テーブル23[基準④]))) -> 5 | V13: 金曜日 | W13: =IF(テーブル122[[#This Row],[日付]]<>"",テーブル122[[#This Row],[日付]],"") -> 2021-10-08 | X13: =IF(D13="基準①",テーブル122[[#This Row],[記録]],NA()) ->  | Y13: =IF(D13="基準①",テーブル122[[#This Row],[基準値]],NA()) ->  | Z13: =IF(D13="基準②",テーブル122[[#This Row],[記録]],NA() ) -> 4 | AA13: =IF(D13="基準②",テーブル122[[#This Row],[基準値]],NA()) -> 5 | AB13: =IF(D13="基準③",テーブル122[[#This Row],[記録]],NA() ) ->  | AC13: =IF(D13="基準③",テーブル122[[#This Row],[基準値]],NA()) ->  | AD13: =IF(D13="基準④",テーブル122[[#This Row],[記録]],NA() ) ->  | AE13: =IF(D13="基準④",テーブル122[[#This Row],[基準値]],NA()) -> 
A14: 2021-10-09 | B14: 土曜日 | C14: 5 | D14: 基準② | E14: =IF(テーブル122[[#This Row],[基準]]="基準①",テーブル23[基準 ①],IF(テーブル122[[#This Row],[基準]]="基準②",テーブル23[基準②],IF(テーブル122[[#This Row],[基準]]="基準③",テーブル23[基準③],テーブル23[基準④]))) -> 5 | V14: 土曜日 | W14: =IF(テーブル122[[#This Row],[日付]]<>"",テーブル122[[#This Row],[日付]],"") -> 2021-10-09 | X14: =IF(D14="基準①",テーブル122[[#This Row],[記録]],NA()) ->  | Y14: =IF(D14="基準①",テーブル122[[#This Row],[基準値]],NA()) ->  | Z14: =IF(D14="基準②",テーブル122[[#This Row],[記録]],NA() ) -> 5 | AA14: =IF(D14="基準②",テーブル122[[#This Row],[基準値]],NA()) -> 5 | AB14: =IF(D14="基準③",テーブル122[[#This Row],[記録]],NA() ) ->  | AC14: =IF(D14="基準③",テーブル122[[#This Row],[基準値]],NA()) ->  | AD14: =IF(D14="基準④",テーブル122[[#This Row],[記録]],NA() ) ->  | AE14: =IF(D14="基準④",テーブル122[[#This Row],[基準値]],NA()) -> 
A15: 2021-10-10 | B15: 日曜日 | C15: 5 | D15: 基準② | E15: =IF(テーブル122[[#This Row],[基準]]="基準①",テーブル23[基準 ①],IF(テーブル122[[#This Row],[基準]]="基準②",テーブル23[基準②],IF(テーブル122[[#This Row],[基準]]="基準③",テーブル23[基準③],テーブル23[基準④]))) -> 5 | V15: 日曜日 | W15: =IF(テーブル122[[#This Row],[日付]]<>"",テーブル122[[#This Row],[日付]],"") -> 2021-10-10 | X15: =IF(D15="基準①",テーブル122[[#This Row],[記録]],NA()) ->  | Y15: =IF(D15="基準①",テーブル122[[#This Row],[基準値]],NA()) ->  | Z15: =IF(D15="基準②",テーブル122[[#This Row],[記録]],NA() ) -> 5 | AA15: =IF(D15="基準②",テーブル122[[#This Row],[基準値]],NA()) -> 5 | AB15: =IF(D15="基準③",テーブル122[[#This Row],[記録]],NA() ) ->  | AC15: =IF(D15="基準③",テーブル122[[#This Row],[基準値]],NA()) ->  | AD15: =IF(D15="基準④",テーブル122[[#This Row],[記録]],NA() ) ->  | AE15: =IF(D15="基準④",テーブル122[[#This Row],[基準値]],NA()) -> 
A16: 2021-10-11 | B16: 月曜日 | C16: 4 | D16: 基準② | E16: =IF(テーブル122[[#This Row],[基準]]="基準①",テーブル23[基準 ①],IF(テーブル122[[#This Row],[基準]]="基準②",テーブル23[基準②],IF(テーブル122[[#This Row],[基準]]="基準③",テーブル23[基準③],テーブル23[基準④]))) -> 5 | V16: 月曜日 | W16: =IF(テーブル122[[#This Row],[日付]]<>"",テーブル122[[#This Row],[日付]],"") -> 2021-10-11 | X16: =IF(D16="基準①",テーブル122[[#This Row],[記録]],NA()) ->  | Y16: =IF(D16="基準①",テーブル122[[#This Row],[基準値]],NA()) ->  | Z16: =IF(D16="基準②",テーブル122[[#This Row],[記録]],NA() ) -> 4 | AA16: =IF(D16="基準②",テーブル122[[#This Row],[基準値]],NA()) -> 5 | AB16: =IF(D16="基準③",テーブル122[[#This Row],[記録]],NA() ) ->  | AC16: =IF(D16="基準③",テーブル122[[#This Row],[基準値]],NA()) ->  | AD16: =IF(D16="基準④",テーブル122[[#This Row],[記録]],NA() ) ->  | AE16: =IF(D16="基準④",テーブル122[[#This Row],[基準値]],NA()) -> 
A17: 2021-10-12 | B17: 火曜日 | C17: 5 | D17: 基準② | E17: =IF(テーブル122[[#This Row],[基準]]="基準①",テーブル23[基準 ①],IF(テーブル122[[#This Row],[基準]]="基準②",テーブル23[基準②],IF(テーブル122[[#This Row],[基準]]="基準③",テーブル23[基準③],テーブル23[基準④]))) -> 5 | V17: 火曜日 | W17: =IF(テーブル122[[#This Row],[日付]]<>"",テーブル122[[#This Row],[日付]],"") -> 2021-10-12 | X17: =IF(D17="基準①",テーブル122[[#This Row],[記録]],NA()) ->  | Y17: =IF(D17="基準①",テーブル122[[#This Row],[基準値]],NA()) ->  | Z17: =IF(D17="基準②",テーブル122[[#This Row],[記録]],NA() ) -> 5 | AA17: =IF(D17="基準②",テーブル122[[#This Row],[基準値]],NA()) -> 5 | AB17: =IF(D17="基準③",テーブル122[[#This Row],[記録]],NA() ) ->  | AC17: =IF(D17="基準③",テーブル122[[#This Row],[基準値]],NA()) ->  | AD17: =IF(D17="基準④",テーブル122[[#This Row],[記録]],NA() ) ->  | AE17: =IF(D17="基準④",テーブル122[[#This Row],[基準値]],NA()) -> 
A18: 2021-10-13 | B18: 水曜日 | C18: 6 | D18: 基準③ | E18: =IF(テーブル122[[#This Row],[基準]]="基準①",テーブル23[基準 ①],IF(テーブル122[[#This Row],[基準]]="基準②",テーブル23[基準②],IF(テーブル122[[#This Row],[基準]]="基準③",テーブル23[基準③],テーブル23[基準④]))) -> 7 | V18: 水曜日 | W18: =IF(テーブル122[[#This Row],[日付]]<>"",テーブル122[[#This Row],[日付]],"") -> 2021-10-13 | X18: =IF(D18="基準①",テーブル122[[#This Row],[記録]],NA()) ->  | Y18: =IF(D18="基準①",テーブル122[[#This Row],[基準値]],NA()) ->  | Z18: =IF(D18="基準②",テーブル122[[#This Row],[記録]],NA() ) ->  | AA18: =IF(D18="基準②",テーブル122[[#This Row],[基準値]],NA()) ->  | AB18: =IF(D18="基準③",テーブル122[[#This Row],[記録]],NA() ) -> 6 | AC18: =IF(D18="基準③",テーブル122[[#This Row],[基準値]],NA()) -> 7 | AD18: =IF(D18="基準④",テーブル122[[#This Row],[記録]],NA() ) ->  | AE18: =IF(D18="基準④",テーブル122[[#This Row],[基準値]],NA()) -> 
A19: 2021-10-14 | B19: 木曜日 | C19: 6 | D19: 基準③ | E19: =IF(テーブル122[[#This Row],[基準]]="基準①",テーブル23[基準 ①],IF(テーブル122[[#This Row],[基準]]="基準②",テーブル23[基準②],IF(テーブル122[[#This Row],[基準]]="基準③",テーブル23[基準③],テーブル23[基準④]))) -> 7 | V19: 木曜日 | W19: =IF(テーブル122[[#This Row],[日付]]<>"",テーブル122[[#This Row],[日付]],"") -> 2021-10-14 | X19: =IF(D19="基準①",テーブル122[[#This Row],[記録]],NA()) ->  | Y19: =IF(D19="基準①",テーブル122[[#This Row],[基準値]],NA()) ->  | Z19: =IF(D19="基準②",テーブル122[[#This Row],[記録]],NA() ) ->  | AA19: =IF(D19="基準②",テーブル122[[#This Row],[基準値]],NA()) ->  | AB19: =IF(D19="基準③",テーブル122[[#This Row],[記録]],NA() ) -> 6 | AC19: =IF(D19="基準③",テーブル122[[#This Row],[基準値]],NA()) -> 7 | AD19: =IF(D19="基準④",テーブル122[[#This Row],[記録]],NA() ) ->  | AE19: =IF(D19="基準④",テーブル122[[#This Row],[基準値]],NA()) -> 
A20: 2021-10-15 | B20: 金曜日 | C20: 6 | D20: 基準③ | E20: =IF(テーブル122[[#This Row],[基準]]="基準①",テーブル23[基準 ①],IF(テーブル122[[#This Row],[基準]]="基準②",テーブル23[基準②],IF(テーブル122[[#This Row],[基準]]="基準③",テーブル23[基準③],テーブル23[基準④]))) -> 7 | V20: 金曜日 | W20: =IF(テーブル122[[#This Row],[日付]]<>"",テーブル122[[#This Row],[日付]],"") -> 2021-10-15 | X20: =IF(D20="基準①",テーブル122[[#This Row],[記録]],NA()) ->  | Y20: =IF(D20="基準①",テーブル122[[#This Row],[基準値]],NA()) ->  | Z20: =IF(D20="基準②",テーブル122[[#This Row],[記録]],NA() ) ->  | AA20: =IF(D20="基準②",テーブル122[[#This Row],[基準値]],NA()) ->  | AB20: =IF(D20="基準③",テーブル122[[#This Row],[記録]],NA() ) -> 6 | AC20: =IF(D20="基準③",テーブル122[[#This Row],[基準値]],NA()) -> 7 | AD20: =IF(D20="基準④",テーブル122[[#This Row],[記録]],NA() ) ->  | AE20: =IF(D20="基準④",テーブル122[[#This Row],[基準値]],NA()) -> 
A21: 2021-10-16 | B21: 土曜日 | C21: 8 | D21: 基準③ | E21: =IF(テーブル122[[#This Row],[基準]]="基準①",テーブル23[基準 ①],IF(テーブル122[[#This Row],[基準]]="基準②",テーブル23[基準②],IF(テーブル122[[#This Row],[基準]]="基準③",テーブル23[基準③],テーブル23[基準④]))) -> 7 | V21: 土曜日 | W21: =IF(テーブル122[[#This Row],[日付]]<>"",テーブル122[[#This Row],[日付]],"") -> 2021-10-16 | X21: =IF(D21="基準①",テーブル122[[#This Row],[記録]],NA()) ->  | Y21: =IF(D21="基準①",テーブル122[[#This Row],[基準値]],NA()) ->  | Z21: =IF(D21="基準②",テーブル122[[#This Row],[記録]],NA() ) ->  | AA21: =IF(D21="基準②",テーブル122[[#This Row],[基準値]],NA()) ->  | AB21: =IF(D21="基準③",テーブル122[[#This Row],[記録]],NA() ) -> 8 | AC21: =IF(D21="基準③",テーブル122[[#This Row],[基準値]],NA()) -> 7 | AD21: =IF(D21="基準④",テーブル122[[#This Row],[記録]],NA() ) ->  | AE21: =IF(D21="基準④",テーブル122[[#This Row],[基準値]],NA()) -> 
A22: 2021-10-17 | B22: 日曜日 | C22: 8 | D22: 基準③ | E22: =IF(テーブル122[[#This Row],[基準]]="基準①",テーブル23[基準 ①],IF(テーブル122[[#This Row],[基準]]="基準②",テーブル23[基準②],IF(テーブル122[[#This Row],[基準]]="基準③",テーブル23[基準③],テーブル23[基準④]))) -> 7 | V22: 日曜日 | W22: =IF(テーブル122[[#This Row],[日付]]<>"",テーブル122[[#This Row],[日付]],"") -> 2021-10-17 | X22: =IF(D22="基準①",テーブル122[[#This Row],[記録]],NA()) ->  | Y22: =IF(D22="基準①",テーブル122[[#This Row],[基準値]],NA()) ->  | Z22: =IF(D22="基準②",テーブル122[[#This Row],[記録]],NA() ) ->  | AA22: =IF(D22="基準②",テーブル122[[#This Row],[基準値]],NA()) ->  | AB22: =IF(D22="基準③",テーブル122[[#This Row],[記録]],NA() ) -> 8 | AC22: =IF(D22="基準③",テーブル122[[#This Row],[基準値]],NA()) -> 7 | AD22: =IF(D22="基準④",テーブル122[[#This Row],[記録]],NA() ) ->  | AE22: =IF(D22="基準④",テーブル122[[#This Row],[基準値]],NA()) -> 
A23: 2021-10-18 | B23: 月曜日 | C23: 8 | D23: 基準③ | E23: =IF(テーブル122[[#This Row],[基準]]="基準①",テーブル23[基準 ①],IF(テーブル122[[#This Row],[基準]]="基準②",テーブル23[基準②],IF(テーブル122[[#This Row],[基準]]="基準③",テーブル23[基準③],テーブル23[基準④]))) -> 7 | V23: 月曜日 | W23: =IF(テーブル122[[#This Row],[日付]]<>"",テーブル122[[#This Row],[日付]],"") -> 2021-10-18 | X23: =IF(D23="基準①",テーブル122[[#This Row],[記録]],NA()) ->  | Y23: =IF(D23="基準①",テーブル122[[#This Row],[基準値]],NA()) ->  | Z23: =IF(D23="基準②",テーブル122[[#This Row],[記録]],NA() ) ->  | AA23: =IF(D23="基準②",テーブル122[[#This Row],[基準値]],NA()) ->  | AB23: =IF(D23="基準③",テーブル122[[#This Row],[記録]],NA() ) -> 8 | AC23: =IF(D23="基準③",テーブル122[[#This Row],[基準値]],NA()) -> 7 | AD23: =IF(D23="基準④",テーブル122[[#This Row],[記録]],NA() ) ->  | AE23: =IF(D23="基準④",テーブル122[[#This Row],[基準値]],NA()) -> 
A24: 2021-10-19 | B24: 火曜日 | C24: 9 | D24: 基準④ | E24: =IF(テーブル122[[#This Row],[基準]]="基準①",テーブル23[基準 ①],IF(テーブル122[[#This Row],[基準]]="基準②",テーブル23[基準②],IF(テーブル122[[#This Row],[基準]]="基準③",テーブル23[基準③],テーブル23[基準④]))) -> 9 | V24: 火曜日 | W24: =IF(テーブル122[[#This Row],[日付]]<>"",テーブル122[[#This Row],[日付]],"") -> 2021-10-19 | X24: =IF(D24="基準①",テーブル122[[#This Row],[記録]],NA()) ->  | Y24: =IF(D24="基準①",テーブル122[[#This Row],[基準値]],NA()) ->  | Z24: =IF(D24="基準②",テーブル122[[#This Row],[記録]],NA() ) ->  | AA24: =IF(D24="基準②",テーブル122[[#This Row],[基準値]],NA()) ->  | AB24: =IF(D24="基準③",テーブル122[[#This Row],[記録]],NA() ) ->  | AC24: =IF(D24="基準③",テーブル122[[#This Row],[基準値]],NA()) ->  | AD24: =IF(D24="基準④",テーブル122[[#This Row],[記録]],NA() ) -> 9 | AE24: =IF(D24="基準④",テーブル122[[#This Row],[基準値]],NA()) -> 9
A25: 2021-10-20 | B25: 水曜日 | C25: 9 | D25: 基準④ | E25: =IF(テーブル122[[#This Row],[基準]]="基準①",テーブル23[基準 ①],IF(テーブル122[[#This Row],[基準]]="基準②",テーブル23[基準②],IF(テーブル122[[#This Row],[基準]]="基準③",テーブル23[基準③],テーブル23[基準④]))) -> 9 | V25: 水曜日 | W25: =IF(テーブル122[[#This Row],[日付]]<>"",テーブル122[[#This Row],[日付]],"") -> 2021-10-20 | X25: =IF(D25="基準①",テーブル122[[#This Row],[記録]],NA()) ->  | Y25: =IF(D25="基準①",テーブル122[[#This Row],[基準値]],NA()) ->  | Z25: =IF(D25="基準②",テーブル122[[#This Row],[記録]],NA() ) ->  | AA25: =IF(D25="基準②",テーブル122[[#This Row],[基準値]],NA()) ->  | AB25: =IF(D25="基準③",テーブル122[[#This Row],[記録]],NA() ) ->  | AC25: =IF(D25="基準③",テーブル122[[#This Row],[基準値]],NA()) ->  | AD25: =IF(D25="基準④",テーブル122[[#This Row],[記録]],NA() ) -> 9 | AE25: =IF(D25="基準④",テーブル122[[#This Row],[基準値]],NA()) -> 9
A26: 2021-10-21 | B26: 木曜日 | C26: 9 | D26: 基準④ | E26: =IF(テーブル122[[#This Row],[基準]]="基準①",テーブル23[基準 ①],IF(テーブル122[[#This Row],[基準]]="基準②",テーブル23[基準②],IF(テーブル122[[#This Row],[基準]]="基準③",テーブル23[基準③],テーブル23[基準④]))) -> 9 | V26: 木曜日 | W26: =IF(テーブル122[[#This Row],[日付]]<>"",テーブル122[[#This Row],[日付]],"") -> 2021-10-21 | X26: =IF(D26="基準①",テーブル122[[#This Row],[記録]],NA()) ->  | Y26: =IF(D26="基準①",テーブル122[[#This Row],[基準値]],NA()) ->  | Z26: =IF(D26="基準②",テーブル122[[#This Row],[記録]],NA() ) ->  | AA26: =IF(D26="基準②",テーブル122[[#This Row],[基準値]],NA()) ->  | AB26: =IF(D26="基準③",テーブル122[[#This Row],[記録]],NA() ) ->  | AC26: =IF(D26="基準③",テーブル122[[#This Row],[基準値]],NA()) ->  | AD26: =IF(D26="基準④",テーブル122[[#This Row],[記録]],NA() ) -> 9 | AE26: =IF(D26="基準④",テーブル122[[#This Row],[基準値]],NA()) -> 9
A27: 2021-10-22 | B27: 金曜日 | C27: 9 | D27: 基準④ | E27: =IF(テーブル122[[#This Row],[基準]]="基準①",テーブル23[基準 ①],IF(テーブル122[[#This Row],[基準]]="基準②",テーブル23[基準②],IF(テーブル122[[#This Row],[基準]]="基準③",テーブル23[基準③],テーブル23[基準④]))) -> 9 | V27: 金曜日 | W27: =IF(テーブル122[[#This Row],[日付]]<>"",テーブル122[[#This Row],[日付]],"") -> 2021-10-22 | X27: =IF(D27="基準①",テーブル122[[#This Row],[記録]],NA()) ->  | Y27: =IF(D27="基準①",テーブル122[[#This Row],[基準値]],NA()) ->  | Z27: =IF(D27="基準②",テーブル122[[#This Row],[記録]],NA() ) ->  | AA27: =IF(D27="基準②",テーブル122[[#This Row],[基準値]],NA()) ->  | AB27: =IF(D27="基準③",テーブル122[[#This Row],[記録]],NA() ) ->  | AC27: =IF(D27="基準③",テーブル122[[#This Row],[基準値]],NA()) ->  | AD27: =IF(D27="基準④",テーブル122[[#This Row],[記録]],NA() ) -> 9 | AE27: =IF(D27="基準④",テーブル122[[#This Row],[基準値]],NA()) -> 9
A28: 2021-10-23 | B28: 土曜日 | C28: 10 | D28: 基準④ | E28: =IF(テーブル122[[#This Row],[基準]]="基準①",テーブル23[基準 ①],IF(テーブル122[[#This Row],[基準]]="基準②",テーブル23[基準②],IF(テーブル122[[#This Row],[基準]]="基準③",テーブル23[基準③],テーブル23[基準④]))) -> 9 | V28: 土曜日 | W28: =IF(テーブル122[[#This Row],[日付]]<>"",テーブル122[[#This Row],[日付]],"") -> 2021-10-23 | X28: =IF(D28="基準①",テーブル122[[#This Row],[記録]],NA()) ->  | Y28: =IF(D28="基準①",テーブル122[[#This Row],[基準値]],NA()) ->  | Z28: =IF(D28="基準②",テーブル122[[#This Row],[記録]],NA() ) ->  | AA28: =IF(D28="基準②",テーブル122[[#This Row],[基準値]],NA()) ->  | AB28: =IF(D28="基準③",テーブル122[[#This Row],[記録]],NA() ) ->  | AC28: =IF(D28="基準③",テーブル122[[#This Row],[基準値]],NA()) ->  | AD28: =IF(D28="基準④",テーブル122[[#This Row],[記録]],NA() ) -> 10 | AE28: =IF(D28="基準④",テーブル122[[#This Row],[基準値]],NA()) -> 9
A29: 2021-10-24 | B29: 日曜日 | C29: 11 | D29: 基準④ | E29: =IF(テーブル122[[#This Row],[基準]]="基準①",テーブル23[基準 ①],IF(テーブル122[[#This Row],[基準]]="基準②",テーブル23[基準②],IF(テーブル122[[#This Row],[基準]]="基準③",テーブル23[基準③],テーブル23[基準④]))) -> 9 | V29: 日曜日 | W29: =IF(テーブル122[[#This Row],[日付]]<>"",テーブル122[[#This Row],[日付]],"") -> 2021-10-24 | X29: =IF(D29="基準①",テーブル122[[#This Row],[記録]],NA()) ->  | Y29: =IF(D29="基準①",テーブル122[[#This Row],[基準値]],NA()) ->  | Z29: =IF(D29="基準②",テーブル122[[#This Row],[記録]],NA() ) ->  | AA29: =IF(D29="基準②",テーブル122[[#This Row],[基準値]],NA()) ->  | AB29: =IF(D29="基準③",テーブル122[[#This Row],[記録]],NA() ) ->  | AC29: =IF(D29="基準③",テーブル122[[#This Row],[基準値]],NA()) ->  | AD29: =IF(D29="基準④",テーブル122[[#This Row],[記録]],NA() ) -> 11 | AE29: =IF(D29="基準④",テーブル122[[#This Row],[基準値]],NA()) -> 9
A30: 2021-10-25 | B30: =TEXT(A30,"aaaa") -> 月曜日 | C30: 12 | D30: 基準④ | E30: =IF(テーブル122[[#This Row],[基準]]="基準①",テーブル23[基準 ①],IF(テーブル122[[#This Row],[基準]]="基準②",テーブル23[基準②],IF(テーブル122[[#This Row],[基準]]="基準③",テーブル23[基準③],テーブル23[基準④]))) -> 9 | V30: 月曜日 | W30: =IF(テーブル122[[#This Row],[日付]]<>"",テーブル122[[#This Row],[日付]],"") -> 2021-10-25 | X30: =IF(D30="基準①",テーブル122[[#This Row],[記録]],NA()) ->  | Y30: =IF(D30="基準①",テーブル122[[#This Row],[基準値]],NA()) ->  | Z30: =IF(D30="基準②",テーブル122[[#This Row],[記録]],NA() ) ->  | AA30: =IF(D30="基準②",テーブル122[[#This Row],[基準値]],NA()) ->  | AB30: =IF(D30="基準③",テーブル122[[#This Row],[記録]],NA() ) ->  | AC30: =IF(D30="基準③",テーブル122[[#This Row],[基準値]],NA()) ->  | AD30: =IF(D30="基準④",テーブル122[[#This Row],[記録]],NA() ) -> 12 | AE30: =IF(D30="基準④",テーブル122[[#This Row],[基準値]],NA()) -> 9
A31: 2021-10-26 | B31: 火曜日 | C31: 12 | D31: 基準④ | E31: =IF(テーブル122[[#This Row],[基準]]="基準①",テーブル23[基準 ①],IF(テーブル122[[#This Row],[基準]]="基準②",テーブル23[基準②],IF(テーブル122[[#This Row],[基準]]="基準③",テーブル23[基準③],テーブル23[基準④]))) -> 9 | V31: 火曜日 | W31: =IF(テーブル122[[#This Row],[日付]]<>"",テーブル122[[#This Row],[日付]],"") -> 2021-10-26 | X31: =IF(D31="基準①",テーブル122[[#This Row],[記録]],NA()) ->  | Y31: =IF(D31="基準①",テーブル122[[#This Row],[基準値]],NA()) ->  | Z31: =IF(D31="基準②",テーブル122[[#This Row],[記録]],NA() ) ->  | AA31: =IF(D31="基準②",テーブル122[[#This Row],[基準値]],NA()) ->  | AB31: =IF(D31="基準③",テーブル122[[#This Row],[記録]],NA() ) ->  | AC31: =IF(D31="基準③",テーブル122[[#This Row],[基準値]],NA()) ->  | AD31: =IF(D31="基準④",テーブル122[[#This Row],[記録]],NA() ) -> 12 | AE31: =IF(D31="基準④",テーブル122[[#This Row],[基準値]],NA()) -> 9
A32: 2021-10-27 | B32: 水曜日 | C32: 13 | D32: 基準④ | E32: =IF(テーブル122[[#This Row],[基準]]="基準①",テーブル23[基準 ①],IF(テーブル122[[#This Row],[基準]]="基準②",テーブル23[基準②],IF(テーブル122[[#This Row],[基準]]="基準③",テーブル23[基準③],テーブル23[基準④]))) -> 9 | V32: 水曜日 | W32: =IF(テーブル122[[#This Row],[日付]]<>"",テーブル122[[#This Row],[日付]],"") -> 2021-10-27 | X32: =IF(D32="基準①",テーブル122[[#This Row],[記録]],NA()) ->  | Y32: =IF(D32="基準①",テーブル122[[#This Row],[基準値]],NA()) ->  | Z32: =IF(D32="基準②",テーブル122[[#This Row],[記録]],NA() ) ->  | AA32: =IF(D32="基準②",テーブル122[[#This Row],[基準値]],NA()) ->  | AB32: =IF(D32="基準③",テーブル122[[#This Row],[記録]],NA() ) ->  | AC32: =IF(D32="基準③",テーブル122[[#This Row],[基準値]],NA()) ->  | AD32: =IF(D32="基準④",テーブル122[[#This Row],[記録]],NA() ) -> 13 | AE32: =IF(D32="基準④",テーブル122[[#This Row],[基準値]],NA()) -> 9
A33: 2021-10-28 | B33: 木曜日 | E33: =IF(テーブル122[[#This Row],[基準]]="基準①",テーブル23[基準 ①],IF(テーブル122[[#This Row],[基準]]="基準②",テーブル23[基準②],IF(テーブル122[[#This Row],[基準]]="基準③",テーブル23[基準③],テーブル23[基準④]))) -> 9 | V33: 木曜日 | W33: =IF(テーブル122[[#This Row],[日付]]<>"",テーブル122[[#This Row],[日付]],"") -> 2021-10-28 | X33: =IF(D33="基準①",テーブル122[[#This Row],[記録]],NA()) ->  | Y33: =IF(D33="基準①",テーブル122[[#This Row],[基準値]],NA()) ->  | Z33: =IF(D33="基準②",テーブル122[[#This Row],[記録]],NA() ) ->  | AA33: =IF(D33="基準②",テーブル122[[#This Row],[基準値]],NA()) ->  | AB33: =IF(D33="基準③",テーブル122[[#This Row],[記録]],NA() ) ->  | AC33: =IF(D33="基準③",テーブル122[[#This Row],[基準値]],NA()) ->  | AD33: =IF(D33="基準④",テーブル122[[#This Row],[記録]],NA() ) ->  | AE33: =IF(D33="基準④",テーブル122[[#This Row],[基準値]],NA()) -> 
A34: 2021-10-29 | B34: 金曜日 | E34: =IF(テーブル122[[#This Row],[基準]]="基準①",テーブル23[基準 ①],IF(テーブル122[[#This Row],[基準]]="基準②",テーブル23[基準②],IF(テーブル122[[#This Row],[基準]]="基準③",テーブル23[基準③],テーブル23[基準④]))) -> 9 | V34: 金曜日 | W34: =IF(テーブル122[[#This Row],[日付]]<>"",テーブル122[[#This Row],[日付]],"") -> 2021-10-29 | X34: =IF(D34="基準①",テーブル122[[#This Row],[記録]],NA()) ->  | Y34: =IF(D34="基準①",テーブル122[[#This Row],[基準値]],NA()) ->  | Z34: =IF(D34="基準②",テーブル122[[#This Row],[記録]],NA() ) ->  | AA34: =IF(D34="基準②",テーブル122[[#This Row],[基準値]],NA()) ->  | AB34: =IF(D34="基準③",テーブル122[[#This Row],[記録]],NA() ) ->  | AC34: =IF(D34="基準③",テーブル122[[#This Row],[基準値]],NA()) ->  | AD34: =IF(D34="基準④",テーブル122[[#This Row],[記録]],NA() ) ->  | AE34: =IF(D34="基準④",テーブル122[[#This Row],[基準値]],NA()) -> 
A35: 2021-10-30 | B35: 土曜日 | E35: =IF(テーブル122[[#This Row],[基準]]="基準①",テーブル23[基準 ①],IF(テーブル122[[#This Row],[基準]]="基準②",テーブル23[基準②],IF(テーブル122[[#This Row],[基準]]="基準③",テーブル23[基準③],テーブル23[基準④]))) -> 9 | V35: 土曜日 | W35: =IF(テーブル122[[#This Row],[日付]]<>"",テーブル122[[#This Row],[日付]],"") -> 2021-10-30 | X35: =IF(D35="基準①",テーブル122[[#This Row],[記録]],NA()) ->  | Y35: =IF(D35="基準①",テーブル122[[#This Row],[基準値]],NA()) ->  | Z35: =IF(D35="基準②",テーブル122[[#This Row],[記録]],NA() ) ->  | AA35: =IF(D35="基準②",テーブル122[[#This Row],[基準値]],NA()) ->  | AB35: =IF(D35="基準③",テーブル122[[#This Row],[記録]],NA() ) ->  | AC35: =IF(D35="基準③",テーブル122[[#This Row],[基準値]],NA()) ->  | AD35: =IF(D35="基準④",テーブル122[[#This Row],[記録]],NA() ) ->  | AE35: =IF(D35="基準④",テーブル122[[#This Row],[基準値]],NA()) -> 
A36: 2021-10-31 | B36: 日曜日 | E36: =IF(テーブル122[[#This Row],[基準]]="基準①",テーブル23[基準 ①],IF(テーブル122[[#This Row],[基準]]="基準②",テーブル23[基準②],IF(テーブル122[[#This Row],[基準]]="基準③",テーブル23[基準③],テーブル23[基準④]))) -> 9 | V36: 日曜日 | W36: =IF(テーブル122[[#This Row],[日付]]<>"",テーブル122[[#This Row],[日付]],"") -> 2021-10-31 | X36: =IF(D36="基準①",テーブル122[[#This Row],[記録]],NA()) ->  | Y36: =IF(D36="基準①",テーブル122[[#This Row],[基準値]],NA()) ->  | Z36: =IF(D36="基準②",テーブル122[[#This Row],[記録]],NA() ) ->  | AA36: =IF(D36="基準②",テーブル122[[#This Row],[基準値]],NA()) ->  | AB36: =IF(D36="基準③",テーブル122[[#This Row],[記録]],NA() ) ->  | AC36: =IF(D36="基準③",テーブル122[[#This Row],[基準値]],NA()) ->  | AD36: =IF(D36="基準④",テーブル122[[#This Row],[記録]],NA() ) ->  | AE36: =IF(D36="基準④",テーブル122[[#This Row],[基準値]],NA()) -> 

Sheet スモールステップ（3段階）
A1: このページの使い方 | B1: 手続き① | D1: 【①教室内の机の配置を変える】
B2: 手続き② | D2: 【②手順書を作成する】
A3: 目標とすること【朝の支度をする】 | B3: 手続き③ | D3: 【③すべて行えたらお楽しみが待っているようにする】
B4: 日付
A5: 3段階の定義 〇 一人でできた △ 一部手伝ったらできた（言葉かけなど） × 全部手伝った | B5: 2021-09-30 | C5: 2021-10-01 | D5: 2021-10-02 | E5: 2021-10-03 | F5: 2021-10-04 | G5: 2021-10-05 | H5: 2021-10-06 | I5: 2021-10-07 | J5: 2021-10-08 | K5: 2021-10-09 | L5: 2021-10-10 | M5: 2021-10-11 | N5: 2021-10-12 | O5: 2021-10-13 | P5: 2021-10-14 | Q5: 2021-10-15 | R5: 2021-10-16 | S5: 2021-10-17 | T5: 2021-10-18 | U5: 2021-10-19 | V5: 2021-10-20 | W5: 2021-10-21 | X5: 2021-10-22 | Y5: 2021-10-23 | Z5: 2021-10-24 | AA5: 2021-10-25 | AB5: 2021-10-26 | AC5: 2021-10-27 | AD5: 2021-10-28 | AE5: 2021-10-29 | AF5: 2021-10-30 | AG5: 2021-10-31 | AP5: 計算エリア（データを飛ばしてグラフにするので触らないでね）
B6: =TEXT(B5,"aaaa") -> 木曜日 | C6: =TEXT(C5,"aaaa") -> 金曜日 | D6: =TEXT(D5,"aaaa") -> 土曜日 | E6: 日曜日 | F6: 月曜日 | G6: 火曜日 | H6: 水曜日 | I6: 木曜日 | J6: 金曜日 | K6: 土曜日 | L6: 日曜日 | M6: 月曜日 | N6: 火曜日 | O6: 水曜日 | P6: 木曜日 | Q6: 金曜日 | R6: 土曜日 | S6: 日曜日 | T6: 月曜日 | U6: 火曜日 | V6: 水曜日 | W6: 木曜日 | X6: 金曜日 | Y6: 土曜日 | Z6: 日曜日 | AA6: 月曜日 | AB6: 火曜日 | AC6: 水曜日 | AD6: 木曜日 | AE6: 金曜日 | AF6: 土曜日 | AG6: 日曜日 | AP6: 列1 | AQ6: 列110 | AR6: 列2 | AS6: 列3 | AT6: 列4 | AU6: 列5 | AV6: 列6 | AW6: 列7 | AX6: 列8 | AY6: 列9 | AZ6: 列10 | BA6: 列11 | BB6: 列12 | BC6: 列13 | BD6: 列14 | BE6: 列15 | BF6: 列16 | BG6: 列17 | BH6: 列18 | BI6: 列19 | BJ6: 列20 | BK6: 列21 | BL6: 列22 | BM6: 列23 | BN6: 列24 | BO6: 列25 | BP6: 列26 | BQ6: 列27 | BR6: 列28 | BS6: 列29 | BT6: 列30 | BU6: 列31 | BV6: 列32
A7: 記録内容 | B7: BL | C7: BL | D7: BL | E7: BL | F7: BL | G7: BL | H7: BL | I7: BL | J7: ① | K7: ① | L7: ① | M7: ① | N7: ① | O7: ① | P7: ① | Q7: ① | R7: ① | S7: ② | T7: ② | U7: ② | V7: ② | W7: ② | X7: ③ | Y7: ③ | Z7: ③ | AA7: ③ | AB7: ③ | AC7: ③ | AD7: ③ | AE7: ③ | AF7: ③ | AG7: ③ | AP7: 曜日 | AQ7: =B6 -> 木曜日 | AR7: 金曜日 | AS7: 土曜日 | AT7: 日曜日 | AU7: 月曜日 | AV7: 火曜日 | AW7: 水曜日 | AX7: 木曜日 | AY7: 金曜日 | AZ7: 土曜日 | BA7: 日曜日 | BB7: 月曜日 | BC7: 火曜日 | BD7: =O6 -> 水曜日 | BE7: =P6 -> 木曜日 | BF7: =Q6 -> 金曜日 | BG7: =R6 -> 土曜日 | BH7: =S6 -> 日曜日 | BI7: =T6 -> 月曜日 | BJ7: =U6 -> 火曜日 | BK7: =V6 -> 水曜日 | BL7: =W6 -> 木曜日 | BM7: =X6 -> 金曜日 | BN7: =Y6 -> 土曜日 | BO7: =Z6 -> 日曜日 | BP7: =AA6 -> 月曜日 | BQ7: =AB6 -> 火曜日 | BR7: =AC6 -> 水曜日 | BS7: =AD6 -> 木曜日 | BT7: =AE6 -> 金曜日 | BU7: =AF6 -> 土曜日 | BV7: =AG6 -> 日曜日
A8: 目標のスモールステップ | B8: チェック | AP8: 日付 | AQ8: =IF(B5<>"",B5,"") -> 2021-09-30 | AR8: =IF(C5<>"",C5,"") -> 2021-10-01 | AS8: 2021-10-02 | AT8: 2021-10-03 | AU8: 2021-10-04 | AV8: 2021-10-05 | AW8: 2021-10-06 | AX8: 2021-10-07 | AY8: 2021-10-08 | AZ8: 2021-10-09 | BA8: 2021-10-10 | BB8: 2021-10-11 | BC8: 2021-10-12 | BD8: 2021-10-13 | BE8: 2021-10-14 | BF8: 2021-10-15 | BG8: 2021-10-16 | BH8: 2021-10-17 | BI8: 2021-10-18 | BJ8: 2021-10-19 | BK8: 2021-10-20 | BL8: 2021-10-21 | BM8: 2021-10-22 | BN8: 2021-10-23 | BO8: 2021-10-24 | BP8: 2021-10-25 | BQ8: 2021-10-26 | BR8: 2021-10-27 | BS8: 2021-10-28 | BT8: 2021-10-29 | BU8: 2021-10-30 | BV8: 2021-10-31
A9: ①自分の机に行く | B9: 〇 | C9: 〇 | D9: 〇 | E9: 〇 | F9: 〇 | G9: 〇 | H9: 〇 | I9: ☓ | J9: 〇 | K9: 〇 | L9: 〇 | M9: 〇 | N9: 〇 | O9: 〇 | P9: 〇 | Q9: 〇 | R9: 〇 | S9: 〇 | T9: 〇 | U9: 〇 | V9: 〇 | W9: 〇 | X9: 〇 | Y9: 〇 | Z9: 〇 | AA9: 〇 | AB9: △ | AC9: 〇 | AD9: 〇 | AE9: 〇 | AF9: 〇 | AG9: 〇 | AP9: BL | AQ9: =IF(B7="BL",B29,NA()) -> 0.1111111111 | AR9: =IF(C7="BL",C29,NA()) -> 0.1111111111 | AS9: 0.1111111111 | AT9: 0.2777777778 | AU9: 0.3333333333 | AV9: 0.2777777778 | AW9: 0.4444444444 | AX9: 0.3888888889
A10: ②リュックを下す | B10: 〇 | C10: 〇 | D10: 〇 | E10: 〇 | F10: 〇 | G10: 〇 | H10: 〇 | I10: 〇 | J10: 〇 | K10: 〇 | L10: 〇 | M10: 〇 | N10: 〇 | O10: 〇 | P10: 〇 | Q10: 〇 | R10: 〇 | S10: 〇 | T10: 〇 | U10: 〇 | V10: 〇 | W10: 〇 | X10: 〇 | Y10: 〇 | Z10: 〇 | AA10: 〇 | AB10: 〇 | AC10: 〇 | AD10: 〇 | AE10: 〇 | AF10: 〇 | AG10: 〇 | AP10: =D1 -> 【①教室内の机の配置を変える】 | AQ10: =IF(B7="①",B29,NA()) ->  | AR10: =IF(C7="①",C29,NA()) ->  | AY10: 0.5555555556 | AZ10: 0.6111111111 | BA10: 0.5555555556 | BB10: 0.6111111111 | BC10: 0.6111111111 | BD10: 0.6111111111 | BE10: 0.6111111111 | BF10: 0.6111111111 | BG10: 0.6111111111
A11: ③リュックを開ける | B11: ☓ | C11: ☓ | D11: △ | E11: △ | F11: △ | G11: △ | H11: △ | I11: △ | J11: 〇 | K11: 〇 | L11: 〇 | M11: 〇 | N11: 〇 | O11: 〇 | P11: 〇 | Q11: 〇 | R11: 〇 | S11: 〇 | T11: 〇 | U11: 〇 | V11: 〇 | W11: 〇 | X11: 〇 | Y11: 〇 | Z11: 〇 | AA11: 〇 | AB11: 〇 | AC11: 〇 | AD11: 〇 | AE11: 〇 | AF11: 〇 | AG11: 〇 | AP11: =D2 -> 【②手順書を作成する】 | AQ11: =IF(B7="②",B29,NA()) ->  | AR11: =IF(C7="②",C29,NA()) ->  | BH11: 0.6111111111 | BI11: 0.7222222222 | BJ11: 0.7222222222 | BK11: 0.8333333333 | BL11: 0.8888888889
A12: ④連絡帳を出す（順不同） | B12: △ | C12: △ | D12: △ | E12: 〇 | F12: 〇 | G12: 〇 | H12: 〇 | I12: 〇 | J12: 〇 | K12: 〇 | L12: 〇 | M12: 〇 | N12: 〇 | O12: 〇 | P12: 〇 | Q12: 〇 | R12: 〇 | S12: 〇 | T12: 〇 | U12: 〇 | V12: 〇 | W12: 〇 | X12: 〇 | Y12: 〇 | Z12: 〇 | AA12: 〇 | AB12: 〇 | AC12: 〇 | AD12: 〇 | AE12: 〇 | AF12: 〇 | AG12: 〇 | AP12: =D3 -> 【③すべて行えたらお楽しみが待っているようにする】 | AQ12: =IF(B7="③",B29,NA()) ->  | AR12: =IF(C7="③",C29,NA()) ->  | BM12: 0.9444444444 | BN12: 1 | BO12: 1 | BP12: 1 | BQ12: 0.9444444444 | BR12: 1 | BS12: 0.9444444444 | BT12: 1 | BU12: 1 | BV12: 1
A13: ⑤水筒を出す（順不同） | B13: △ | C13: △ | D13: △ | E13: △ | F13: △ | G13: △ | H13: △ | I13: △ | J13: 〇 | K13: 〇 | L13: 〇 | M13: 〇 | N13: 〇 | O13: 〇 | P13: 〇 | Q13: 〇 | R13: 〇 | S13: 〇 | T13: 〇 | U13: 〇 | V13: 〇 | W13: 〇 | X13: 〇 | Y13: 〇 | Z13: 〇 | AA13: 〇 | AB13: 〇 | AC13: 〇 | AD13: 〇 | AE13: 〇 | AF13: 〇 | AG13: 〇
A14: ⑥給食着を出す（順不同） | B14: △ | C14: △ | D14: △ | E14: 〇 | F14: 〇 | G14: 〇 | H14: 〇 | I14: 〇 | J14: 〇 | K14: 〇 | L14: 〇 | M14: 〇 | N14: 〇 | O14: 〇 | P14: 〇 | Q14: 〇 | R14: 〇 | S14: 〇 | T14: 〇 | U14: 〇 | V14: 〇 | W14: 〇 | X14: 〇 | Y14: 〇 | Z14: 〇 | AA14: 〇 | AB14: 〇 | AC14: 〇 | AD14: 〇 | AE14: 〇 | AF14: 〇 | AG14: 〇
A15: ⑦着替え袋を出す | B15: △ | C15: △ | D15: △ | E15: 〇 | F15: 〇 | G15: 〇 | H15: 〇 | I15: 〇 | J15: 〇 | K15: 〇 | L15: ☓ | M15: 〇 | N15: 〇 | O15: 〇 | P15: 〇 | Q15: 〇 | R15: 〇 | S15: 〇 | T15: 〇 | U15: 〇 | V15: 〇 | W15: 〇 | X15: 〇 | Y15: 〇 | Z15: 〇 | AA15: 〇 | AB15: 〇 | AC15: 〇 | AD15: 〇 | AE15: 〇 | AF15: 〇 | AG15: 〇
A16: ⑧着替えの場所に移動する | B16: △ | C16: △ | D16: △ | E16: △ | F16: △ | G16: △ | H16: △ | I16: △ | J16: △ | K16: 〇 | L16: 〇 | M16: 〇 | N16: 〇 | O16: 〇 | P16: 〇 | Q16: 〇 | R16: 〇 | S16: 〇 | T16: 〇 | U16: 〇 | V16: 〇 | W16: 〇 | X16: 〇 | Y16: 〇 | Z16: 〇 | AA16: 〇 | AB16: 〇 | AC16: 〇 | AD16: 〇 | AE16: 〇 | AF16: 〇 | AG16: 〇
A17: ⑨着替えカゴを出す | B17: ☓ | C17: ☓ | D17: ☓ | E17: ☓ | F17: ☓ | G17: ☓ | H17: ☓ | I17: ☓ | J17: ☓ | K17: 〇 | L17: 〇 | M17: 〇 | N17: 〇 | O17: 〇 | P17: 〇 | Q17: 〇 | R17: 〇 | S17: 〇 | T17: 〇 | U17: 〇 | V17: 〇 | W17: 〇 | X17: 〇 | Y17: 〇 | Z17: 〇 | AA17: 〇 | AB17: 〇 | AC17: 〇 | AD17: 〇 | AE17: 〇 | AF17: 〇 | AG17: 〇
A18: ⑩着替え袋から体育着を出す | B18: ☓ | C18: △ | D18: △ | E18: △ | F18: △ | G18: △ | H18: △ | I18: △ | J18: 〇 | K18: 〇 | L18: 〇 | M18: 〇 | N18: 〇 | O18: 〇 | P18: 〇 | Q18: 〇 | R18: 〇 | S18: 〇 | T18: 〇 | U18: 〇 | V18: 〇 | W18: 〇 | X18: 〇 | Y18: 〇 | Z18: 〇 | AA18: 〇 | AB18: 〇 | AC18: 〇 | AD18: 〇 | AE18: 〇 | AF18: 〇 | AG18: 〇
A19: ⑪Tシャツを脱ぐ | B19: ☓ | C19: ☓ | D19: ☓ | E19: ☓ | F19: △ | G19: △ | H19: 〇 | I19: 〇 | J19: 〇 | K19: 〇 | L19: 〇 | M19: 〇 | N19: 〇 | O19: 〇 | P19: 〇 | Q19: 〇 | R19: 〇 | S19: 〇 | T19: 〇 | U19: 〇 | V19: 〇 | W19: 〇 | X19: 〇 | Y19: 〇 | Z19: 〇 | AA19: 〇 | AB19: 〇 | AC19: 〇 | AD19: 〇 | AE19: 〇 | AF19: 〇 | AG19: 〇
A20: ⑫体育着を着る | B20: ☓ | C20: ☓ | D20: △ | E20: △ | F20: △ | G20: △ | H20: ☓ | I20: ☓ | J20: ☓ | K20: ☓ | L20: ☓ | M20: ☓ | N20: ☓ | O20: ☓ | P20: ☓ | Q20: ☓ | R20: △ | S20: △ | T20: 〇 | U20: 〇 | V20: 〇 | W20: 〇 | X20: 〇 | Y20: 〇 | Z20: 〇 | AA20: 〇 | AB20: 〇 | AC20: 〇 | AD20: 〇 | AE20: 〇 | AF20: 〇 | AG20: 〇
A21: ⑬ズボンを脱ぐ | B21: ☓ | C21: ☓ | D21: ☓ | E21: ☓ | F21: ☓ | G21: ☓ | H21: 〇 | I21: ☓ | J21: ☓ | K21: ☓ | L21: ☓ | M21: ☓ | N21: ☓ | O21: △ | P21: △ | Q21: △ | R21: △ | S21: △ | T21: △ | U21: △ | V21: 〇 | W21: 〇 | X21: 〇 | Y21: 〇 | Z21: 〇 | AA21: 〇 | AB21: 〇 | AC21: 〇 | AD21: 〇 | AE21: 〇 | AF21: 〇 | AG21: 〇
A22: ⑭体育着ズボンをはく | B22: ☓ | C22: ☓ | D22: ☓ | E22: ☓ | F22: ☓ | G22: ☓ | H22: ☓ | I22: ☓ | J22: ☓ | K22: ☓ | L22: ☓ | M22: ☓ | N22: ☓ | O22: ☓ | P22: ☓ | Q22: ☓ | R22: ☓ | S22: ☓ | T22: ☓ | U22: ☓ | V22: 〇 | W22: 〇 | X22: 〇 | Y22: 〇 | Z22: 〇 | AA22: 〇 | AB22: 〇 | AC22: 〇 | AD22: 〇 | AE22: 〇 | AF22: 〇 | AG22: 〇
A23: ⑮衣類をたたむ（かごに入れる） | B23: ☓ | C23: ☓ | D23: ☓ | E23: ☓ | F23: ☓ | G23: ☓ | H23: 〇 | I23: 〇 | J23: 〇 | K23: ☓ | L23: ☓ | M23: ☓ | N23: ☓ | O23: ☓ | P23: ☓ | Q23: ☓ | R23: △ | S23: △ | T23: △ | U23: △ | V23: △ | W23: 〇 | X23: 〇 | Y23: 〇 | Z23: 〇 | AA23: 〇 | AB23: 〇 | AC23: 〇 | AD23: 〇 | AE23: 〇 | AF23: 〇 | AG23: 〇
A24: ⑯カゴをしまう | B24: ☓ | C24: ☓ | D24: △ | E24: △ | F24: △ | G24: △ | H24: △ | I24: △ | J24: △ | K24: △ | L24: △ | M24: △ | N24: △ | O24: △ | P24: △ | Q24: △ | R24: △ | S24: △ | T24: 〇 | U24: 〇 | V24: 〇 | W24: 〇 | X24: 〇 | Y24: 〇 | Z24: 〇 | AA24: 〇 | AB24: 〇 | AC24: 〇 | AD24: 〇 | AE24: 〇 | AF24: 〇 | AG24: 〇
A25: ⑰自分の机に戻る | B25: ☓ | C25: ☓ | D25: ☓ | E25: ☓ | F25: 〇 | G25: ☓ | H25: ☓ | I25: ☓ | J25: ☓ | K25: ☓ | L25: ☓ | M25: ☓ | N25: ☓ | O25: ☓ | P25: ☓ | Q25: ☓ | R25: ☓ | S25: ☓ | T25: ☓ | U25: ☓ | V25: ☓ | W25: △ | X25: △ | Y25: 〇 | Z25: 〇 | AA25: 〇 | AB25: 〇 | AC25: 〇 | AD25: 〇 | AE25: 〇 | AF25: 〇 | AG25: 〇
A26: ⑱リュックを片付ける | B26: ☓ | C26: ☓ | D26: ☓ | E26: ☓ | F26: ☓ | G26: ☓ | H26: ☓ | I26: 〇 | J26: ☓ | K26: ☓ | L26: ☓ | M26: ☓ | N26: ☓ | O26: ☓ | P26: ☓ | Q26: ☓ | R26: ☓ | S26: ☓ | T26: ☓ | U26: ☓ | V26: ☓ | W26: ☓ | X26: 〇 | Y26: 〇 | Z26: 〇 | AA26: 〇 | AB26: 〇 | AC26: 〇 | AD26: △ | AE26: 〇 | AF26: 〇 | AG26: 〇
A27: ⑲
A28: ⑳
A29: 達成率 | B29: =COUNTIF(B9:B28,"〇")/COUNTA(B9:B28) -> 0.1111111111 | C29: =COUNTIF(C9:C28,"〇")/COUNTA(C9:C28) -> 0.1111111111 | D29: 0.1111111111 | E29: 0.2777777778 | F29: 0.3333333333 | G29: 0.2777777778 | H29: 0.4444444444 | I29: 0.3888888889 | J29: 0.5555555556 | K29: 0.6111111111 | L29: 0.5555555556 | M29: 0.6111111111 | N29: 0.6111111111 | O29: 0.6111111111 | P29: 0.6111111111 | Q29: 0.6111111111 | R29: 0.6111111111 | S29: 0.6111111111 | T29: 0.7222222222 | U29: 0.7222222222 | V29: 0.8333333333 | W29: 0.8888888889 | X29: 0.9444444444 | Y29: 1 | Z29: 1 | AA29: 1 | AB29: 0.9444444444 | AC29: 1 | AD29: 0.9444444444 | AE29: 1 | AF29: 1 | AG29: 1
A30: 特記事項

Sheet スモールステップ (5段階）
A1: このページの使い方 | B1: 手続き① | D1: 【①教室内の机の配置を変える】
B2: 手続き② | D2: 【②手順書を作成する】
A3: 目標とすること【朝の支度をする】 | B3: 手続き③ | D3: 【③すべて行えたらお楽しみが待っているようにする】
B4: 日付
A5: 5段階の定義 ⑤自立（一人でできる） ④言葉かけ ③指差し等のジェスチャー ②見本を見せる ①身体的な支援（一緒にやる等） | B5: 2021-09-30 | C5: 2021-10-01 | D5: 2021-10-02 | E5: 2021-10-03 | F5: 2021-10-04 | G5: 2021-10-05 | H5: 2021-10-06 | I5: 2021-10-07 | J5: 2021-10-08 | K5: 2021-10-09 | L5: 2021-10-10 | M5: 2021-10-11 | N5: 2021-10-12 | O5: 2021-10-13 | P5: 2021-10-14 | Q5: 2021-10-15 | R5: 2021-10-16 | S5: 2021-10-17 | T5: 2021-10-18 | U5: 2021-10-19 | V5: 2021-10-20 | W5: 2021-10-21 | X5: 2021-10-22 | Y5: 2021-10-23 | Z5: 2021-10-24 | AA5: 2021-10-25 | AB5: 2021-10-26 | AC5: 2021-10-27 | AD5: 2021-10-28 | AE5: 2021-10-29 | AF5: 2021-10-30 | AG5: 2021-10-31 | AP5: 計算エリア（データを飛ばしてグラフにするので触らないでね）
B6: =TEXT(B5,"aaaa") -> 木曜日 | C6: =TEXT(C5,"aaaa") -> 金曜日 | D6: =TEXT(D5,"aaaa") -> 土曜日 | E6: 日曜日 | F6: 月曜日 | G6: 火曜日 | H6: 水曜日 | I6: 木曜日 | J6: 金曜日 | K6: 土曜日 | L6: 日曜日 | M6: 月曜日 | N6: 火曜日 | O6: 水曜日 | P6: 木曜日 | Q6: 金曜日 | R6: 土曜日 | S6: 日曜日 | T6: 月曜日 | U6: 火曜日 | V6: 水曜日 | W6: 木曜日 | X6: 金曜日 | Y6: 土曜日 | Z6: 日曜日 | AA6: 月曜日 | AB6: 火曜日 | AC6: 水曜日 | AD6: 木曜日 | AE6: 金曜日 | AF6: 土曜日 | AG6: 日曜日 | AP6: 列1 | AQ6: 列 | AR6: 列2 | AS6: 列3 | AT6: 列4 | AU6: 列5 | AV6: 列6 | AW6: 列7 | AX6: 列8 | AY6: 列9 | AZ6: 列10 | BA6: 列11 | BB6: 列12 | BC6: 列13 | BD6: 列14 | BE6: 列15 | BF6: 列16 | BG6: 列17 | BH6: 列18 | BI6: 列19 | BJ6: 列20 | BK6: 列21 | BL6: 列22 | BM6: 列23 | BN6: 列24 | BO6: 列25 | BP6: 列26 | BQ6: 列27 | BR6: 列28 | BS6: 列29 | BT6: 列30 | BU6: 列31 | BV6: 列32
A7: 記録内容 | B7: BL | C7: BL | D7: BL | E7: BL | F7: BL | G7: BL | H7: BL | I7: BL | J7: ① | K7: ① | L7: ① | M7: ① | N7: ① | O7: ① | P7: ① | Q7: ① | R7: ① | S7: ② | T7: ② | U7: ② | V7: ② | W7: ② | X7: ③ | Y7: ③ | Z7: ③ | AA7: ③ | AB7: ③ | AC7: ③ | AD7: ③ | AE7: ③ | AF7: ③ | AG7: ③ | AP7: 曜日 | AQ7: =B6 -> 木曜日 | AR7: 金曜日 | AS7: 土曜日 | AT7: 日曜日 | AU7: 月曜日 | AV7: 火曜日 | AW7: 水曜日 | AX7: 木曜日 | AY7: 金曜日 | AZ7: 土曜日 | BA7: 日曜日 | BB7: 月曜日 | BC7: 火曜日 | BD7: 水曜日 | BE7: 木曜日 | BF7: 金曜日 | BG7: 土曜日 | BH7: 日曜日 | BI7: 月曜日 | BJ7: 火曜日 | BK7: 水曜日 | BL7: 木曜日 | BM7: 金曜日 | BN7: 土曜日 | BO7: 日曜日 | BP7: 月曜日 | BQ7: 火曜日 | BR7: 水曜日 | BS7: 木曜日 | BT7: 金曜日 | BU7: 土曜日 | BV7: 日曜日
A8: 目標のスモールステップ | B8: チェック | AP8: 日付 | AQ8: =IF(B5<>"",B5,"") -> 2021-09-30 | AR8: =IF(C5<>"",C5,"") -> 2021-10-01 | AS8: 2021-10-02 | AT8: 2021-10-03 | AU8: 2021-10-04 | AV8: 2021-10-05 | AW8: 2021-10-06 | AX8: 2021-10-07 | AY8: 2021-10-08 | AZ8: 2021-10-09 | BA8: 2021-10-10 | BB8: 2021-10-11 | BC8: 2021-10-12 | BD8: 2021-10-13 | BE8: 2021-10-14 | BF8: 2021-10-15 | BG8: 2021-10-16 | BH8: 2021-10-17 | BI8: 2021-10-18 | BJ8: 2021-10-19 | BK8: 2021-10-20 | BL8: 2021-10-21 | BM8: 2021-10-22 | BN8: 2021-10-23 | BO8: 2021-10-24 | BP8: 2021-10-25 | BQ8: 2021-10-26 | BR8: 2021-10-27 | BS8: 2021-10-28 | BT8: 2021-10-29 | BU8: 2021-10-30 | BV8: 2021-10-31
A9: ①自分の机に行く | B9: ⑤ | C9: ⑤ | D9: ⑤ | E9: ⑤ | F9: ⑤ | G9: ⑤ | H9: ⑤ | I9: ⑤ | J9: ⑤ | K9: ⑤ | L9: ⑤ | M9: ⑤ | N9: ⑤ | O9: ⑤ | P9: ⑤ | Q9: ⑤ | R9: ⑤ | S9: ⑤ | T9: ⑤ | U9: ⑤ | V9: ⑤ | W9: ⑤ | X9: ⑤ | Y9: ⑤ | Z9: ⑤ | AA9: ⑤ | AB9: ⑤ | AC9: ⑤ | AD9: ⑤ | AE9: ⑤ | AF9: ⑤ | AG9: ⑤ | AP9: BL | AQ9: =IF(B7="BL",B29,NA()) -> 0.3333333333 | AR9: =IF(C7="BL",C29,NA()) -> 0.3888888889 | AS9: 0.3333333333 | AT9: 0.3888888889 | AU9: 0.3333333333 | AV9: 0.3888888889 | AW9: 0.3333333333 | AX9: 0.3333333333
A10: ②リュックを下す | B10: ④ | C10: ④ | D10: ④ | E10: ④ | F10: ④ | G10: ④ | H10: ④ | I10: ④ | J10: ⑤ | K10: ⑤ | L10: ⑤ | M10: ⑤ | N10: ⑤ | O10: ⑤ | P10: ⑤ | Q10: ⑤ | R10: ⑤ | S10: ⑤ | T10: ⑤ | U10: ⑤ | V10: ⑤ | W10: ⑤ | X10: ⑤ | Y10: ⑤ | Z10: ⑤ | AA10: ⑤ | AB10: ⑤ | AC10: ⑤ | AD10: ⑤ | AE10: ⑤ | AF10: ⑤ | AG10: ⑤ | AP10: =D1 -> 【①教室内の机の配置を変える】 | AQ10: =IF(B7="①",B29,NA()) ->  | AR10: =IF(C7="①",C29,NA()) ->  | AY10: 0.5 | AZ10: 0.5 | BA10: 0.5555555556 | BB10: 0.4444444444 | BC10: 0.5555555556 | BD10: 0.5555555556 | BE10: 0.5 | BF10: 0.4444444444 | BG10: 0.4444444444
A11: ③リュックを開ける | B11: ④ | C11: ④ | D11: ④ | E11: ④ | F11: ④ | G11: ④ | H11: ④ | I11: ④ | J11: ⑤ | K11: ⑤ | L11: ⑤ | M11: ⑤ | N11: ⑤ | O11: ⑤ | P11: ⑤ | Q11: ⑤ | R11: ⑤ | S11: ⑤ | T11: ⑤ | U11: ⑤ | V11: ⑤ | W11: ⑤ | X11: ⑤ | Y11: ⑤ | Z11: ⑤ | AA11: ⑤ | AB11: ⑤ | AC11: ⑤ | AD11: ⑤ | AE11: ⑤ | AF11: ⑤ | AG11: ⑤ | AP11: =D2 -> 【②手順書を作成する】 | AQ11: =IF(B7="②",B29,NA()) ->  | AR11: =IF(C7="②",C29,NA()) ->  | BH11: 0.5555555556 | BI11: 0.5 | BJ11: 0.5 | BK11: 0.5555555556 | BL11: 0.5555555556
A12: ④連絡帳を出す（順不同） | B12: ⑤ | C12: ⑤ | D12: ⑤ | E12: ⑤ | F12: ⑤ | G12: ⑤ | H12: ⑤ | I12: ⑤ | J12: ⑤ | K12: ⑤ | L12: ⑤ | M12: ⑤ | N12: ⑤ | O12: ⑤ | P12: ⑤ | Q12: ⑤ | R12: ⑤ | S12: ⑤ | T12: ⑤ | U12: ⑤ | V12: ⑤ | W12: ⑤ | X12: ⑤ | Y12: ⑤ | Z12: ⑤ | AA12: ⑤ | AB12: ⑤ | AC12: ⑤ | AD12: ⑤ | AE12: ⑤ | AF12: ⑤ | AG12: ⑤ | AP12: =D3 -> 【③すべて行えたらお楽しみが待っているようにする】 | AQ12: =IF(B7="③",B29,NA()) ->  | AR12: =IF(C7="③",C29,NA()) ->  | BM12: 0.5 | BN12: 0.5 | BO12: 0.5 | BP12: 0.6111111111 | BQ12: 0.5555555556 | BR12: 0.5555555556 | BS12: 0.7777777778 | BT12: 0.6666666667 | BU12: 0.7777777778 | BV12: 1
A13: ⑤水筒を出す（順不同） | B13: ④ | C13: ⑤ | D13: ④ | E13: ⑤ | F13: ④ | G13: ⑤ | H13: ④ | I13: ④ | J13: ④ | K13: ④ | L13: ⑤ | M13: ④ | N13: ④ | O13: ⑤ | P13: ⑤ | Q13: ④ | R13: ④ | S13: ⑤ | T13: ④ | U13: ④ | V13: ④ | W13: ④ | X13: ④ | Y13: ④ | Z13: ④ | AA13: ⑤ | AB13: ④ | AC13: ④ | AD13: ④ | AE13: ④ | AF13: ⑤ | AG13: ⑤
A14: ⑥給食着を出す（順不同） | B14: ④ | C14: ④ | D14: ④ | E14: ④ | F14: ④ | G14: ④ | H14: ④ | I14: ④ | J14: ④ | K14: ④ | L14: ④ | M14: ④ | N14: ⑤ | O14: ④ | P14: ④ | Q14: ④ | R14: ④ | S14: ⑤ | T14: ④ | U14: ④ | V14: ④ | W14: ④ | X14: ④ | Y14: ④ | Z14: ④ | AA14: ④ | AB14: ④ | AC14: ④ | AD14: ④ | AE14: ⑤ | AF14: ⑤ | AG14: ⑤ | AP14: 列1 | AQ14: 列 | AR14: 列2 | AS14: 列3 | AT14: 列4 | AU14: 列5 | AV14: 列6 | AW14: 列7 | AX14: 列8 | AY14: 列9 | AZ14: 列10 | BA14: 列11 | BB14: 列12 | BC14: 列13 | BD14: 列14 | BE14: 列15 | BF14: 列16 | BG14: 列17 | BH14: 列18 | BI14: 列19 | BJ14: 列20 | BK14: 列21 | BL14: 列22 | BM14: 列23 | BN14: 列24 | BO14: 列25 | BP14: 列26 | BQ14: 列27 | BR14: 列28 | BS14: 列29 | BT14: 列30 | BU14: 列31 | BV14: 列32
A15: ⑦着替え袋を出す | B15: ⑤ | C15: ⑤ | D15: ⑤ | E15: ⑤ | F15: ⑤ | G15: ⑤ | H15: ⑤ | I15: ⑤ | J15: ⑤ | K15: ⑤ | L15: ⑤ | M15: ⑤ | N15: ⑤ | O15: ⑤ | P15: ⑤ | Q15: ⑤ | R15: ⑤ | S15: ⑤ | T15: ⑤ | U15: ⑤ | V15: ⑤ | W15: ⑤ | X15: ⑤ | Y15: ⑤ | Z15: ⑤ | AA15: ⑤ | AB15: ⑤ | AC15: ⑤ | AD15: ⑤ | AE15: ⑤ | AF15: ⑤ | AG15: ⑤ | AP15: 曜日 | AQ15: =B6 -> 木曜日 | AR15: =C6 -> 金曜日 | AS15: 土曜日 | AT15: 日曜日 | AU15: 月曜日 | AV15: 火曜日 | AW15: 水曜日 | AX15: 木曜日 | AY15: 金曜日 | AZ15: 土曜日 | BA15: 日曜日 | BB15: 月曜日 | BC15: 火曜日 | BD15: 水曜日 | BE15: 木曜日 | BF15: 金曜日 | BG15: 土曜日 | BH15: 日曜日 | BI15: 月曜日 | BJ15: 火曜日 | BK15: 水曜日 | BL15: 木曜日 | BM15: 金曜日 | BN15: 土曜日 | BO15: 日曜日 | BP15: 月曜日 | BQ15: 火曜日 | BR15: 水曜日 | BS15: 木曜日 | BT15: 金曜日 | BU15: 土曜日 | BV15: 日曜日
A16: ⑧着替えの場所に移動する | B16: ④ | C16: ④ | D16: ④ | E16: ④ | F16: ④ | G16: ④ | H16: ④ | I16: ④ | J16: ⑤ | K16: ⑤ | L16: ⑤ | M16: ④ | N16: ⑤ | O16: ⑤ | P16: ④ | Q16: ④ | R16: ④ | S16: ④ | T16: ④ | U16: ④ | V16: ④ | W16: ④ | X16: ④ | Y16: ④ | Z16: ④ | AA16: ④ | AB16: ④ | AC16: ④ | AD16: ④ | AE16: ④ | AF16: ④ | AG16: ⑤ | AP16: 日付 | AQ16: =IF(B5<>"",B5,"") -> 2021-09-30 | AR16: =IF(C5<>"",C5,"") -> 2021-10-01 | AS16: 2021-10-02 | AT16: 2021-10-03 | AU16: 2021-10-04 | AV16: 2021-10-05 | AW16: 2021-10-06 | AX16: 2021-10-07 | AY16: 2021-10-08 | AZ16: 2021-10-09 | BA16: 2021-10-10 | BB16: 2021-10-11 | BC16: 2021-10-12 | BD16: 2021-10-13 | BE16: 2021-10-14 | BF16: 2021-10-15 | BG16: 2021-10-16 | BH16: 2021-10-17 | BI16: 2021-10-18 | BJ16: 2021-10-19 | BK16: 2021-10-20 | BL16: 2021-10-21 | BM16: 2021-10-22 | BN16: 2021-10-23 | BO16: 2021-10-24 | BP16: 2021-10-25 | BQ16: 2021-10-26 | BR16: 2021-10-27 | BS16: 2021-10-28 | BT16: 2021-10-29 | BU16: 2021-10-30 | BV16: =IF(AG5<>"",AG5,"") -> 2021-10-31
A17: ⑨着替えカゴを出す | B17: ③ | C17: ③ | D17: ③ | E17: ③ | F17: ③ | G17: ③ | H17: ③ | I17: ③ | J17: ③ | K17: ③ | L17: ③ | M17: ③ | N17: ③ | O17: ③ | P17: ③ | Q17: ③ | R17: ③ | S17: ③ | T17: ③ | U17: ③ | V17: ③ | W17: ③ | X17: ③ | Y17: ③ | Z17: ③ | AA17: ③ | AB17: ③ | AC17: ③ | AD17: ⑤ | AE17: ③ | AF17: ④ | AG17: ⑤ | AP17: BL | AQ17: =IF(B7="BL",B30,NA()) -> 0.6944444444 | AR17: =IF(C7="BL",C30,NA()) -> 0.7083333333 | AS17: 0.6944444444 | AT17: 0.6944444444 | AU17: 0.6805555556 | AV17: 0.7083333333 | AW17: 0.6666666667 | AX17: 0.6388888889
A18: ⑩着替え袋から体育着を出す | B18: ⑤ | C18: ⑤ | D18: ⑤ | E18: ⑤ | F18: ⑤ | G18: ⑤ | H18: ⑤ | I18: ⑤ | J18: ⑤ | K18: ⑤ | L18: ⑤ | M18: ⑤ | N18: ⑤ | O18: ⑤ | P18: ⑤ | Q18: ⑤ | R18: ⑤ | S18: ⑤ | T18: ⑤ | U18: ⑤ | V18: ⑤ | W18: ⑤ | X18: ⑤ | Y18: ⑤ | Z18: ⑤ | AA18: ⑤ | AB18: ⑤ | AC18: ⑤ | AD18: ⑤ | AE18: ⑤ | AF18: ⑤ | AG18: ⑤ | AP18: =D1 -> 【①教室内の机の配置を変える】 | AQ18: =IF(B7="①",B30,NA()) ->  | AR18: =IF(C7="①",C30,NA()) ->  | AY18: 0.7361111111 | AZ18: 0.7361111111 | BA18: 0.7777777778 | BB18: 0.75 | BC18: 0.7777777778 | BD18: 0.75 | BE18: 0.7361111111 | BF18: 0.7222222222 | BG18: 0.7222222222
A19: ⑪Tシャツを脱ぐ | B19: ④ | C19: ④ | D19: ④ | E19: ④ | F19: ④ | G19: ④ | H19: ④ | I19: ④ | J19: ④ | K19: ④ | L19: ④ | M19: ④ | N19: ④ | O19: ④ | P19: ④ | Q19: ④ | R19: ④ | S19: ④ | T19: ④ | U19: ④ | V19: ④ | W19: ④ | X19: ④ | Y19: ④ | Z19: ④ | AA19: ④ | AB19: ④ | AC19: ④ | AD19: ④ | AE19: ④ | AF19: ④ | AG19: ⑤ | AP19: =D2 -> 【②手順書を作成する】 | AQ19: =IF(B7="②",B30,NA()) ->  | AR19: =IF(C7="②",C30,NA()) ->  | BH19: 0.7916666667 | BI19: 0.8333333333 | BJ19: 0.8333333333 | BK19: 0.8611111111 | BL19: 0.8472222222
A20: ⑫体育着を着る | B20: ⑤ | C20: ⑤ | D20: ⑤ | E20: ⑤ | F20: ⑤ | G20: ⑤ | H20: ⑤ | I20: ⑤ | J20: ⑤ | K20: ⑤ | L20: ⑤ | M20: ⑤ | N20: ⑤ | O20: ⑤ | P20: ⑤ | Q20: ⑤ | R20: ⑤ | S20: ⑤ | T20: ⑤ | U20: ⑤ | V20: ⑤ | W20: ⑤ | X20: ⑤ | Y20: ⑤ | Z20: ⑤ | AA20: ⑤ | AB20: ⑤ | AC20: ⑤ | AD20: ⑤ | AE20: ⑤ | AF20: ⑤ | AG20: ⑤ | AP20: =D3 -> 【③すべて行えたらお楽しみが待っているようにする】 | AQ20: =IF(B7="③",B30,NA()) ->  | AR20: =IF(C7="③",C30,NA()) ->  | BM20: 0.8333333333 | BN20: 0.8194444444 | BO20: 0.8333333333 | BP20: 0.8611111111 | BQ20: 0.8472222222 | BR20: 0.8472222222 | BS20: 0.9444444444 | BT20: 0.9027777778 | BU20: 0.9444444444 | BV20: 1
A21: ⑬ズボンを脱ぐ | B21: ⑤ | C21: ⑤ | D21: ⑤ | E21: ⑤ | F21: ⑤ | G21: ⑤ | H21: ⑤ | I21: ⑤ | J21: ⑤ | K21: ⑤ | L21: ⑤ | M21: ⑤ | N21: ⑤ | O21: ⑤ | P21: ⑤ | Q21: ⑤ | R21: ⑤ | S21: ⑤ | T21: ⑤ | U21: ⑤ | V21: ⑤ | W21: ⑤ | X21: ⑤ | Y21: ⑤ | Z21: ⑤ | AA21: ⑤ | AB21: ⑤ | AC21: ⑤ | AD21: ⑤ | AE21: ⑤ | AF21: ⑤ | AG21: ⑤
A22: ⑭体育着ズボンをはく | B22: ② | C22: ② | D22: ② | E22: ② | F22: ② | G22: ② | H22: ① | I22: ① | J22: ② | K22: ② | L22: ② | M22: ② | N22: ③ | O22: ② | P22: ② | Q22: ② | R22: ② | S22: ② | T22: ④ | U22: ④ | V22: ④ | W22: ⑤ | X22: ④ | Y22: ④ | Z22: ④ | AA22: ⑤ | AB22: ④ | AC22: ⑤ | AD22: ⑤ | AE22: ④ | AF22: ④ | AG22: ⑤
A23: ⑮衣類をたたむ（かごに入れる） | B23: ② | C23: ② | D23: ② | E23: ① | F23: ② | G23: ② | H23: ② | I23: ① | J23: ② | K23: ② | L23: ② | M23: ③ | N23: ② | O23: ② | P23: ② | Q23: ② | R23: ② | S23: ③ | T23: ④ | U23: ④ | V23: ④ | W23: ④ | X23: ④ | Y23: ③ | Z23: ④ | AA23: ④ | AB23: ⑤ | AC23: ④ | AD23: ⑤ | AE23: ④ | AF23: ⑤ | AG23: ⑤
A24: ⑯カゴをしまう | B24: ③ | C24: ③ | D24: ③ | E24: ③ | F24: ② | G24: ③ | H24: ② | I24: ① | J24: ③ | K24: ③ | L24: ③ | M24: ③ | N24: ③ | O24: ③ | P24: ③ | Q24: ③ | R24: ③ | S24: ③ | T24: ③ | U24: ③ | V24: ⑤ | W24: ③ | X24: ③ | Y24: ③ | Z24: ③ | AA24: ③ | AB24: ③ | AC24: ③ | AD24: ⑤ | AE24: ⑤ | AF24: ⑤ | AG24: ⑤
A25: ⑰自分の机に戻る | B25: ② | C25: ② | D25: ② | E25: ② | F25: ② | G25: ② | H25: ② | I25: ② | J25: ② | K25: ② | L25: ② | M25: ③ | N25: ② | O25: ② | P25: ② | Q25: ② | R25: ② | S25: ④ | T25: ③ | U25: ③ | V25: ③ | W25: ③ | X25: ③ | Y25: ③ | Z25: ③ | AA25: ③ | AB25: ③ | AC25: ③ | AD25: ⑤ | AE25: ⑤ | AF25: ⑤ | AG25: ⑤
A26: ⑱リュックを片付ける | B26: ② | C26: ② | D26: ② | E26: ② | F26: ② | G26: ② | H26: ② | I26: ② | J26: ② | K26: ② | L26: ④ | M26: ② | N26: ③ | O26: ② | P26: ② | Q26: ② | R26: ② | S26: ② | T26: ⑤ | U26: ⑤ | V26: ⑤ | W26: ⑤ | X26: ⑤ | Y26: ⑤ | Z26: ⑤ | AA26: ⑤ | AB26: ⑤ | AC26: ⑤ | AD26: ⑤ | AE26: ⑤ | AF26: ⑤ | AG26: ⑤
A27: ⑲
A28: ⑳
A29: 達成率（自立度合い） | B29: =COUNTIF(B9:B28,"⑤")/COUNTA(B9:B28) -> 0.3333333333 | C29: =COUNTIF(C9:C28,"⑤")/COUNTA(C9:C28) -> 0.3888888889 | D29: 0.3333333333 | E29: 0.3888888889 | F29: 0.3333333333 | G29: 0.3888888889 | H29: 0.3333333333 | I29: 0.3333333333 | J29: 0.5 | K29: 0.5 | L29: 0.5555555556 | M29: 0.4444444444 | N29: 0.5555555556 | O29: 0.5555555556 | P29: 0.5 | Q29: 0.4444444444 | R29: 0.4444444444 | S29: 0.5555555556 | T29: 0.5 | U29: 0.5 | V29: 0.5555555556 | W29: 0.5555555556 | X29: 0.5 | Y29: 0.5 | Z29: 0.5 | AA29: 0.6111111111 | AB29: 0.5555555556 | AC29: 0.5555555556 | AD29: 0.7777777778 | AE29: 0.6666666667 | AF29: 0.7777777778 | AG29: 1
A30: 達成率（段階的な自立度合い） | B30: =COUNTIF(B9:B28,"⑤")*4/(COUNTA(B9:B28)*4)+COUNTIF(B9:B28,"④")*3/(COUNTA(B9:B28)*4)+COUNTIF(B9:B28,"③")*2/(COUNTA(B9:B28)*4)+COUNTIF(B9:B28,"②")/(COUNTA(B9:B28)*4) -> 0.6944444444 | C30: =COUNTIF(C9:C28,"⑤")*4/(COUNTA(C9:C28)*4)+COUNTIF(C9:C28,"④")*3/(COUNTA(C9:C28)*4)+COUNTIF(C9:C28,"③")*2/(COUNTA(C9:C28)*4)+COUNTIF(C9:C28,"②")/(COUNTA(C9:C28)*4) -> 0.7083333333 | D30: 0.6944444444 | E30: 0.6944444444 | F30: 0.6805555556 | G30: 0.7083333333 | H30: 0.6666666667 | I30: 0.6388888889 | J30: 0.7361111111 | K30: 0.7361111111 | L30: 0.7777777778 | M30: 0.75 | N30: 0.7777777778 | O30: 0.75 | P30: 0.7361111111 | Q30: 0.7222222222 | R30: 0.7222222222 | S30: 0.7916666667 | T30: 0.8333333333 | U30: 0.8333333333 | V30: 0.8611111111 | W30: 0.8472222222 | X30: 0.8333333333 | Y30: 0.8194444444 | Z30: 0.8333333333 | AA30: 0.8611111111 | AB30: 0.8472222222 | AC30: 0.8472222222 | AD30: 0.9444444444 | AE30: 0.9027777778 | AF30: 0.9444444444 | AG30: 1
A31: 特記事項
